{"text_format":"1","workbook":"xlsx","n_sheets":18,"sheets":["Caratula Resumen","A Y  II D3","A Y II D4","B)","II B) Y 1","II C y 1_","II D) 2","II D) 4","II D) 4 A","II D) 6","II D) 7 1","II D) 7 2 ","II D) 7 3","E)","F) 1","F) 2","G)","Listas"],"not_rendered":{"charts":0,"images":16,"macros":1,"external_links":0,"defined_names":17,"comments":16,"pivot_tables":0},"unopened":[],"bounds":{"document_bytes":16777216,"sheet_cells":100000,"rows_first":2000,"rows_last":500,"rows_between":2000,"halvings":0,"cell_chars":16384,"cell_head_chars":4096},"cells_cut":0,"cells_raw":0,"read":"whole","date_system":"1900"}

{"sheet":"Caratula Resumen","index":0,"n_rows":73,"n_cols":18,"rows_kept":73,"cut":false,"hidden":false,"merged":[[69,2,69,5],[71,2,71,5],[72,2,72,5],[73,2,73,5],[20,3,20,14],[21,3,21,14],[22,3,22,14],[49,3,49,6],[62,2,62,5],[63,2,63,5],[65,2,65,5],[66,2,66,5],[68,2,68,5],[43,3,43,6],[44,3,44,6],[45,3,45,6],[46,3,46,6],[47,3,47,6],[48,3,48,6],[37,3,37,6],[38,3,38,6],[39,3,39,6],[40,3,40,6],[41,3,41,6],[42,3,42,6],[36,3,36,6],[10,3,10,18],[11,3,11,18],[12,3,12,18],[34,3,34,6],[35,3,35,6]]}
[]
[]
[]
[]
[]
[]
[]
[]
[]
[]
[]
[null,null,null,"FORMATOS ENTREGADOS PARA DAR CUMPLIMIENTO AL ARTICULO 73 DE \"LA LEY GENERAL DE CONTABILIDAD GUBERNAMENTAL\""]
[]
[]
[]
[]
[]
[]
[]
[]
[null,null,"Entidad Federativa :"," GUANAJUATO "]
[null,null,"Fondo :","Fondo de Aportaciones para la Educación Tecnológica y de Adultos/Instituto Nacional para la Educación de los Adultos (FAETA/INEA)"]
[null,null,"Periodo :","4to. Trimestre"]
[]
[]
[]
[]
[]
[]
[]
[]
[null,null,null,null,null,null,null,"TOTAL REGISTROS ",null,"Num. de Paginas",null,"TOTAL PERSONAS",null,"TOTAL PLAZAS",null,"Total Pto. Federal",null,"Total Ppto. Otras Fuentes"]
[]
[]
[null,1,"A Y II D3","Personal Comisionado",null,null,null,0,null,1,null,0,null,0,null,0,null,0]
[null,2,"A Y II D4","Personal con Licencia",null,null,null,5,null,1,null,5,null,5,null,0,null,0]
[null,3,"B)   ","Registro Federal de Contribuyentes de Trabajadores con Pagos Retroactivos con un Periodo Mayor a 45 días",null,null,null,0,null,1,null,0,null,0,null,"N/A",null,"N/A"]
[null,4,"II B) Y 1","Plaza / Función",null,null,null,325,null,7,null,{"$f":"H38","v":325},null,"N/A",null,"N/A",null,"N/A"]
[null,5,"II C y 1_","Personal Federalizado por Registro Federal de Contribuyentes",null,null,null,{"$f":"'II C y 1_'!C341","v":325},null,8,null,{"$f":"H39","v":325},null,{"$f":"H39","v":325},null,{"$f":"SUBTOTAL(109,Tabla12[Percepciones pagadas en el Periodo de Comisión con Presupuesto Federal*])","v":2078069.1699999964},null,0]
[null,6,"II D) 2","Movimientos de Plazas",null,null,null,39,null,2,null,39,null,39,null,"N/A",null,"N/A"]
[null,7,"II D) 4","Trabajadores Jubilados en el Periodo",null,null,null,0,null,0,null,0,null,0,null,"N/A",null,"N/A"]
[null,8,"II D) 4 A","Trabajadores que Tramitaron Licencia Prejubilatoria en el Periodo",null,null,null,0,null,0,null,0,null,0,null,0,null,0]
[null,9,"II D) 6","Trabajadores Contratados por Honorarios en el Periodo",null,null,null,{"$f":"'II D) 6'!D97","v":78},null,2,null,{"$f":"H43","v":78},null,"N/A",null,"N/A",null,"N/A"]
[null,10,"II D) 7 1 ","Analítico de Categorías / Plazas Autorizadas con su Tabulador",null,null,null,{"$f":"'II D) 7 1'!D40","v":23},null,1,null,"N/A",null,"N/A",null,"N/A",null,"N/A"]
[null,11,"II D) 7 2 ","Catálogo de Categorías y Tabuladores",null,null,null,{"$f":"'II D) 7 2 '!C42","v":"23"},null,1,null,"N/A",null,"N/A",null,"N/A",null,"N/A"]
[null,12,"II D) 7 3 ","Catálogo de Percepciones y Deducciones",null,null,null,131,null,5,null,"N/A",null,"N/A",null,"N/A",null,"N/A"]
[null,13,"E)","Trabajadores que Cobran con RFC / CURP con Formato Incorrecto",null,null,null,0,null,0,null,0,null,"N/A",null,"N/A",null,"N/A"]
[null,14,"F) 1","Trabajadores con Doble Asignación Salarial en Municipios no Colindantes Geográficamente",null,null,null,0,null,0,null,0,null,"N/A",null,"N/A",null,"N/A"]
[null,15,"F) 2","Trabajadores Ocupando Plazas que Superan el Número de Horas de Compatibilidad Autorizadas",null,null,null,1,null,1,null,1,null,1,null,"N/A",null,"N/A"]
[null,16,"G)","Trabajadores Cuyo Salario Básico Supere los Ingresos Promedio de un Docente en la Categoría más Alta del Tabulador Salarial Correspondiente a Cada Entidad",null,null,null,0,null,0,null,0,null,"N/A",null,"N/A",null,"N/A"]
[]
[]
[]
[]
[]
[]
[]
[]
[]
[]
[]
[]
[null,null,"C.P. ESMERALDA HERNANDEZ ESCOGIDO"]
[null,null,"Nombre del  Responsable"]
[]
[null,null,"SUBJEFE DE NOMINA FEDERAL"]
[null,null,"Cargo"]
[]
[]
[null,null,"Firma"]
[]
[null,null,"16 DE ENERO DE 2018"]
[null,null,"Fecha"]

{"sheet":"A Y  II D3","index":1,"n_rows":27,"n_cols":25,"rows_kept":27,"cut":false,"hidden":false,"merged":[[9,1,9,7],[12,6,12,12],[12,1,13,1],[12,2,13,2],[12,3,13,3],[12,4,13,4],[12,5,13,5],[23,12,23,14],[12,24,13,24],[12,13,12,14],[12,15,13,15],[12,16,13,16],[12,17,13,17],[12,18,12,19],[12,20,13,20],[21,13,21,14],[12,21,13,21],[12,22,13,22],[12,23,13,23]]}
[]
[]
[]
[]
[]
[]
[]
[]
[null,"Formato: Personal Comisionado"]
[null,{"$f":"IF('Caratula Resumen'!D22=\"Elige el Periodo…\",\"\",'Caratula Resumen'!D22)","v":"Fondo de Aportaciones para la Educación Tecnológica y de Adultos/Instituto Nacional para la Educación de los Adultos (FAETA/INEA)"},null,null,null,null,null,null,null,null,null,null,null,null,null,null,null,null,null,null,null,null,null,"4to. Trimestre 2017"]
[]
[]
[null,"Entidad Federativa","R.F.C.","CURP","Nombre","Clave integrada","Clave Presupuestal",null,null,null,null,null,null,"Fecha Comisión",null,"Percepciones pagadas en el Periodo de Comisión con Presupuesto Federal*","Percepciones pagadas en el Periodo de Comisión con Presupuesto de otra fuente*","Clave CT Origen","CT Destino dentro del sector",null,"Lugar de la comisión fuera del sector educativo","Tipo de Comisión","Función Específica","Objeto de la comision","No. Oficio"]
[null,null,null,null,null,null,"Partida Presupuestal","Código de Pago","Clave de Unidad","Clave de Sub Unidad","Clave de Categoría","Horas Semana Mes ","Número de Plaza","Inicio","Conclusión",null,null,null,"Clave","Turno"]
[]
[null,"Entidad Federativa","R.F.C.","CURP","Nombre","Clave integrada","Partida Presupuestal","Código de Pago","Clave de Unidad","Clave de Sub Unidad","Clave de Categoría","Horas Semana Mes ","Número de Plaza","Fecha Comisión\nInicio","Fecha Comisión\nConclusión","Percepciones pagadas en el Periodo de Comisión con Presupuesto Federal*","Percepciones pagadas en el Periodo de Comisión con Presupuesto de otra fuente*","Clave CT Origen","Clave","Turno","Lugar de la comisión fuera del sector educativo","Tipo de Comisión","Función Específica","Objeto de la comision","No. Oficio"]
[]
[]
[]
[]
[]
[null,"Total Personas : ",null,null,null,null,null,null,null,null,"Total Plazas : ",null,null,"Total Pto. Federal"]
[]
[null,null,null,null,null,null,null,null,null,null,null,null,"Total Ppto. Otras Fuentes"]
[]
[null,"*Total de Percepciones reportadas por la Entidad Federativa como pagadas al trabajador durante la comisión."]
[null,"Fuente : Información proporcionada por las Entidades Federativas."]

{"sheet":"A Y II D4","index":2,"n_rows":27,"n_cols":21,"rows_kept":27,"cut":false,"hidden":false,"merged":[[9,1,9,6],[21,13,21,14],[12,16,13,16],[12,17,13,17],[12,20,13,20],[12,1,13,1],[12,3,13,3],[12,4,13,4],[12,5,13,5],[12,6,12,12],[12,13,12,14],[12,2,13,2],[12,18,12,19],[12,15,13,15]]}
[]
[]
[]
[]
[]
[]
[]
[]
[null,"Formato: Personal con Licencia"]
[null,{"$f":"IF('Caratula Resumen'!D22=\"Elige el Periodo…\",\"\",'Caratula Resumen'!D22)","v":"Fondo de Aportaciones para la Educación Tecnológica y de Adultos/Instituto Nacional para la Educación de los Adultos (FAETA/INEA)"},null,null,null,null,null,null,null,null,null,null,null,null,null,null,null,null,null,null,{"$f":"'A Y  II D3'!X10","v":"4to. Trimestre 2017"}]
[]
[]
[null,"Entidad Federativa","R.F.C.","CURP","NOMBRE","Clave integrada","Clave Presupuestal",null,null,null,null,null,null,"Periodo Licencia",null,"Percepciones pagadas en el Periodo de la Licencia con Presupuesto Federal*","Percepciones pagadas en el Periodo de la Licencia con Presupuesto de otra fuente*","Clave CT Origen","Licencia",null,"Descripción de la Licencia"]
[null,null,null,null,null,null,"Partida Presupuestal","Código de Pago","Clave de Unidad","Clave de Sub Unidad","Clave de Categoría","Horas Semana Mes ","Número de Plaza","Inicio","Conclusión",null,null,null,"Clave","Tipo"]
[]
[null,"Entidad Federativa","R.F.C.","CURP","NOMBRE","Clave integrada","Partida Presupuestal","Código de Pago","Clave de Unidad","Clave de Sub Unidad","Clave de Categoría","Horas Semana Mes ","Número de Plaza","Periodo Licencia\nInicio","Periodo Licencia\nConclusión","Percepciones pagadas en el Periodo de la Licencia con Presupuesto Federal*","Percepciones pagadas en el Periodo de la Licencia con Presupuesto de otra fuente*","Clave CT Origen","Licencia\nClave","Licencia\nTipo","Descripción de la Licencia"]
[null,"GUANAJUATO","SAES9003201Z8","SAES900320MGTLSL08","SALDAÑA ESTRADA SELMA ALEJANDRA","8310117A01807000.0",83101,1,7,"A","A01807",0,1495,20170901,20171231,0,0,"11EBS0027E",null,"SIN GOCE DE SUELDO","LICENCIA ASUNTOS PERSONALES"]
[null,"GUANAJUATO","DUVE540209Q63","DUVE540209HGTRLR06","DURAN VALDIVIA ERNESTO","83101174T03820000.0",83101,1,7,4,"T03820",0,212,20171001,20171231,0,0,"11EBS0027E",null,"CON GOCE DE SUELDO","LICENCIA POR PREJUBILACION"]
[null,"GUANAJUATO","SAAP650303N74","SAAP650303MGTNLT02","SANCHEZ ALVARADO PATRICIA","83101174T03810000.0",83101,1,7,4,"T03810",0,121,20171001,20171231,0,0,"11EBS0027E",null,"CON GOCE DE SUELDO","LICENCIA POR PREJUBILACION"]
[null,"GUANAJUATO","TAML5306213J5","TAML530621HGTPRS02","TAPIA MARTINEZ JOSE LUIS","83101171A03804000.0",83101,1,7,1,"A03804",0,131,20171001,20171231,0,0,"11EBS0027E",null,"CON GOCE DE SUELDO","LICENCIA POR PREJUBILACION"]
[null,"GUANAJUATO","ROHG921225D70","ROHG921225MGTDRL00","RODRIGUEZ HERNANDEZ GLORIA LORENA BEATRIZ","83101174A03804000.0",83101,1,7,4,"A03804",0,310,20171116,20171231,0,0,"11EBS0027E",null,"CON GOCE DE SUELDO","LICENCIA MEDICA"]
[null,"Total Personas : ",5,null,null,null,null,null,null,null,"Total Plazas : ",null,5,"Total Pto. Federal",null,{"$f":"SUBTOTAL(109,Tabla3[Percepciones pagadas en el Periodo de la Licencia con Presupuesto Federal*])","v":0}]
[]
[null,null,null,null,null,null,null,null,null,null,null,null,null,"Total Ppto. Otras Fuentes"]
[]
[null,"*Total de Percepciones reportadas por la Entidad Federativa como pagadas al trabajador durante la Licencia."]
[null,"Fuente : Información proporcionada por las Entidades Federativas."]

{"sheet":"B)","index":3,"n_rows":27,"n_cols":19,"rows_kept":27,"cut":false,"hidden":false,"merged":[[9,1,9,10],[12,1,13,1],[12,2,13,2],[12,3,13,3],[12,4,13,4],[12,5,12,11],[12,18,13,18],[12,12,13,12],[12,13,13,13],[12,14,13,14],[12,15,12,16],[12,17,13,17]]}
[]
[]
[]
[]
[]
[]
[]
[]
[null,"Formato: Registro Federal de Contribuyentes de Trabajadores con Pagos Retroactivos con un Periodo Mayor a 45 días"]
[null,{"$f":"IF('Caratula Resumen'!D22=\"Elige el Periodo…\",\"\",'Caratula Resumen'!D22)","v":"Fondo de Aportaciones para la Educación Tecnológica y de Adultos/Instituto Nacional para la Educación de los Adultos (FAETA/INEA)"},null,null,null,null,null,null,null,null,null,null,null,null,null,null,null,{"$f":"'A Y  II D3'!X10","v":"4to. Trimestre 2017"}]
[]
[]
[null,"Entidad Federativa","RFC","CURP","Nombre","Clave Presupuestal",null,null,null,null,null,null,"Clave de Centro de Trabajo","Fecha de emisión de pago","Motivo del Pago Retroactivo","Periodo pagado",null,"Días transcurridos para el pago","Percepciones pagadas en el periodo reportado *"]
[null,null,null,null,null,"Partida Presupuestal","Código de Pago","Clave de Unidad","Clave de Sub Unidad","Clave de Categoría","Horas Semana Mes ","Número de Plaza",null,null,null,"Desde","Hasta"]
[]
[null,"Entidad Federativa","RFC","CURP","Nombre","Partida Presupuestal","Código de Pago","Clave de Unidad","Clave de Sub Unidad","Clave de Categoría","Horas semana mes","Número de plaza","Clave de Centro de Trabajo","Fecha de emisión de pago","Motivo del Pago Retroactivo","Periodo pagado\nDesde","Periodo pagado\nHasta","Días transcurridos para el pago","Percepciones pagadas en el periodo reportado *"]
[]
[]
[]
[]
[]
[null,"Total Personas : ",null,null,null,null,null,null,null,null,"Total Plazas : ",null,null,null,null,"Total Percepciones Pagadas:"]
[]
[]
[]
[null,"*Total de Percepciones reportadas por la Entidad Federativa como pagadas en el periodo "]
[null,"Fuente : Información proporcionada por las Entidades Federativas"]

{"sheet":"II B) Y 1","index":4,"n_rows":345,"n_cols":25,"rows_kept":345,"cut":false,"hidden":false,"merged":[[12,24,14,24],[13,6,13,8],[13,9,13,11],[13,12,13,14],[13,15,13,17],[13,18,13,20],[12,6,12,20],[12,21,14,21],[12,22,14,22],[12,23,14,23],[12,4,14,4],[12,3,14,3],[12,2,14,2],[9,1,9,9],[342,21,342,23],[12,1,14,1],[12,5,14,5]]}
[]
[]
[]
[]
[]
[]
[]
[]
[null,"Formato: Plaza / Función"]
[null,{"$f":"IF('Caratula Resumen'!D22=\"Elige el Periodo…\",\"\",'Caratula Resumen'!D22)","v":"Fondo de Aportaciones para la Educación Tecnológica y de Adultos/Instituto Nacional para la Educación de los Adultos (FAETA/INEA)"},null,null,null,null,null,null,null,null,null,null,null,null,null,null,null,null,null,null,null,null,null,{"$f":"'A Y  II D3'!X10","v":"4to. Trimestre 2017"}]
[]
[]
[null,"Entidad Federativa","RFC","CURP","Nombre","Centros de Trabajo","Plazas por tipo de función",null,null,null,null,null,null,null,null,null,null,null,null,null,null,"Total plazas Jornada","Total \nHSM","Total de Honorarios","Total de recursos presupuestales ejercidos en servicios personales en el periodo\n(2)"]
[null,null,null,null,null,null,"Apoyo a la labor educativa",null,null,"Administrativo y de servicio",null,null,"Docente y Apoyo Técnico Pedagógico",null,null,"Directivos y Supervisión",null,null,"Mandos medios y superiores"]
[null,null,null,null,null,null,"Jornada","HSM","Honorarios","Jornada","HSM","Honorarios","Jornada","HSM","Honorarios","Jornada","HSM","Honorarios","Jornada","HSM","Honorarios"]
[]
[null,"Entidad Federativa","RFC","CURP","Nombre","Centros de Trabajo","Jornada","HSM","Honorarios","Jornada2","HSM3","Honorarios4","Jornada5","HSM6","Honorarios7","Jornada8","HSM9","Honorarios10","Jornada11","HSM12","Honorarios13","Total plazas Jornada","Total \nHSM","Total de Honorarios","Total de recursos presupuestales ejercidos en servicios personales en el periodo\n(2)"]
[null,"Guanajuato","HEPC690801P80","HEPC690801MGTRRR08","HERNANDEZ PEREZ MA. DEL CARMEN",1,0,0,0,0,0,0,7,35,0,0,0,0,0,0,0,1,35,0,46103.37]
[null,"Guanajuato","HEAE670513TV7","HEAE670513HGTRGD08","HERNANDEZ AGUADO EDUARDO",1,0,0,0,0,0,0,7,35,0,0,0,0,0,0,0,1,35,0,37256.589999999997]
[null,"Guanajuato","EIRJ6812089I5","EIRC681208HGTNMR05","ENRIQUEZ RAMIREZ J. CARLOS",1,0,0,0,0,0,0,7,35,0,0,0,0,0,0,0,1,35,0,45768.93]
[null,"Guanajuato","RAMD681211IP3","RAMD681211HMCMRN05","RAMIREZ MARTINEZ DANIEL",1,0,0,0,0,0,0,7,35,0,0,0,0,0,0,0,1,35,0,45693.93]
[null,"Guanajuato","BIRL710430QF2","BIRL710430HGTRZB03","BRICEÑO RUIZ LIBRADO",1,0,0,0,0,0,0,7,35,0,0,0,0,0,0,0,1,35,0,47025.37]
[null,"Guanajuato","HERG571023MS0","HERG571023MGTRPD07","HERNANDEZ RIPALDA MA. GUADALUPE JUDITH",1,0,0,0,0,0,0,7,35,0,0,0,0,0,0,0,1,35,0,47970.83]
[null,"Guanajuato","HECG7209202C4","HECG720920MGTRRR07","HERRERA CERVANTES GRISELDA",1,0,0,0,0,0,0,7,35,0,0,0,0,0,0,0,1,35,0,41531.11]
[null,"Guanajuato","BACA640430UIA","BXCA640430HGTLRN08","BALTAZAR CORTES ANTONIO",1,0,0,0,0,0,0,7,35,0,0,0,0,0,0,0,1,35,0,44783.93]
[null,"Guanajuato","GUOA740914U2A","GUOA740914MMNDRN06","GUDIÑO ORDAZ MA. DE LOS ANGELES",1,0,0,0,0,0,0,7,35,0,0,0,0,0,0,0,1,35,0,39669.919999999998]
[null,"Guanajuato","FAHI7401088Z2","FAHI740108HGTBRV04","FABELA HERNANDEZ IVAN",1,0,0,0,0,0,0,7,35,0,0,0,0,0,0,0,1,35,0,45011.43]
[null,"Guanajuato","GUMC6804029G4","GUMC680402MGTZNR09","GUZMAN MANZANILLA MARIA DEL CARMEN",1,0,0,0,0,0,0,7,35,0,0,0,0,0,0,0,1,35,0,44426.59]
[null,"Guanajuato","MENC680926QE2","MENC680926MGTDVR02","MEDEL NAVARRETE MARIA DEL CARMEN",1,0,0,0,0,0,0,7,35,0,0,0,0,0,0,0,1,35,0,45489.09]
[null,"Guanajuato","GAMJ711118AJ8","GAMJ711118HGTRCC07","GARCIA MICHACA JACOBO",1,0,0,0,0,0,0,7,35,0,0,0,0,0,0,0,1,35,0,45839.09]
[null,"Guanajuato","NEAC740715LD9","NEAC740715HGTGRR02","NEGRETE ARIAS CRISTOBAL",1,0,0,0,0,0,0,7,35,0,0,0,0,0,0,0,1,35,0,44486.59]
[null,"Guanajuato","YEPV780203IU0","YEPV780203MGTBVR00","YEBRA PAVON VERONICA ADRIANA",1,0,0,0,0,0,0,7,35,0,0,0,0,0,0,0,1,35,0,43236.87]
[null,"Guanajuato","CAVS681207JX2","CAVS681207HGTNRL04","CANO VARGAS SALVADOR",1,0,0,0,0,0,0,7,35,0,0,0,0,0,0,0,1,35,0,68754.899999999994]
[null,"Guanajuato","NAHL730801RV8","NAHL730801MGTVRR01","NAVARRO HERNANDEZ MARIA DE LOURDES",1,0,0,0,0,0,0,7,35,0,0,0,0,0,0,0,1,35,0,43315.59]
[null,"Guanajuato","AERS660208UT4","AERS660208HGTRYR01","ARREDONDO RAYA SERGIO",1,0,0,0,0,0,0,7,35,0,0,0,0,0,0,0,1,35,0,44146.87]
[null,"Guanajuato","TONL701209CT8","TONL701209MGTRCR09","TORRES NACHE LAURA MA GUADALUPE",1,0,0,0,0,0,0,7,35,0,0,0,0,0,0,0,1,35,0,47970.83]
[null,"Guanajuato","GURR6007275B3","GURR600727HSPLMD06","GUEL RAMIREZ RODOLFO",1,0,0,0,0,0,0,7,35,0,0,0,0,0,0,0,1,35,0,45284.37]
[null,"Guanajuato","CAVA651011TB7","CAVA651011HGTLRL04","CALDERON VARELA JOSE ALFREDO",1,0,0,0,0,0,0,7,35,0,0,0,0,0,0,0,1,35,0,38482.46]
[null,"Guanajuato","ROSJ600516BL3","ROSJ600516MGTBNN05","ROBLES SANTANA JUANA",1,0,0,0,0,0,0,7,35,0,0,0,0,0,0,0,1,35,0,43032.09]
[null,"Guanajuato","CACP630616HG8","CACP630616MGTLHT16","CALDERON CHAVEZ MA. PATRICIA DOLORES",1,0,0,0,0,0,0,7,35,0,0,0,0,0,0,0,1,35,0,36768.04]
[null,"Guanajuato","PAQF701109SJ2","PAQF701109HGTRNL00","PAREDON QUINTERO FILEMON",1,0,0,0,0,0,0,7,35,0,0,0,0,0,0,0,1,35,0,44169.59]
[null,"Guanajuato","EASG700512IU9","EASG700512MCMSNR00","ESCAMILLA SANCHEZ GRACIELA",1,0,0,0,0,0,0,7,35,0,0,0,0,0,0,0,1,35,0,44575.38]
[null,"Guanajuato","VARA570811AR0","VARA570811MVZLDN06","VALERIO RODRIGUEZ ANA YOLANDA",1,0,0,0,0,0,0,7,35,0,0,0,0,0,0,0,1,35,0,47704.95]
[null,"Guanajuato","BEMS700226KJ6","BEMS700226HGTCNL00","BECERRA MANDUJANO SALVADOR",1,0,0,0,0,0,0,7,35,0,0,0,0,0,0,0,1,35,0,44397.09]
[null,"Guanajuato","MOGC720409SJ9","MOGC720409MGTJZL04","MOJICA GUZMAN CLAUDIA ELISA",1,0,0,0,0,0,0,7,35,0,0,0,0,0,0,0,1,35,0,42454.23]
[null,"Guanajuato","COOM721217SVA","COOM721217MGTNLN02","CONTRERAS OLMOS MA. MANUELA",1,0,0,0,0,0,0,7,35,0,0,0,0,0,0,0,1,35,0,43032.09]
[null,"Guanajuato","RICR7705149U3","RICR770514HGTVRB05","RIVERA CORONILLA ROBERTO CARLOS",1,0,0,0,0,0,0,7,35,0,0,0,0,0,0,0,1,35,0,45669.59]
[null,"Guanajuato","CAEJ651225BV9","CAEJ651225HVZHSS03","CHAGALA ESPEJO JESUS",1,0,0,0,0,0,0,7,35,0,0,0,0,0,0,0,1,35,0,42454.23]
[null,"Guanajuato","CAGR690302HRA","CAGR690302MGTMMS03","CAMPOS GOMEZ MA. DEL ROSARIO",1,0,0,0,0,0,0,7,35,0,0,0,0,0,0,0,1,35,0,40635.53]
[null,"Guanajuato","HECS730303TG6","HECS730303MGTRNS05","HERNANDEZ CANTERO SUSANA TERESA",1,0,0,0,0,0,0,7,35,0,0,0,0,0,0,0,1,35,0,40838.639999999999]
[null,"Guanajuato","JUAA750702KJ9","JUAA750702HGTRRN04","JUAREZ ARROYO JOSE ANDRES",1,0,0,0,0,0,0,7,35,0,0,0,0,0,0,0,1,35,0,45079.59]
[null,"Guanajuato","GOSL721116725","GOSL721116HGTRSS06","GORDILLO SOSA LUIS JAVIER",1,0,0,0,0,0,0,7,35,0,0,0,0,0,0,0,1,35,0,46279.15]
[null,"Guanajuato","MUHD640208LB9","MUHD640208MDFXRL08","MUÑOZ HERRERA MARIA DOLORES",1,0,0,0,0,0,0,7,35,0,0,0,0,0,0,0,1,35,0,45307.09]
[null,"Guanajuato","MOTE6904283LA","MOTE690428MGTRRL09","MORALES TORRES ELVIRA",1,0,0,0,0,0,0,7,35,0,0,0,0,0,0,0,1,35,0,43260.26]
[null,"Guanajuato","MAAC750527A26","MAAC750527MGTRGR07","MARTINEZ AGREDA CAROLINA",1,0,0,0,0,0,0,7,35,0,0,0,0,0,0,0,1,35,0,36209.519999999997]
[null,"Guanajuato","MISR800307LH4","MISR800307MGTRLS07","MIRANDA SALAZAR ROSAURA",1,0,0,0,0,0,0,7,35,0,0,0,0,0,0,0,1,35,0,41711.43]
[null,"Guanajuato","QULC671003EH8","QULC671003MDFRPL03","QUIROZ LOPEZ CLAUDIA REYNA",1,0,0,0,0,0,0,7,35,0,0,0,0,0,0,0,1,35,0,45719.93]
[null,"Guanajuato","RIRS751216TU4","RIRS751216MDFSMN07","RIOS RAMOS SONIA",1,0,0,0,0,0,0,7,35,0,0,0,0,0,0,0,1,35,0,42249.57]
[null,"Guanajuato","ROPP680417AU8","ROPP680417MGTDRT05","RODRIGUEZ PEREZ PATRICIA",1,0,0,0,0,0,0,7,35,0,0,0,0,0,0,0,1,35,0,44192.43]
[null,"Guanajuato","NAMS5306098W6","NAMS530609MGTRRL00","NARVAEZ MORA SILVIA LAURA",1,0,0,0,0,0,0,7,35,0,0,0,0,0,0,0,1,35,0,44192.43]
[null,"Guanajuato","ZAMH6907077M4","ZAMH690707MGTVRR00","ZAVALA MARTINEZ MARIA HERLINDA",1,0,0,0,0,0,0,7,35,0,0,0,0,0,0,0,1,35,0,42249.57]
[null,"Guanajuato","SOSM750119S26","SOSM750119MGTRTR02","SORIA SOTO MARTHA",1,0,0,0,0,0,0,7,35,0,0,0,0,0,0,0,1,35,0,39693.69]
[null,"Guanajuato","LOLA751009LC7","LOLA751009MGTPNN06","LOPEZ LUNA MA. DE LOS ANGELES",1,0,0,0,0,0,0,7,35,0,0,0,0,0,0,0,1,35,0,44907.87]
[null,"Guanajuato","MELR640522PX9","MELR640522MGTNNT06","MENDEZ LEON RITA",1,0,0,0,0,0,0,7,35,0,0,0,0,0,0,0,1,35,0,42850.15]
[null,"Guanajuato","CAGR650930FB6","CAGR650930HGTLYB04","CALDERON GAYTAN RUBEN",1,0,0,0,0,0,0,7,35,0,0,0,0,0,0,0,1,35,0,44580.39]
[null,"Guanajuato","VIRM731126CL3","VIRM731126MGTLMN06","VILLANUEVA RAMIREZ MARIA MONICA",1,0,0,0,0,0,0,7,35,0,0,0,0,0,0,0,1,35,0,41972.3]
[null,"Guanajuato","MAGE751103B16","MAGE751103MGTYTR08","MAYCOTTE GUTIERREZ ERIKA GUADALUPE",1,0,0,0,0,0,0,7,35,0,0,0,0,0,0,0,1,35,0,42357.919999999998]
[null,"Guanajuato","FONO7308067J5","FOXN730806MGTLXR04","FLORES  NORMA LILIA",1,0,0,0,0,0,0,7,35,0,0,0,0,0,0,0,1,35,0,37770.03]
[null,"Guanajuato","MASV810101DZ8","MASV810101MGTRRR01","MARTINEZ SARABIA VERONICA",1,0,0,0,0,0,0,7,35,0,0,0,0,0,0,0,1,35,0,44005.15]
[null,"Guanajuato","AELM6906275A6","AELR690627MGTRPS15","ARREGUIN LOPEZ MA ROSARIO",1,0,0,0,0,0,0,7,35,0,0,0,0,0,0,0,1,35,0,44452.87]
[null,"Guanajuato","METC6212134V3","METC621213HGTRPS06","MERINO TAPIA CESAR MARTIN",1,0,0,0,0,0,0,7,35,0,0,0,0,0,0,0,1,35,0,43987.65]
[null,"Guanajuato","GOMM610218KG4","GOMM610218MGTNRR05","GONZALEZ MORENO MARTA PATRICIA",1,0,0,0,0,0,0,7,35,0,0,0,0,0,0,0,1,35,0,41976.13]
[null,"Guanajuato","GARM751031J11","GARM751031HGTRMS07","GRANADOS RAMOS MOISES",1,0,0,0,0,0,0,7,35,0,0,0,0,0,0,0,1,35,0,47895.83]
[null,"Guanajuato","RACR700730AH9","RACR700730MGTZNB06","RAZO CANO REBECA",1,0,0,0,0,0,0,7,35,0,0,0,0,0,0,0,1,35,0,43077.65]
[null,"Guanajuato","GAML720417UE8","GAML720417HGTRRS07","GARCIA MARTINEZ LUIS ALBERTO",1,0,0,0,0,0,0,7,35,0,0,0,0,0,0,0,1,35,0,42395.15]
[null,"Guanajuato","FICJ7603185H9","FICT760318HGTRSR03","FRIAS CASTAÑEDA J. TRINIDAD",1,0,0,0,0,0,0,7,35,0,0,0,0,0,0,0,1,35,0,44580.37]
[null,"Guanajuato","MACE770912412","MACE770912HQTRHC07","MARTINEZ CHAVEZ ECTOR JAVIER",1,0,0,0,0,0,0,7,35,0,0,0,0,0,0,0,1,35,0,68679.960000000006]
[null,"Guanajuato","HEMM781102T78","HEMM781102MGTRNR07","HERNANDEZ MONTOYA MARISELA",1,0,0,0,0,0,0,7,35,0,0,0,0,0,0,0,1,35,0,43327.87]
[null,"Guanajuato","HECA7404077F6","HECA740407MGTRND08","HERNANDEZ CANTERO ADRIANA",1,0,0,0,0,0,0,7,35,0,0,0,0,0,0,0,1,35,0,40911.589999999997]
[null,"Guanajuato","RAJC810331LAA","RAJC810331MGTMRL02","RAMIREZ JARAMILLO CLAUDIA JACQUELINE",1,0,0,0,0,0,0,7,35,0,0,0,0,0,0,0,1,35,0,42416.73]
[null,"Guanajuato","RARC7011229A3","RARC701122MGTNDR00","RANGEL RODRIGUEZ MA. CARLOTA PATRICIA",1,0,0,0,0,0,0,7,35,0,0,0,0,0,0,0,1,35,0,44260.65]
[null,"Guanajuato","AUTC7502082I3","AUTC750208MGTGRN15","AGUILAR TIRADO MA. CONSUELO",1,0,0,0,0,0,0,7,35,0,0,0,0,0,0,0,1,35,0,44465.37]
[null,"Guanajuato","CUSG780213V57","CUSG780213HGTRVL03","CRUZ SAAVEDRA GUILIBALDO",1,0,0,0,0,0,0,7,35,0,0,0,0,0,0,0,1,35,0,38720.71]
[null,"Guanajuato","FOMO6906162N2","FOMO690616HGTNDS05","FONSECA MEDRANO OSCAR",1,0,0,0,0,0,0,7,35,0,0,0,0,0,0,0,1,35,0,49377.85]
[null,"Guanajuato","DOVL720318BXA","DOVL720318HGTMLS06","DOMINGUEZ VALDES JOSE LUIS",1,0,0,0,0,0,0,7,35,0,0,0,0,0,0,0,1,35,0,42190.37]
[null,"Guanajuato","BEBJ7508072M7","BEBL750807HQTRRS05","BERRA BORTOLINI J. LUIS",1,0,0,0,0,0,0,7,35,0,0,0,0,0,0,0,1,35,0,41840.01]
[null,"Guanajuato","TOSH760727J54","TOSH760727HGTRNC04","TORRES SAENEZ HECTOR DANIEL",1,0,0,0,0,0,0,7,35,0,0,0,0,0,0,0,1,35,0,42080.01]
[null,"Guanajuato","RARC7301176A2","RARC730117MGTMVR07","RAMIREZ RIVAS MA. CARINA ALEJANDRA",1,0,0,0,0,0,0,7,35,0,0,0,0,0,0,0,1,35,0,41840.01]
[null,"Guanajuato","GUHA770213FQ8","GUHA770213MGTVRL02","GUEVARA HERNANDEZ ALMA ROSA",1,0,0,0,0,0,0,7,35,0,0,0,0,0,0,0,1,35,0,44815.37]
[null,"Guanajuato","RAAG660220BC0","RAAG660220MGTMVD07","RAMOS AVILA MA. GUADALUPE RUTH",1,0,0,0,0,0,0,7,35,0,0,0,0,0,0,0,1,35,0,44465.37]
[null,"Guanajuato","AAGH700108U53","AAGH700108MGTLRR09","ALMANZA GARCIA HORTENCIA",1,0,0,0,0,0,0,7,35,0,0,0,0,0,0,0,1,35,0,43450.37]
[null,"Guanajuato","COOS660919CRA","COOS660919MGTNLS08","CONTRERAS OLMOS SUSANA ISABEL",1,0,0,0,0,0,0,7,35,0,0,0,0,0,0,0,1,35,0,37263.74]
[null,"Guanajuato","ROSR7704116C6","ROSR770411MGTDLS01","RODRIGUEZ SALGADO MARIA DEL ROSARIO",1,0,0,0,0,0,0,7,35,0,0,0,0,0,0,0,1,35,0,45140.65]
[null,"Guanajuato","CATE6508044X6","CATE650804MGTRRS04","CARRILLO TORRES ESPERANZA",1,0,0,0,0,0,0,7,35,0,0,0,0,0,0,0,1,35,0,44260.65]
[null,"Guanajuato","CARJ550620A19","CARJ550620HGTSDM09","CASTILLO RODRIGUEZ JAIME",1,0,0,0,0,0,0,7,35,0,0,0,0,0,0,0,1,35,0,43578.15]
[null,"Guanajuato","ROLA760606566","ROLA760606HGTJPN03","ROJAS LOPEZ JOSE ANTONIO",1,0,0,0,0,0,0,7,35,0,0,0,0,0,0,0,1,35,0,44260.65]
[null,"Guanajuato","ZAGB700228KX3","ZAGB700228MGTVMT03","ZAVALA GOMEZ BEATRIZ",1,0,0,0,0,0,0,7,35,0,0,0,0,0,0,0,1,35,0,44997.74]
[null,"Guanajuato","VARL750211VB2","VARL750211MGTRMR07","VARGAS RAMIREZ MARIA LOURDES",1,0,0,0,0,0,0,7,35,0,0,0,0,0,0,0,1,35,0,43785.89]
[null,"Guanajuato","ROJJ671130GY1","ROJJ671130HGTDMS06","RODRIGUEZ JIMENEZ JOSE",1,0,0,0,0,0,0,7,35,0,0,0,0,0,0,0,1,35,0,43495.93]
[null,"Guanajuato","COCB750608U65","COCB750608MGTRRL08","CORONEL CARBAJAL BLANCA RAQUEL",1,0,0,0,0,0,0,7,35,0,0,0,0,0,0,0,1,35,0,43821.15]
[null,"Guanajuato","CARA730215VE3","CARA730215MGTHJL00","CHAVEZ ROJAS ALMA DELIA",1,0,0,0,0,0,0,7,35,0,0,0,0,0,0,0,1,35,0,39721.49]
[null,"Guanajuato","SAMM750910419","SAMM750910MGTCRR00","SAUCEDO MORENO MERCEDES ELENA",1,0,0,0,0,0,0,7,35,0,0,0,0,0,0,0,1,35,0,44230.93]
[null,"Guanajuato","VEPE671201NI6","VEPE671201MGTGRG04","VEGA PAREDES MARIA EUGENIA",1,0,0,0,0,0,0,7,35,0,0,0,0,0,0,0,1,35,0,43373.43]
[null,"Guanajuato","RORC700828A28","RORC700828MGTMML06","ROMERO RAMOS CLAUDIA IMELDA",1,0,0,0,0,0,0,7,35,0,0,0,0,0,0,0,1,35,0,42449.74]
[null,"Guanajuato","VIGO710314HSA","VIGO710314HGTLNS05","VILLICAÑA GONZALEZ OSCAR JACOBO",1,0,0,0,0,0,0,7,35,0,0,0,0,0,0,0,1,35,0,38746.01]
[null,"Guanajuato","DOVR6304095Y7","DOVR630409MBCMZS05","DOMINGUEZ VAZQUEZ MARIA DEL ROSARIO",1,0,0,0,0,0,0,7,35,0,0,0,0,0,0,0,1,35,0,43646.37]
[null,"Guanajuato","LERM7308264B5","LERM730826MGTDSN09","LEDESMA ROSALES MONICA",1,0,0,0,0,0,0,7,35,0,0,0,0,0,0,0,1,35,0,42736.37]
[null,"Guanajuato","HEEE731209HI1","HEEE731209MGTRSS09","HERNANDEZ ESCOGIDO ESMERALDA",1,0,0,0,0,0,0,7,35,0,0,0,0,0,0,0,1,35,0,47745.83]
[null,"Guanajuato","GOAS751103PH7","GOAS751103MGTNRL01","GONZALEZ ARANDA SILVIA SANTOS",1,0,0,0,0,0,0,7,35,0,0,0,0,0,0,0,1,35,0,43441.65]
[null,"Guanajuato","PEDM7406101Q5","PEDM740610MDFRMR01","PERALTA DOMINGUEZ MARGARITA",1,0,0,0,0,0,0,7,35,0,0,0,0,0,0,0,1,35,0,41849.15]
[null,"Guanajuato","NEGM641224M74","NEGM641224MGTGVR06","NEGRETE GOVEA MARTINA",1,0,0,0,0,0,0,7,35,0,0,0,0,0,0,0,1,35,0,36869.21]
[null,"Guanajuato","LOCJ8109121HA","LOCJ810912HDFPRN00","LOPEZ CRUZ JUAN CARLOS",1,0,0,0,0,0,0,7,35,0,0,0,0,0,0,0,1,35,0,43091.3]
[null,"Guanajuato","BABM6804276E6","BABM680427MMCXLR01","BAÑOS BAILON MARGARITA",1,0,0,0,0,0,0,7,35,0,0,0,0,0,0,0,1,35,0,44009.09]
[null,"Guanajuato","SACM760716KV0","SACM760716MJCNSN08","SANDOVAL CASTELLON MONICA DEL CARMEN",1,0,0,0,0,0,0,7,35,0,0,0,0,0,0,0,1,35,0,41200.5]
[null,"Guanajuato","TEMY831012PC7","TEMY831012MGTRDD05","TERAN MEDINA YADIRA ELISA",1,0,0,0,0,0,0,7,35,0,0,0,0,0,0,0,1,35,0,14990.35]
[null,"Guanajuato","CIVM630826EF1","CIVR630826MGTSRS09","CISNEROS VERDIN MA. DEL ROSARIO",1,0,0,0,0,0,0,7,35,0,0,0,0,0,0,0,1,35,0,38336.559999999998]
[null,"Guanajuato","PELL620125LZ0","PELL620125MVZRLR03","PEREZ LLANOS MARIA DE LOURDES",1,0,0,0,0,0,0,7,35,0,0,0,0,0,0,0,1,35,0,42144.93]
[null,"Guanajuato","COPC760616J13","COPC760616HGTRTR05","CORDOBA PATIÑO CARLOS ALBERTO",1,0,0,0,0,0,0,7,35,0,0,0,0,0,0,0,1,35,0,36853.9]
[null,"Guanajuato","AEPB811216AUA","AEPB811216MGTRLL03","ARREGUIN PALMA BLANCA BERENICE",1,0,0,0,0,0,0,7,35,0,0,0,0,0,0,0,1,35,0,47670.83]
[null,"Guanajuato","GOPS8011178I3","GOPS801117MGTMRN09","GOMEZ PEREZ MARIA SANDRA",1,0,0,0,0,0,0,7,35,0,0,0,0,0,0,0,1,35,0,37499.269999999997]
[null,"Guanajuato","REGJ781111QG6","REGJ781111HGTYRN09","REYES GUERRERO JUAN MANUEL",1,0,0,0,0,0,0,7,35,0,0,0,0,0,0,0,1,35,0,77759.22]
[null,"Guanajuato","FOMJ7811187W8","FOMJ781118HGTLDN07","FLORES MEDINA JUAN PABLO",1,0,0,0,0,0,0,7,35,0,0,0,0,0,0,0,1,35,0,42060.04]
[null,"Guanajuato","TOMG850829D80","TOMG850829HGTRRD08","DE LA TORRE MARQUEZ JOSE GUADALUPE",1,0,0,0,0,0,0,7,35,0,0,0,0,0,0,0,1,35,0,39660.53]
[null,"Guanajuato","ROBC900904U49","ROBC900904MDFCZT03","ROCHA BAEZA CITLALLIN MARGARITA",1,0,0,0,0,0,0,7,35,0,0,0,0,0,0,0,1,35,0,47670.83]
[null,"Guanajuato","SEER810904RN6","SEER810904HGTRSF07","SERRATO ESPINOSA RAFAEL",1,0,0,0,0,0,0,7,35,0,0,0,0,0,0,0,1,35,0,39452.080000000002]
[null,"Guanajuato","HERA790725FQ8","HERA790725MGTRDL08","HERNANDEZ RODRIGUEZ ALEJANDRA",1,0,0,0,0,0,0,7,35,0,0,0,0,0,0,0,1,35,0,39855.440000000002]
[null,"Guanajuato","ZAGJ830623IG5","ZAGJ830623MGTVLN06","ZAVALA GALLEGOS JUANA",1,0,0,0,0,0,0,7,35,0,0,0,0,0,0,0,1,35,0,37334.639999999999]
[null,"Guanajuato","RAML6801057F2","RAML680105MMNMCN00","RAMIREZ MACEDO LINDA",1,0,0,0,0,0,0,7,35,0,0,0,0,0,0,0,1,35,0,42417.93]
[null,"Guanajuato","MOSR650129V62","MOSR650129MGTRNF09","MORONES SANCHEZ MA. DEL REFUGIO",1,0,0,0,0,0,0,7,35,0,0,0,0,0,0,0,1,35,0,42417.93]
[null,"Guanajuato","AEAJ851118LC0","AEAJ851118HGTRCN00","ARMENTA ACEVEDO JUAN CARLOS",1,0,0,0,0,0,0,7,35,0,0,0,0,0,0,0,1,35,0,41507.93]
[null,"Guanajuato","OEMJ730208CX6","OEMM730208HGTJDR00","OJEDA MEDINA J. MERCED",1,0,0,0,0,0,0,7,35,0,0,0,0,0,0,0,1,35,0,42417.93]
[null,"Guanajuato","MALA730704I26","MALA730704HGTRPR02","MARQUEZ LOPEZ ARNULFO",1,0,0,0,0,0,0,7,35,0,0,0,0,0,0,0,1,35,0,43007.93]
[null,"Guanajuato","VALF830903IU4","VALF830903HGTLNR07","VALDEZ LANDIN FRANCISCO JAVIER",1,0,0,0,0,0,0,7,35,0,0,0,0,0,0,0,1,35,0,37437.99]
[null,"Guanajuato","GURV740105E98","GURV740105MGTRDR07","GUERRERO RODRIGUEZ VERONICA",1,0,0,0,0,0,0,7,35,0,0,0,0,0,0,0,1,35,0,37446.5]
[null,"Guanajuato","UORV800303CD1","UORV800303MGTLNR08","ULLOA RANGEL VERONICA",1,0,0,0,0,0,0,7,35,0,0,0,0,0,0,0,1,35,0,37133.629999999997]
[null,"Guanajuato","OEGL8003134Z8","OEGL800313MGTRMR09","ORTEGA GAMIÑO LAURA AMERICA",1,0,0,0,0,0,0,7,35,0,0,0,0,0,0,0,1,35,0,47370.83]
[null,"Guanajuato","CAAB610110HC5","CAAB610110MGTRRR07","CARPIO ARAGON BERTHA ANGELICA",1,0,0,0,0,0,0,7,35,0,0,0,0,0,0,0,1,35,0,34343.99]
[null,"Guanajuato","LAMZ780504N49","LAMZ780504MSLRNN01","LARA MENDIVIL ZINTIA DENISE",1,0,0,0,0,0,0,7,35,0,0,0,0,0,0,0,1,35,0,36340.639999999999]
[null,"Guanajuato","MOCK900306NE6","MOCK900306MDFRSR15","MORENO CASTILLO KAREN ANEL",1,0,0,0,0,0,0,7,35,0,0,0,0,0,0,0,1,35,0,48546.77]
[null,"Guanajuato","GACC7402201D0","GACC740220MVZRYL09","GARCIA CAYETANO CLAUDIA",1,0,0,0,0,0,0,7,35,0,0,0,0,0,0,0,1,35,0,45524.29]
[null,"Guanajuato","GORE840602N47","GORE840602HGTNDM00","GONZALEZ RODRIGUEZ EMMANUEL",1,0,0,0,0,0,0,7,35,0,0,0,0,0,0,0,1,35,0,51348.93]
[null,"Guanajuato","CAPJ840105CE0","CAPJ840105HGTMRL00","CAMACHO PRADO JULIO CESAR",1,0,0,0,0,0,0,7,35,0,0,0,0,0,0,0,1,35,0,36636.49]
[null,"Guanajuato","SAME750520NR8","SAME750520MGTNJR05","SANCHEZ MEJIA ERIKA",1,0,0,0,0,0,0,7,35,0,0,0,0,0,0,0,1,35,0,36926.07]
[null,"Guanajuato","LAOJ8212131K9","LAOJ821213HGTRLS09","LARA OLMOS JESUS SAMUEL",1,0,0,0,0,0,0,7,35,0,0,0,0,0,0,0,1,35,0,36698.57]
[null,"Guanajuato","LOLB681130LWA","LOLB681130MGTPLT03","LOPEZ LLANOS BEATRIZ",1,0,0,0,0,0,0,7,35,0,0,0,0,0,0,0,1,35,0,41838.93]
[null,"Guanajuato","CUPS720728BN7","CUPS720728MGTVSL06","CUEVAS PESCADOR SILVIA",1,0,0,0,0,0,0,7,35,0,0,0,0,0,0,0,1,35,0,35600.129999999997]
[null,"Guanajuato","COBA780319BUA","COBA780319HGTRTN00","CORDOBA BAUTISTA JOSE ANTONIO",1,0,0,0,0,0,0,7,35,0,0,0,0,0,0,0,1,35,0,35000.129999999997]
[null,"Guanajuato","GALA740123JB8","GALA740123MGTLPL08","GALINDO LOPEZ ALMA ROSA",1,0,0,0,0,0,0,7,35,0,0,0,0,0,0,0,1,35,0,33893.89]
[null,"Guanajuato","FOQL7110275I8","FOQL711027MGTLVN02","FLORES QUEVEDO LEONOR",1,0,0,0,0,0,0,7,35,0,0,0,0,0,0,0,1,35,0,35996.17]
[null,"Guanajuato","MAAC750325Q52","MAAC750325MGTLLR02","MALDONADO ALMANZA MA. DEL CARMEN",1,0,0,0,0,0,0,7,35,0,0,0,0,0,0,0,1,35,0,36467.339999999997]
[null,"Guanajuato","PECC830605V49","PECC830605MNEXSN04","PEÑALOZA CISNEROS CINTHYA",1,0,0,0,0,0,0,7,35,0,0,0,0,0,0,0,1,35,0,41562.910000000003]
[null,"Guanajuato","CALM860815G43","CALM860815MJCHNY02","CHAVEZ DE LEÓN MAYRA CAROLINA",1,0,0,0,0,0,0,7,35,0,0,0,0,0,0,0,1,35,0,47370.83]
[null,"Guanajuato","LUMR751129U75","LUMR751129HGTGTC02","LUGO MATA RICARDO ERNESTO",1,0,0,0,0,0,0,7,35,0,0,0,0,0,0,0,1,35,0,36968.99]
[null,"Guanajuato","RALE870501NL5","RALE870501MGTMYL02","RAMOS LOYOLA MARIA ELENA",1,0,0,0,0,0,0,7,35,0,0,0,0,0,0,0,1,35,0,36968.99]
[null,"Guanajuato","JIAR5906097A6","JIAR590609HVZMNB07","JIMENEZ DEL ANGEL ROBERTO",1,0,0,0,0,0,0,7,35,0,0,0,0,0,0,0,1,35,0,198708.54]
[null,"Guanajuato","HEDM871214861","HEDM871214HGTRLN04","HERNANDEZ DELGADO JOSE MANUEL",1,0,0,0,0,0,0,7,35,0,0,0,0,0,0,0,1,35,0,39243.19]
[null,"Guanajuato","CAGY820417182","CAGY820417MGTRTJ03","CARDENAS GUTIERREZ YAJAHIRA",1,0,0,0,0,0,0,7,35,0,0,0,0,0,0,0,1,35,0,29002.75]
[null,"Guanajuato","ROPE881009G46","ROPE881009MGTDRV05","RODRIGUEZ PEREZ EVELIN GUADALUPE",1,0,0,0,0,0,0,7,35,0,0,0,0,0,0,0,1,35,0,36618.99]
[null,"Guanajuato","HOHL860601124","HOHL860601MGTRRZ09","HORTA HERNANDEZ LUZ ANGELICA",1,0,0,0,0,0,0,7,35,0,0,0,0,0,0,0,1,35,0,77459.22]
[null,"Guanajuato","POLH650106FW2","POLH650106HDFZPG03","POZADA LOPEZ HUGO",1,0,0,0,0,0,0,7,35,0,0,0,0,0,0,0,1,35,0,68154.899999999994]
[null,"Guanajuato","COJP700317TZ9","COJP700317HMNRMD06","CORTES JIMENEZ PEDRO",1,0,0,0,0,0,0,7,35,0,0,0,0,0,0,0,1,35,0,47370.83]
[null,"Guanajuato","HEMJ740921F99","HEMJ740921HGTRXN08","HERNANDEZ MUÑOZ JUAN LORENZO",1,0,0,0,0,0,0,7,35,0,0,0,0,0,0,0,1,35,0,68154.899999999994]
[null,"Guanajuato","LUGL7801215UA","LUGL780121HGTNRS00","LUNA GUERRA LUIS ALBERTO",1,0,0,0,0,0,0,7,35,0,0,0,0,0,0,0,1,35,0,68154.899999999994]
[null,"Guanajuato","LISA7512109V7","LISA751210MGTRLN04","LIRA SALDAÑA ANA ISABEL",1,0,0,0,0,0,0,7,35,0,0,0,0,0,0,0,1,35,0,68154.960000000006]
[null,"Guanajuato","HERG640304LK9","HERG640304MGTRDR09","HERNANDEZ RODRIGUEZ GRACIELA",1,0,0,0,0,0,0,7,35,0,0,0,0,0,0,0,1,35,0,35708.99]
[null,"Guanajuato","MABM7603207B6","MABM760320MGTCSR01","MACHUCA BUSTAMANTE MARIANA",1,0,0,0,0,0,0,7,35,0,0,0,0,0,0,0,1,35,0,35936.49]
[null,"Guanajuato","COIM780815PDA","COIM780815HGTPRR02","COPADO IRINEO MARIO ALBERTO",1,0,0,0,0,0,0,7,35,0,0,0,0,0,0,0,1,35,0,37498.99]
[null,"Guanajuato","GORD8312168D4","GORD831216MGTMVL06","GOMEZ RIVERA DULCE MARIA MONSERRAT",1,0,0,0,0,0,0,7,35,0,0,0,0,0,0,0,1,35,0,34343.99]
[null,"Guanajuato","QUCL890311NE9","QUCL890311HGTNNS07","QUINTINO CINTORA LUIS ALBERTO",1,0,0,0,0,0,0,7,35,0,0,0,0,0,0,0,1,35,0,39278.370000000003]
[null,"Guanajuato","GUMJ870317R44","GUMJ870317HGTRRN00","GUERRERO MARTINEZ JONAS",1,0,0,0,0,0,0,7,35,0,0,0,0,0,0,0,1,35,0,35726.49]
[null,"Guanajuato","JUEC8408019SA","JUEC840801MGTRSR08","JUAREZ ESPITIA MARIA DEL CARMEN IVONNE",1,0,0,0,0,0,0,7,35,0,0,0,0,0,0,0,1,35,0,35953.99]
[null,"Guanajuato","AAGB8305061P7","AAGB830506MGTYTR02","AYALA GUTIERREZ BRENDA",1,0,0,0,0,0,0,7,35,0,0,0,0,0,0,0,1,35,0,35481.49]
[null,"Guanajuato","HECG7108185E0","HECG710818HGTRBR07","HERNANDEZ CABEZA GERARDO",1,0,0,0,0,0,0,7,35,0,0,0,0,0,0,0,1,35,0,36618.99]
[null,"Guanajuato","GUMM920308B42","GUMM920308MGTRJN03","GUERRERO MEJIA MONICA JUANA",1,0,0,0,0,0,0,7,35,0,0,0,0,0,0,0,1,35,0,36968.99]
[null,"Guanajuato","IAJM900213S93","IAJM900213HGTBSR04","IBARRA JASSO MARIO ALBERTO",1,0,0,0,0,0,0,7,35,0,0,0,0,0,0,0,1,35,0,35376.49]
[null,"Guanajuato","EICS8311094H1","EICS831109MGTLNN06","ELIAS CONTRERAS SANDRA ELISA",1,0,0,0,0,0,0,7,35,0,0,0,0,0,0,0,1,35,0,34798.99]
[null,"Guanajuato","CAOC8910102C1","CAOC891010MGTSRR04","CASTAÑEDA ORNELAS MARIA CRUZ",1,0,0,0,0,0,0,7,35,0,0,0,0,0,0,0,1,35,0,34798.99]
[null,"Guanajuato","LAGG8705075P8","LAGG870507MGTGRS08","LAGUNA GUERRERO GISELA",1,0,0,0,0,0,0,7,35,0,0,0,0,0,0,0,1,35,0,36968.99]
[null,"Guanajuato","SOBF761123PU9","SOBF761123HGTLRR07","SOLORZANO BERNAL FRANCISCO",1,0,0,0,0,0,0,7,35,0,0,0,0,0,0,0,1,35,0,37848.99]
[null,"Guanajuato","HELM710411QS6","HELM710411MGTRDR02","HERNANDEZ LEDESMA MARTHA ANGELICA",1,0,0,0,0,0,0,7,35,0,0,0,0,0,0,0,1,35,0,41328.15]
[null,"Guanajuato","MANL580917DN5","MANL580917HGTRXS04","MARTINEZ NUÑEZ JOSE LUIS",1,0,0,0,0,0,0,7,35,0,0,0,0,0,0,0,1,35,0,36618.99]
[null,"Guanajuato","COSL800716SL8","COSL800716MGTRRD08","CORTES SIERRA LIDIA CAROLINA",1,0,0,0,0,0,0,7,35,0,0,0,0,0,0,0,1,35,0,36058.99]
[null,"Guanajuato","EARF920415UJ8","EARF920415MGTSDT17","ESTRADA RODRIGUEZ FATIMA YAZMIN",1,0,0,0,0,0,0,7,35,0,0,0,0,0,0,0,1,35,0,33364.379999999997]
[null,"Guanajuato","RIRZ9005014I8","RIRZ900501MMCCJZ06","RICO ROJAS ZAZIL",1,0,0,0,0,0,0,7,35,0,0,0,0,0,0,0,1,35,0,29978.36]
[null,"Guanajuato","GAGY780903491","GAGY780903MDFLMS06","GALVAN GAMEZ YOSELIN AIMEE",1,0,0,0,0,0,0,7,35,0,0,0,0,0,0,0,1,35,0,29425.24]
[null,"Guanajuato","AUNC890701HB6","AUNC890701MQTGXR05","AGUADO NUÑEZ MARIA CRISTINA",1,0,0,0,0,0,0,7,35,0,0,0,0,0,0,0,1,35,0,30034.6]
[null,"Guanajuato","FECM8910217I9","FECM891021MDFRVR01","FERREIRA CUEVAS MARIANA GUISELA",1,0,0,0,0,0,0,7,35,0,0,0,0,0,0,0,1,35,0,30587.72]
[null,"Guanajuato","BARA700515RH6","BARA700515MGTRML07","BARBOSA RAMIREZ ALMA VELIA",1,0,0,0,0,0,0,7,35,0,0,0,0,0,0,0,1,35,0,34846.519999999997]
[null,"Guanajuato","AIMM891226K29","AIMM891226MMCMXR03","AMBRIZ MUÑOZ MARIANA",1,0,0,0,0,0,0,7,35,0,0,0,0,0,0,0,1,35,0,29222.12]
[null,"Guanajuato","DUPS9001267KA","DUPS900126MGTRRN08","DURAN PRADO SANDRA IVONNE",1,0,0,0,0,0,0,7,35,0,0,0,0,0,0,0,1,35,0,30440.84]
[null,"Guanajuato","PACM931219CM1","PACM931219MDGLBY03","PLASCENCIA CABRERA MAYLEN NOEMI",1,0,0,0,0,0,0,7,35,0,0,0,0,0,0,0,1,35,0,30237.72]
[null,"Guanajuato","JAAX8707291Z3","JAAX870729MCLRRC03","JARA ARRIAGA XOCHITL YUVICELA",1,0,0,0,0,0,0,7,35,0,0,0,0,0,0,0,1,35,0,33893.89]
[null,"Guanajuato","VATL701230M12","VATL701230MGTLRZ04","VALLE TORRES LUZ MARIA",1,0,0,0,0,0,0,7,35,0,0,0,0,0,0,0,1,35,0,30034.6]
[null,"Guanajuato","JAAA741109NM2","JAAA741109MGTSGL04","JASSO AGUILERA ALMA PATRICIA",1,0,0,0,0,0,0,7,35,0,0,0,0,0,0,0,1,35,0,34343.99]
[null,"Guanajuato","CASE871206B31","CASE871206HGTSND05","CASTAÑEDA SAENZ JOSE EDUARDO",1,0,0,0,0,0,0,7,35,0,0,0,0,0,0,0,1,35,0,35726.49]
[null,"Guanajuato","ROVK831026QX5","ROVK831026MGTSZR01","ROSAS VAZQUEZ MARIA KARINA",1,0,0,0,0,0,0,7,35,0,0,0,0,0,0,0,1,35,0,35934.21]
[null,"Guanajuato","CAGJ791209EN4","CAGJ791209HGTRTR01","CARDENAS GUTIERREZ JORGE ADRIAN",1,0,0,0,0,0,0,7,35,0,0,0,0,0,0,0,1,35,0,34571.49]
[null,"Guanajuato","VEVS760824QM4","VEVS760824MGTNLL09","VENEGAS VILLALOBOS SILVINA ELIZABETH",1,0,0,0,0,0,0,7,35,0,0,0,0,0,0,0,1,35,0,36163.99]
[null,"Guanajuato","CADI801221FT5","CADI801221HGTRSS00","CARDENAS DIOSDADO ISRAEL",1,0,0,0,0,0,0,7,35,0,0,0,0,0,0,0,1,35,0,38098.480000000003]
[null,"Guanajuato","NIJV910312FZ6","NIJV910312HDFTSC07","NIETO JASSO VICTOR DAVID",1,0,0,0,0,0,0,7,35,0,0,0,0,0,0,0,1,35,0,68154.899999999994]
[null,"Guanajuato","TOFM860110TE7","TOFM860110MGTRNR00","TORRES FUENTES MARTHA EDITH",1,0,0,0,0,0,0,7,35,0,0,0,0,0,0,0,1,35,0,36279.660000000003]
[null,"Guanajuato","GOOG7802057F2","GOOG780205HGTNRD04","GONZALEZ ORTEGA JOSE GUADALUPE",1,0,0,0,0,0,0,7,35,0,0,0,0,0,0,0,1,35,0,36863.99]
[null,"Guanajuato","VERT861015NB6","VERT861015MGTRMR01","VERDE RAMIREZ TERESA",1,0,0,0,0,0,0,7,35,0,0,0,0,0,0,0,1,35,0,41678.15]
[null,"Guanajuato","TOFF601228VB5","TOFF601228HGTRGR04","TORRES FIGUEROA FRANCISCO JAVIER",1,0,0,0,0,0,0,7,35,0,0,0,0,0,0,0,1,35,0,36618.99]
[null,"Guanajuato","MOPS740919966","MOPS740919MMCRRL01","MORENO PARADA SILVIA",1,0,0,0,0,0,0,7,35,0,0,0,0,0,0,0,1,35,0,33627.800000000003]
[null,"Guanajuato","NAMR8410165H3","NAMR841016MGTVRS07","NAVARRO MARTINEZ ROSALINDA",1,0,0,0,0,0,0,7,35,0,0,0,0,0,0,0,1,35,0,31140.84]
[null,"Guanajuato","MAGG810106790","MAGG810106MGTRNR04","MARTINEZ GONZALEZ GRACIELA",1,0,0,0,0,0,0,7,35,0,0,0,0,0,0,0,1,35,0,34650.129999999997]
[null,"Guanajuato","AAAL860804UN9","AAAL860804MTSBZD03","ABRAHAM AZUARA LUDIM",1,0,0,0,0,0,0,7,35,0,0,0,0,0,0,0,1,35,0,38854.720000000001]
[null,"Guanajuato","EAAJ8712218X3","EAAJ871221MMCSLS09","ESCAMILLA ALVAREZ MARIA DE JESUS",1,0,0,0,0,0,0,7,35,0,0,0,0,0,0,0,1,35,0,35049.64]
[null,"Guanajuato","HUSM771116C7A","HUSM771116MMNNLR06","HUANTE SILVA MARIZA",1,0,0,0,0,0,0,7,35,0,0,0,0,0,0,0,1,35,0,34846.519999999997]
[null,"Guanajuato","MERM890606QX7","MERM890606MGTNYY01","MENDOZA REYES MYRIAM DE LOS ANGELES",1,0,0,0,0,0,0,7,35,0,0,0,0,0,0,0,1,35,0,30847.08]
[null,"Guanajuato","ZAZJ9610201D4","ZAZJ961020HQTRRN09","ZARAZUA ZARAZUA JONATAN REMBERTO",1,0,0,0,0,0,0,7,35,0,0,0,0,0,0,0,1,35,0,30034.6]
[null,"Guanajuato","FAHG7612098T1","FAHG761209MGTLRD03","FALCON HERNANDEZ MA. GUADALUPE",1,0,0,0,0,0,0,7,35,0,0,0,0,0,0,0,1,35,0,34300.129999999997]
[null,"Guanajuato","RILM750601TH0","RILM750601MOCSSG04","RIOS LUIS MAGDALENA",1,0,0,0,0,0,0,7,35,0,0,0,0,0,0,0,1,35,0,34343.99]
[null,"Guanajuato","MENM790123EM1","MENM790123MGTDVR00","MEDEL NAVARRETE MIRIAM DE LOS ANGELES GABRIELA",1,0,0,0,0,0,0,7,35,0,0,0,0,0,0,0,1,35,0,31197.08]
[null,"Guanajuato","GUGJ930811J60","GUGJ930811MGTRNS05","GUERRERO GONZALEZ MARIA JOSE",1,0,0,0,0,0,0,7,35,0,0,0,0,0,0,0,1,35,0,29767.11]
[null,"Guanajuato","LEGJ871018F93","LEGJ871018MGTDNN02","LEDEZMA GONZALEZ JENIFER",1,0,0,0,0,0,0,7,35,0,0,0,0,0,0,0,1,35,0,31377.08]
[null,"Guanajuato","JABE820909HH0","JABE820909MGTSLL04","JASSO BALLEZA ELOISA",1,0,0,0,0,0,0,7,35,0,0,0,0,0,0,0,1,35,0,33837.65]
[null,"Guanajuato","PITJ930828Q89","PITJ930828HGTCRN07","PICON TORRES JONATHAN EDUARDO",1,0,0,0,0,0,0,7,35,0,0,0,0,0,0,0,1,35,0,34300.129999999997]
[null,"Guanajuato","AOJM820726EC0","AOJM820726HGTRRR08","ARGOTE JUAREZ MARIO",1,0,0,0,0,0,0,7,35,0,0,0,0,0,0,0,1,35,0,32440.6]
[null,"Guanajuato","NADP821016J68","NADP821016MGTVRL01","NAVARRO DURAN MARIA DEL PILAR",1,0,0,0,0,0,0,7,35,0,0,0,0,0,0,0,1,35,0,41678.15]
[null,"Guanajuato","RORD790510T10","RORD790510MGTMML09","ROMERO RAMIREZ DULCE MARIA",1,0,0,0,0,0,0,7,35,0,0,0,0,0,0,0,1,35,0,36618.99]
[null,"Guanajuato","CUFC8809064X4","CUFC880906MOCRNY08","CRUZ FUENTES CYNTHIA",1,0,0,0,0,0,0,7,35,0,0,0,0,0,0,0,1,35,0,29959]
[null,"Guanajuato","FOAP6704124J5","FOAP670412MGTLLT01","FLORES ALVAREZ PATRICIA",1,0,0,0,0,0,0,7,35,0,0,0,0,0,0,0,1,35,0,34515.22]
[null,"Guanajuato","MEMS601125CV5","MEMS601125HMNNLM04","MENDOZA MALDONADO SAMUEL",1,0,0,0,0,0,0,7,35,0,0,0,0,0,0,0,1,35,0,47370.83]
[null,"Guanajuato","OESD9012116A0","OESD901211MGTRVL05","ORTEGA SAAVEDRA DOLORES GUADALUPE",1,0,0,0,0,0,0,7,35,0,0,0,0,0,0,0,1,35,0,30237.72]
[null,"Guanajuato","SEGE921103JEA","SEGE921103MMNRRS05","SERRATO GARCIA ESTEFANIA",1,0,0,0,0,0,0,7,35,0,0,0,0,0,0,0,1,35,0,34300.129999999997]
[null,"Guanajuato","MISA810907T8A","MISA810907MGTRLL02","MIRANDA SALAZAR ALICIA",1,0,0,0,0,0,0,7,35,0,0,0,0,0,0,0,1,35,0,30181.48]
[null,"Guanajuato","MADS8906296J1","MADS890629MGTRMR05","MARTINEZ DOMINGUEZ SUREY VIRIDIANA",1,0,0,0,0,0,0,7,35,0,0,0,0,0,0,0,1,35,0,30707.56]
[null,"Guanajuato","VAMM8611122V7","VAMM861112MGTZCY00","VAZQUEZ MACARENA MAYRA",1,0,0,0,0,0,0,7,35,0,0,0,0,0,0,0,1,35,0,35240.129999999997]
[null,"Guanajuato","LOLG8002136P9","LOLG800213HGTPNS03","LOPEZ LUNA GUSTAVO",1,0,0,0,0,0,0,7,35,0,0,0,0,0,0,0,1,35,0,36286.49]
[null,"Guanajuato","AIML940210D95","AIML940210MGTRNZ09","ARVIZU MONTES LUZ PATRICIA",1,0,0,0,0,0,0,7,35,0,0,0,0,0,0,0,1,35,0,32130.880000000001]
[null,"Guanajuato","REFE870611H65","REFE870611HGTYNL02","REYES FUENTES ELI JUAN RUBEN",1,0,0,0,0,0,0,7,35,0,0,0,0,0,0,0,1,35,0,37301.49]
[null,"Guanajuato","MAFR721206U28","MAFR721206MGTRLC04","MARTINEZ FLORES ROCIO ANEL",1,0,0,0,0,0,0,7,35,0,0,0,0,0,0,0,1,35,0,36618.99]
[null,"Guanajuato","GORA840728TD1","GORA840728MDFNMN07","GONZALEZ RAMOS ANA LAURA",1,0,0,0,0,0,0,7,35,0,0,0,0,0,0,0,1,35,0,37120.69]
[null,"Guanajuato","CACJ850212C85","CACJ850212HGTMMN05","CAMARILLO CAMARILLO JUAN MIGUEL",1,0,0,0,0,0,0,7,35,0,0,0,0,0,0,0,1,35,0,34300.129999999997]
[null,"Guanajuato","VAPM701212VE4","VAPG701212MGTLRD04","VALADEZ PEREZ MA. GUADALUPE",1,0,0,0,0,0,0,7,35,0,0,0,0,0,0,0,1,35,0,34300.129999999997]
[null,"Guanajuato","JUCR790316G8A","JUCR790316HGTRPL02","JUAREZ CAPETILLO RAUL HERIBERTO",1,0,0,0,0,0,0,7,35,0,0,0,0,0,0,0,1,35,0,34650.129999999997]
[null,"Guanajuato","CAGK871023GK5","CAGK871023MGTDDR07","CAUDILLO GODINEZ KARLA ESTEFANA",1,0,0,0,0,0,0,7,35,0,0,0,0,0,0,0,1,35,0,34977.620000000003]
[null,"Guanajuato","VARJ8610196J7","VARJ861019HGTZMV06","VAZQUEZ RAMIREZ JAVIER ALEJANDRO",1,0,0,0,0,0,0,7,35,0,0,0,0,0,0,0,1,35,0,30181.48]
[null,"Guanajuato","RERR850915EW0","RERR850915HGTGDY04","REGALADO RODRIGUEZ JOSE REYES",1,0,0,0,0,0,0,7,35,0,0,0,0,0,0,0,1,35,0,36636.49]
[null,"Guanajuato","ROGA8911109P7","ROGA891110MMNJRN09","ROJAS GARCIA MARIA DE LOS ANGELES",1,0,0,0,0,0,0,7,35,0,0,0,0,0,0,0,1,35,0,47370.83]
[null,"Guanajuato","EAOM860526KN2","EAOM860526HASSCR02","ESPARZA OCHOA MARIANO",1,0,0,0,0,0,0,7,35,0,0,0,0,0,0,0,1,35,0,77459.22]
[null,"Guanajuato","PAEB921210T37","PAEB921210HCHLNR04","PALOMINO ENRIQUEZ BRIAN KEDWIN",1,0,0,0,0,0,0,7,35,0,0,0,0,0,0,0,1,35,0,34515.22]
[null,"Guanajuato","PERK9310249I6","PERK931024MGTRCR03","PEREZ ROCHA KARLA FERNANDA",1,0,0,0,0,0,0,7,35,0,0,0,0,0,0,0,1,35,0,36557.56]
[null,"Guanajuato","RAJR920212P12","RAJR920212HGTMRB07","RAMIREZ JUAREZ ROBERTO",1,0,0,0,0,0,0,7,35,0,0,0,0,0,0,0,1,35,0,36907.56]
[null,"Guanajuato","SAES9003201Z8","SAES900320MGTLSL08","SALDAÑA ESTRADA SELMA ALEJANDRA",1,0,0,0,0,0,0,7,35,0,0,0,0,0,0,0,1,35,0,68154.899999999994]
[null,"Guanajuato","SIHC930621FS8","SIHC930621MGTLRR01","SILVA HERNANDEZ CARMEN LAURA",1,0,0,0,0,0,0,7,35,0,0,0,0,0,0,0,1,35,0,30792.23]
[null,"Guanajuato","AIMF9209181C4","AIMF920918MJCVCL02","AVILA MACIAS FLOR SOFIA",1,0,0,0,0,0,0,7,35,0,0,0,0,0,0,0,1,35,0,30891.95]
[null,"Guanajuato","JAAM880824146","JAAM880824MCLRRR06","JARA ARRIAGA MARISOL IBETH",1,0,0,0,0,0,0,7,35,0,0,0,0,0,0,0,1,35,0,29707.8]
[null,"Guanajuato","CAPA8005264B4","CAPA800526MGTMRN08","CAMACHO PRADO ANA RUTH",1,0,0,0,0,0,0,7,35,0,0,0,0,0,0,0,1,35,0,31167.57]
[null,"Guanajuato","MACB900101238","MACB900101MGTRRR07","MARTINEZ CRUZ BRENDA ARACELI",1,0,0,0,0,0,0,7,35,0,0,0,0,0,0,0,1,35,0,37205.94]
[null,"Guanajuato","PEJR701210KIA","PEJR701210HSLRRB08","PEREZ JUAREZ RUBEN",1,0,0,0,0,0,0,7,35,0,0,0,0,0,0,0,1,35,0,77459.22]
[null,"Guanajuato","SAPA740111LK4","SAPA740111HOCNCB03","SANDOVAL PACHECO ABDON",1,0,0,0,0,0,0,7,35,0,0,0,0,0,0,0,1,35,0,68154.899999999994]
[null,"Guanajuato","GUVJ850624HM6","GUVJ850624HGTZYN02","GUZMAN VIEYRA JUAN MIGUEL",1,0,0,0,0,0,0,7,35,0,0,0,0,0,0,0,1,35,0,68154.899999999994]
[null,"Guanajuato","DITJ760122R33","DITJ760122HGTZRN01","DIAZ TORRES JUAN GABRIEL",1,0,0,0,0,0,0,7,35,0,0,0,0,0,0,0,1,35,0,68154.899999999994]
[null,"Guanajuato","CIRJ660404UI3","CIRJ660404HGTFMN03","CIFUENTES RAMIREZ JUAN SIMITRIO",1,0,0,0,0,0,0,7,35,0,0,0,0,0,0,0,1,35,0,47370.83]
[null,"Guanajuato","GAVR910621UJ2","GAVR910621HGTRLL01","GRANADOS VALLE RAUL ALEJANDRO",1,0,0,0,0,0,0,7,35,0,0,0,0,0,0,0,1,35,0,36068.44]
[null,"Guanajuato","PEGH8706085G5","PEGH870608HGTDNM01","PEDROZA GONZALEZ JOSE HUMBERTO",1,0,0,0,0,0,0,7,35,0,0,0,0,0,0,0,1,35,0,33268.15]
[null,"Guanajuato","HUSA860811CJ2","HUSA860811MGTRRN07","HURTADO SUAREZ MARIA DE LOS ANGELES",1,0,0,0,0,0,0,7,35,0,0,0,0,0,0,0,1,35,0,30403.51]
[null,"Guanajuato","FOLI910518MEA","FOLI910518HGTLPS09","FLORES LOPEZ ISRAEL",1,0,0,0,0,0,0,7,35,0,0,0,0,0,0,0,1,35,0,37158.15]
[null,"Guanajuato","HEEI750809EB5","HEEI750809HGTRSS09","HERNANDEZ ESCOGIDO ISIDORO DE SEVILLA",1,0,0,0,0,0,0,7,35,0,0,0,0,0,0,0,1,35,0,32871.96]
[null,"Guanajuato","TESR910120NP3","TESR910120MGTRLS09","TERAN SALAZAR MARIA DEL ROSARIO",1,0,0,0,0,0,0,7,35,0,0,0,0,0,0,0,1,35,0,37384.71]
[null,"Guanajuato","PIEA861225MB2","PIEA861225MGTCSL06","PICHARDO ESTRADA ALMA ROSA",1,0,0,0,0,0,0,7,35,0,0,0,0,0,0,0,1,35,0,37134.71]
[null,"Guanajuato","RADL770820MV0","RADL770820HGTMZS07","RAMIREZ DIAZ LUIS ALEJANDRO",1,0,0,0,0,0,0,7,35,0,0,0,0,0,0,0,1,35,0,31732.55]
[null,"Guanajuato","RASE881027V79","RASE881027MGTMNL08","RAMIREZ SANCHEZ ELIA PATRICIA",1,0,0,0,0,0,0,7,35,0,0,0,0,0,0,0,1,35,0,31382.55]
[null,"Guanajuato","GOLC950116TN4","GOLC950116HGTMPR09","GOMEZ LOPEZ CARLOS ADEMIR EUSEBIO",1,0,0,0,0,0,0,7,35,0,0,0,0,0,0,0,1,35,0,30682.55]
[null,"Guanajuato","GOAR790919E90","GOAR790919MGTNLS24","GONZALEZ ALEJOS ROSA MARIA",1,0,0,0,0,0,0,7,35,0,0,0,0,0,0,0,1,35,0,35374.21]
[null,"Guanajuato","MOHC8308189E4","MOHC830818MGTRRL03","MORENO HERNANDEZ CLAUDIA GABRIELA",1,0,0,0,0,0,0,7,35,0,0,0,0,0,0,0,1,35,0,35344.21]
[null,"Guanajuato","ROHG921225D70","ROHG921225MGTDRL00","RODRIGUEZ HERNANDEZ GLORIA LORENA BEATRIZ",1,0,0,0,0,0,0,7,35,0,0,0,0,0,0,0,1,35,0,18274.66]
[null,"Guanajuato","HEMF950111UT8","HEMF950111HGTRRR04","HERNANDEZ MARTINEZ FRANCISCO ANTONIO",1,0,0,0,0,0,0,7,35,0,0,0,0,0,0,0,1,35,0,30788.81]
[null,"Guanajuato","GUND770803A3A","GUND770803HGTTTN01","GUTIERREZ NIETO DANIEL ADRIAN",1,0,0,0,0,0,0,7,35,0,0,0,0,0,0,0,1,35,0,30438.81]
[null,"Guanajuato","FAOI930617PD8","FAOI930617HGTRRS09","FRAUSTO ORTEGA JOSE ISAAC",1,0,0,0,0,0,0,7,35,0,0,0,0,0,0,0,1,35,0,30032.57]
[null,"Guanajuato","OELM6606116J8","OELM660611MGTRRR05","ORNELAS LARA MARTINA",1,0,0,0,0,0,0,7,35,0,0,0,0,0,0,0,1,35,0,31019.45]
[null,"Guanajuato","RORN9208142L3","RORN920814HGTBYX07","ROBLEDO REYES NOE",1,0,0,0,0,0,0,7,35,0,0,0,0,0,0,0,1,35,0,32390.01]
[null,"Guanajuato","SAVI790314155","SAVI790314HDFCZV05","SAUCEDO VAZQUEZ IVAN ALEJANDRO",1,0,0,0,0,0,0,7,35,0,0,0,0,0,0,0,1,35,0,47370.83]
[null,"Guanajuato","AACB730812874","AACB730812MGTLMR05","ALAMILLO CAMPOS BERTHA",1,0,0,0,0,0,0,7,35,0,0,0,0,0,0,0,1,35,0,33923.11]
[null,"Guanajuato","TICH8812318M5","TICH881231HGTNHG09","TINAJERO CHAVEZ HUGO ARTURO",1,0,0,0,0,0,0,7,35,0,0,0,0,0,0,0,1,35,0,38530.61]
[null,"Guanajuato","MABR6903188Z5","MABR690318MGTRRS05","MARES BERMUDEZ ROSA MARIA",1,0,0,0,0,0,0,7,35,0,0,0,0,0,0,0,1,35,0,87687.42]
[null,"Guanajuato","HEVR811022TY1","HEVR811022HGTRZM01","HERNANDEZ VAZQUEZ RAMON",1,0,0,0,0,0,0,7,35,0,0,0,0,0,0,0,1,35,0,68154.960000000006]
[null,"Guanajuato","SAHR940212LQ2","SAHR940212MGTNRT03","SANTANA HERNANDEZ RUTH NOEMI",1,0,0,0,0,0,0,7,35,0,0,0,0,0,0,0,1,35,0,34737.56]
[null,"Guanajuato","MAOK821228CK5","MAOK821228MSPRYR01","MARTINEZ OYERVIDES KARLA MARISOL",1,0,0,0,0,0,0,7,35,0,0,0,0,0,0,0,1,35,0,34282.559999999998]
[null,"Guanajuato","VAMN910423257","VAMN910423MGTZRL04","VAZQUEZ MARMOLEJO NELIDA DEL ROCIO",1,0,0,0,0,0,0,7,35,0,0,0,0,0,0,0,1,35,0,30806.47]
[null,"Guanajuato","GOSR910123H36","GOSR910123HGTNNC05","GONZALEZ SANCHEZ RICARDO",1,0,0,0,0,0,0,7,35,0,0,0,0,0,0,0,1,35,0,47370.83]
[null,"Guanajuato","ROSJ8606133W9","ROSJ860613MGTDRN05","RODRIGUEZ SARDINA JUANA CECILIA",1,0,0,0,0,0,0,7,35,0,0,0,0,0,0,0,1,35,0,47370.83]
[null,"Guanajuato","MEGR800907M89","MEGR800907MGTNPC03","MENDOZA GUAPO ROCIO",1,0,0,0,0,0,0,7,35,0,0,0,0,0,0,0,1,35,0,77459.22]
[null,"Guanajuato","ROPD690404V35","ROPD690404MGTCRL06","ROCHA PEREZ MARIA DOLORES",1,0,0,0,0,0,0,7,35,0,0,0,0,0,0,0,1,35,0,27419.9]
[null,"Guanajuato","RARP730620RE1","RARP730620MOCMXL03","RAMIREZ DEL RIO PAULA GABRIELA",1,0,0,0,0,0,0,7,35,0,0,0,0,0,0,0,1,35,0,27964.42]
[null,"Guanajuato","JIRD9407185E8","JIRD940718MGTMMN07","JIMENEZ RAMIREZ DANIELA",1,0,0,0,0,0,0,7,35,0,0,0,0,0,0,0,1,35,0,25234.89]
[null,"Guanajuato","NAVJ901126FT5","NAVJ901126HGTVNR02","NAVARRO VENEGAS JORGE",1,0,0,0,0,0,0,7,35,0,0,0,0,0,0,0,1,35,0,27964.42]
[null,"Guanajuato","CALG9502062R5","CALG950206MGTLPL01","CALDERON LOPEZ GLORIA ESTHER",1,0,0,0,0,0,0,7,35,0,0,0,0,0,0,0,1,35,0,25031.77]
[null,"Guanajuato","CURJ930104DI4","CURJ930104HGTLML08","CUELLAR RAMIREZ JULIO CESAR",1,0,0,0,0,0,0,7,35,0,0,0,0,0,0,0,1,35,0,21923.79]
[null,"Guanajuato","MOCF920813MF7","MOCF920813MGTNMR00","MONTECILLO CAMACHO MARIA FERNANDA",1,0,0,0,0,0,0,7,35,0,0,0,0,0,0,0,1,35,0,19824.09]
[null,"Guanajuato","PERM831017791","PERM831017MGTRMR00","PEREZ RAMIREZ MARIANA",1,0,0,0,0,0,0,7,35,0,0,0,0,0,0,0,1,35,0,19824.09]
[null,"Guanajuato","PAGA670111I35","PAGA670111HNTLRR03","PALOMARES GARCIA ARMANDO",1,0,0,0,0,0,0,7,35,0,0,0,0,0,0,0,1,35,0,11359.15]
[null,"Guanajuato","REPC540808QI9","REPC540808MGTNRN06","RENTERIA PEREZ MARIA CONCEPCION",1,0,0,0,0,0,0,7,35,0,0,0,0,0,0,0,1,35,0,54915.99]
[null,"Guanajuato","SACA4609287F8","SACA460928MGTNRL03","SANCHEZ CARRASCO MA. ALEJANDRINA CARMEN",1,0,0,0,0,0,0,7,35,0,0,0,0,0,0,0,1,35,0,38921.120000000003]
[null,"Guanajuato","VILR670220CZ3","VILR670220MGTLNM04","VILLANUEVA LUNA RAMONA",1,0,0,0,0,0,0,7,35,0,0,0,0,0,0,0,1,35,0,47741.31]
[null,"Guanajuato","RIRJ650926ED3","RIRJ650926HGTCMX07","RICO RAMIREZ J.JESUS",1,0,0,0,0,0,0,7,35,0,0,0,0,0,0,0,1,35,0,40952.79]
[null,"Guanajuato","DUVE540209Q63","DUVE540209HGTRLR06","DURAN VALDIVIA ERNESTO",1,0,0,0,0,0,0,7,35,0,0,0,0,0,0,0,1,35,0,45466.31]
[null,"Guanajuato","ROVR580704ND4","ROVR580704HVZXLB09","ROA VELAZQUEZ ROBERTO",1,0,0,0,0,0,0,7,35,0,0,0,0,0,0,0,1,35,0,68829.899999999994]
[null,"Guanajuato","MAGE550714NZ1","MAGE550714HGTRNS03","MARTINEZ GONZALEZ ESTEBAN",1,0,0,0,0,0,0,7,35,0,0,0,0,0,0,0,1,35,0,47741.31]
[null,"Guanajuato","LUOE610116R96","LUOE610116HDGNLM05","LUNA OLAGUE EMILIO",1,0,0,0,0,0,0,7,35,0,0,0,0,0,0,0,1,35,0,46399.09]
[null,"Guanajuato","SAAP650303N74","SAAP650303MGTNLT02","SANCHEZ ALVARADO PATRICIA",1,0,0,0,0,0,0,7,35,0,0,0,0,0,0,0,1,35,0,37844.6]
[null,"Guanajuato","BAVG670930HU0","BAVG670930MGTRZD05","BARCENAS VAZQUEZ MA. GUADALUPE",1,0,0,0,0,0,0,7,35,0,0,0,0,0,0,0,1,35,0,47331.81]
[null,"Guanajuato","PAGT5911092P8","PAGT591109HGTLRD01","PALMERIN GARCIA TEODORO",1,0,0,0,0,0,0,7,35,0,0,0,0,0,0,0,1,35,0,46876.81]
[null,"Guanajuato","HESF670102636","HESF670102HGTRLR07","HERNANDEZ SILVA FERMIN",1,0,0,0,0,0,0,7,35,0,0,0,0,0,0,0,1,35,0,46754.69]
[null,"Guanajuato","GOGR650725KF1","GOGR650725HGTNRB02","GONZALEZ GARCIA ROBERTO",1,0,0,0,0,0,0,7,35,0,0,0,0,0,0,0,1,35,0,45739.31]
[null,"Guanajuato","AILP690120TW9","AILP690120MSPRNT09","ARCIGA LEON PATRICIA DE JESUS",1,0,0,0,0,0,0,7,35,0,0,0,0,0,0,0,1,35,0,42818.33]
[null,"Guanajuato","AURM640517UH3","AURM640517HGTGCR01","AGUIRRE RICO MARTIN",1,0,0,0,0,0,0,7,35,0,0,0,0,0,0,0,1,35,0,37980.589999999997]
[null,"Guanajuato","CAVJ620328P75","CAVG620328HGTHRD03","CHAVEZ VARGAZ J. GUADALUPE",1,0,0,0,0,0,0,7,35,0,0,0,0,0,0,0,1,35,0,47127.09]
[null,"Guanajuato","COPG660114BC1","COPG660114HGTNLR03","CONTRERAS PALACIOS GERARDO LUIS",1,0,0,0,0,0,0,7,35,0,0,0,0,0,0,0,1,35,0,47127.09]
[null,"Guanajuato","TOAN630405S63","TOXA630405HGTLXN01","TOLENTINO  JOSE ANTONIO",1,0,0,0,0,0,0,7,35,0,0,0,0,0,0,0,1,35,0,43159.45]
[null,"Guanajuato","GOND6504247RA","GOND650424MGTNXL03","GONZALEZ NIÑO DALIA SONIA",1,0,0,0,0,0,0,7,35,0,0,0,0,0,0,0,1,35,0,38443.79]
[null,"Guanajuato","HECR621219RI5","HECR621219MGTRRS02","HERNANDEZ CARDENAS MARIA DEL ROSARIO",1,0,0,0,0,0,0,7,35,0,0,0,0,0,0,0,1,35,0,45682.35]
[null,"Guanajuato","BARA6501175H5","BARA650117MGTRDN02","BARRERA RODRIGUEZ ANTONIA",1,0,0,0,0,0,0,7,35,0,0,0,0,0,0,0,1,35,0,46358.87]
[null,"Guanajuato","GOGL670809V8A","GOGL670809HGTNRS00","GONZALEZ GARCIA LUIS ALBERTO",1,0,0,0,0,0,0,7,35,0,0,0,0,0,0,0,1,35,0,45350.31]
[null,"Guanajuato","RAOM680518SX1","RAOM680518MMNNCR06","RANGEL OCHOA MARIBEL",1,0,0,0,0,0,0,7,35,0,0,0,0,0,0,0,1,35,0,16331.2]
[null,"Guanajuato","OOPM650124AG1","OOPM650124HGTRRG05","OROZCO PEREZ MIGUEL",1,0,0,0,0,0,0,7,35,0,0,0,0,0,0,0,1,35,0,46717.59]
[null,"Guanajuato","MEGG6409203P0","MEGG640920HGTDLR04","MEDINA GALVAN GERARDO",1,0,0,0,0,0,0,7,35,0,0,0,0,0,0,0,1,35,0,41347.01]
[null,"Guanajuato","FOQP690616QU0","FOQP690616MGTLVT01","FLORES QUEVEDO PETRA",1,0,0,0,0,0,0,7,35,0,0,0,0,0,0,0,1,35,0,44442.59]
[null,"Guanajuato","VAQJ581212JV2","VAQG581212HGTLJD08","VALENCIA QUIJAS J. GUADALUPE",1,0,0,0,0,0,0,7,35,0,0,0,0,0,0,0,1,35,0,42727.23]
[null,"Guanajuato","TAML5306213J5","TAML530621HGTPRS02","TAPIA MARTINEZ JOSE LUIS",1,0,0,0,0,0,0,7,35,0,0,0,0,0,0,0,1,35,0,34826.230000000003]
[null,"Guanajuato","COOD541119637","COOD541119MGTNRL00","CONTRERAS ORDUÑA DULCE MARIA ELIZABETH",1,0,0,0,0,0,0,7,35,0,0,0,0,0,0,0,1,35,0,47329.01]
[null,"Guanajuato","GUSS6608135L6","GUSS660813MGTRNF04","GUERRERO SANDOVAL SOFIA",1,0,0,0,0,0,0,7,35,0,0,0,0,0,0,0,1,35,0,43887.57]
[null,"Guanajuato","VARA71012288A","VARA710122MGTRMN01","VARGAS RAMIREZ MARIA DE LOS ANGELES",1,0,0,0,0,0,0,7,35,0,0,0,0,0,0,0,1,35,0,45011.43]
[null,"Guanajuato","CAJU6804082V6","CAXJ680408MGTMXN08","CAMACHO  JUANA MARIA",1,0,0,0,0,0,0,7,35,0,0,0,0,0,0,0,1,35,0,45963.05]
[null,"Guanajuato","PACL700401SI9","PACL700401MGTRHR04","PRADO CHAVEZ LAURA",1,0,0,0,0,0,0,7,35,0,0,0,0,0,0,0,1,35,0,43661.48]
[null,"Guanajuato","GUMA6701215Q1","GUMA670121MGTTRN09","GUTIERREZ MORENO ANA",1,0,0,0,0,0,0,7,35,0,0,0,0,0,0,0,1,35,0,45615.43]
[null,"Guanajuato","GOMI721001DE2","GOMI721001MDFNJN03","GONZALEZ MUJICA INES ROSARIO",1,0,0,0,0,0,0,7,35,0,0,0,0,0,0,0,1,35,0,34401.72]
[null,"Guanajuato","VAPR690730J94","VAPR690730MGTZNS03","VAZQUEZ PONCE ROSA LAURA",1,0,0,0,0,0,0,7,35,0,0,0,0,0,0,0,1,35,0,50544.02]
[null,"Guanajuato","VINF7009219V8","VINF700921HGTLXR06","VILCHES NUÑEZ FRANCISCO ALFONSO",1,0,0,0,0,0,0,7,35,0,0,0,0,0,0,0,1,35,0,47812.93]
[null,"Guanajuato","MAGM6404092N1","MAGM640409MGTNNR08","MANDUJANO GONZALEZ MARTA",1,0,0,0,0,0,0,7,35,0,0,0,0,0,0,0,1,35,0,46512.93]
[null,"Guanajuato","GOGA680110DL7","GOGA680110MGTNYN00","GONZALEZ GAYTAN ANA BERTHA",1,0,0,0,0,0,0,7,35,0,0,0,0,0,0,0,1,35,0,46021.51]
[null,"Guanajuato","AUGA6812277W5","AUGA681227MGTGRN03","AGUILAR GARCIA ANA MARIA",1,0,0,0,0,0,0,7,35,0,0,0,0,0,0,0,1,35,0,35123.64]
[null,"Guanajuato","MAAL680513MP3","MAAL680513MMNRNZ01","MARTINEZ ANDRADE MARIA DE LA LUZ",1,0,0,0,0,0,0,7,35,0,0,0,0,0,0,0,1,35,0,42951.11]
[null,"Guanajuato","FEET711003EB8","FEET711003MGTLSR05","FELIX ESTRELLA TERESA",1,0,0,0,0,0,0,7,35,0,0,0,0,0,0,0,1,35,0,43859.42]
[null,"Guanajuato","COMM660914G87","COMR660914MGTNDC09","CONCHA MEDINA MA. DEL ROCIO",1,0,0,0,0,0,0,7,35,0,0,0,0,0,0,0,1,35,0,39698.79]
[null,"Guanajuato","MEVG630915G81","MEVG630915MGTRRD08","MERCADO VARELA MA. GUADALUPE",1,0,0,0,0,0,0,7,35,0,0,0,0,0,0,0,1,35,0,41337.199999999997]
[null,"Guanajuato","PACP681127IL7","PACP681127MGTRHT00","PRADO CHAVEZ PATRICIA",1,0,0,0,0,0,0,7,35,0,0,0,0,0,0,0,1,35,0,43465.17]
[null,"Guanajuato","PECA660503AR0","PECA660503MGTRBN07","PEREZ CABELLO ANTONIA",1,0,0,0,0,0,0,7,35,0,0,0,0,0,0,0,1,35,0,39112.120000000003]
[null,"Guanajuato","CACF6710055H4","CACF671005HGTLDR06","CALDERON CAUDILLO FRANCISCO",1,0,0,0,0,0,0,7,35,0,0,0,0,0,0,0,1,35,0,44965.87]
[null,"Total Personas : ",{"$f":"SUM(Tabla11[Centros de Trabajo])","v":325},null,null,null,null,null,null,null,null,null,null,null,null,null,null,null,null,null,null,"Total Recursos Ejercidos:",null,null,{"$f":"SUBTOTAL(109,Tabla11[Total de recursos presupuestales ejercidos en servicios personales en el periodo\n(2)])","v":13457986.69000002}]
[]
[null,"Fuente : Información proporcionada por las Entidades Federativas."]

{"sheet":"II C y 1_","index":5,"n_rows":346,"n_cols":22,"rows_kept":346,"cut":false,"hidden":false,"merged":[[340,18,340,19],[11,6,12,6],[11,7,12,7],[11,18,11,19],[11,3,12,3],[11,4,12,4],[8,1,8,8],[11,1,12,1],[11,2,12,2],[11,5,12,5],[11,20,12,20],[11,21,12,21],[11,8,12,8],[11,9,11,15],[11,16,12,16],[11,17,12,17]]}
[]
[]
[]
[]
[]
[]
[]
[null,"Formato: Personal Federalizado por Registro Federal de Contribuyentes"]
[null,{"$f":"IF('Caratula Resumen'!D22=\"Elige el Periodo…\",\"\",'Caratula Resumen'!D22)","v":"Fondo de Aportaciones para la Educación Tecnológica y de Adultos/Instituto Nacional para la Educación de los Adultos (FAETA/INEA)"},null,null,null,null,null,null,null,null,null,null,null,null,null,null,null,null,null,null,{"$f":"'A Y  II D3'!X10","v":"4to. Trimestre 2017"}]
[]
[]
[null,"Entidad Federativa","Clave CT","Turno","RFC","CURP","Nombre","Funcion Real","Horas que labora en el Centro de Trabajo","Clave Presupuestal",null,null,null,null,null,null,"Tipo de Categoría","Identificador de Contrato de Honorarios","Periodo de efecto de pago en el trimestre",null,"Percepciones pagadas en el Periodo de Comisión con Presupuesto Federal*","Percepciones pagadas en el Periodo de Comisión con Presupuesto de otra fuente*"]
[null,null,null,null,null,null,null,null,null,"Partida Presupuestal","Código de Pago","Clave de Unidad","Clave de Sub Unidad","Clave de Categoría","Horas Semana Mes ","Número de Plaza",null,null,"Inicial","Termino"]
[]
[null,"Entidad Federativa","Clave CT","Turno","RFC","CURP","Nombre","Funcion Real","Horas que labora en el Centro de Trabajo","Partida Presupuestal","Código de Pago","Clave de Unidad","Clave de Sub Unidad","Clave de Categoría","Horas semana mes","Número de plaza","Tipo de Categoría","Identificador de Contrato de Honorarios","Periodo de efecto de pago en el trimestre\nInicial","Periodo de efecto de pago en el trimestre\nTermino","Percepciones pagadas en el Periodo de Comisión con Presupuesto Federal*","Percepciones pagadas en el Periodo de Comisión con Presupuesto de otra fuente*"]
[null,"GUANAJUATO","11EBS0027E",100,"REPC540808QI9","REPC540808MGTNRN06","RENTERIA PEREZ MARIA CONCEPCION","TECNICO DOCENTE",35,83101,1,7,5,"T03820",0,216,2,null,null,null,7658.14,0]
[null,"GUANAJUATO","11EBS0027E",100,"SACA4609287F8","SACA460928MGTNRL03","SANCHEZ CARRASCO MA. ALEJANDRINA CARMEN","ESPECIALISTA EN PROYECTOS TECNICOS",35,83101,1,7,4,"T03810",0,103,2,null,null,null,5793.74,0]
[null,"GUANAJUATO","11EBS0027E",100,"ROSJ600516BL3","ROSJ600516MGTBNN05","ROBLES SANTANA JUANA","TECNICO DOCENTE",35,83101,1,7,4,"T03820",0,250,2,null,null,null,6938.76,0]
[null,"GUANAJUATO","11EBS0027E",100,"CACP630616HG8","CACP630616MGTLHT16","CALDERON CHAVEZ MA. PATRICIA DOLORES","TECNICO MEDIO",35,83101,1,7,4,"T03803",0,90,2,null,null,null,5550,0]
[null,"GUANAJUATO","11EBS0027E",100,"PAQF701109SJ2","PAQF701109HGTRNL00","PAREDON QUINTERO FILEMON","TECNICO DOCENTE",35,83101,1,7,4,"T03820",0,290,2,null,null,null,6938.76,0]
[null,"GUANAJUATO","11EBS0027E",100,"EASG700512IU9","EASG700512MCMSNR00","ESCAMILLA SANCHEZ GRACIELA","JEFE DE OFICINA",35,83101,1,7,4,"A01807",0,1492,2,null,null,null,6144.29,0]
[null,"GUANAJUATO","11EBS0027E",100,"VARA570811AR0","VARA570811MVZLDN06","VALERIO RODRIGUEZ ANA YOLANDA","TECNICO DOCENTE",35,83101,1,7,4,"T03820",0,291,2,null,null,null,6938.76,0]
[null,"GUANAJUATO","11EBS0027E",100,"AEPB811216AUA","AEPB811216MGTRLL03","ARREGUIN PALMA BLANCA BERENICE","PROFESIONAL DICTAMINADOR DE SERVICIOS ESPECIALIZADOS",35,83101,1,7,3,"CF21865",0,1521,2,null,null,null,7909.9,0]
[null,"GUANAJUATO","11EBS0027E",100,"GOPS8011178I3","GOPS801117MGTMRN09","GOMEZ PEREZ MARIA SANDRA","SECRETARIA C",35,83101,1,7,4,"A03804",0,265,2,null,null,null,5062.51,0]
[null,"GUANAJUATO","11EBS0027E",100,"REGJ781111QG6","REGJ781111HGTYRN09","REYES GUERRERO JUAN MANUEL","JEFE DE DEPARTAMENTO",35,83101,1,7,4,"CF01059",0,138,2,null,null,null,12959.87,0]
[null,"GUANAJUATO","11EBS0027E",100,"FOMJ7811187W8","FOMJ781118HGTLDN07","FLORES MEDINA JUAN PABLO","TECNICO DOCENTE",35,83101,1,7,4,"T03820",0,68,2,null,null,null,6563.4,0]
[null,"GUANAJUATO","11EBS0027E",100,"TOMG850829D80","TOMG850829HGTRRD08","DE LA TORRE MARQUEZ JOSE GUADALUPE","OFICIAL DE SERVICIOS Y MANTENIMIENTO",35,83101,1,7,4,"S01803",0,77,2,null,null,null,5422.72,0]
[null,"GUANAJUATO","11EBS0027E",100,"ROBC900904U49","ROBC900904MDFCZT03","ROCHA BAEZA CITLALLIN MARGARITA","PROFESIONAL DICTAMINADOR DE SERVICIOS ESPECIALIZADOS",35,83101,1,7,3,"CF21865",0,123,2,null,null,null,7909.9,0]
[null,"GUANAJUATO","11EBS0027E",100,"SEER810904RN6","SEER810904HGTRSF07","SERRATO ESPINOSA RAFAEL","JEFE DE OFICINA",35,83101,1,7,4,"A01807",0,94,2,null,null,null,5748.44,0]
[null,"GUANAJUATO","11EBS0027E",100,"HERA790725FQ8","HERA790725MGTRDL08","HERNANDEZ RODRIGUEZ ALEJANDRA","ANALISTA ADMINISTRATIVO",35,83101,1,7,4,"A01806",0,221,2,null,null,null,5527.86,0]
[null,"GUANAJUATO","11EBS0027E",100,"ZAGJ830623IG5","ZAGJ830623MGTVLN06","ZAVALA GALLEGOS JUANA","ANALISTA ADMINISTRATIVO",35,83101,1,7,4,"A01806",0,162,2,null,null,null,5527.86,0]
[null,"GUANAJUATO","11EBS0027E",100,"RAML6801057F2","RAML680105MMNMCN00","RAMIREZ MACEDO LINDA","TECNICO DOCENTE",35,83101,1,7,4,"T03820",0,156,2,null,null,null,6495.15,0]
[null,"GUANAJUATO","11EBS0027E",100,"MOSR650129V62","MOSR650129MGTRNF09","MORONES SANCHEZ MA. DEL REFUGIO","TECNICO DOCENTE",35,83101,1,7,4,"T03820",0,193,2,null,null,null,6495.15,0]
[null,"GUANAJUATO","11EBS0027E",100,"AEAJ851118LC0","AEAJ851118HGTRCN00","ARMENTA ACEVEDO JUAN CARLOS","TECNICO DOCENTE",35,83101,1,7,4,"T03820",0,214,2,null,null,null,6495.15,0]
[null,"GUANAJUATO","11EBS0027E",100,"MADS8906296J1","MADS890629MGTRMR05","MARTINEZ DOMINGUEZ SUREY VIRIDIANA","ESPECIALISTA EN PROYECTOS TECNICOS",35,83101,1,7,4,"T03810",0,83,2,null,null,null,4529.32,0]
[null,"GUANAJUATO","11EBS0027E",100,"VAMM8611122V7","VAMM861112MGTZCY00","VAZQUEZ MACARENA MAYRA","ESPECIALISTA EN PROYECTOS TECNICOS",35,83101,1,7,4,"T03810",0,76,2,null,null,null,4569.32,0]
[null,"GUANAJUATO","11EBS0027E",100,"LOLG8002136P9","LOLG800213HGTPNS03","LOPEZ LUNA GUSTAVO","TECNICO DOCENTE",35,83101,1,7,4,"T03820",0,65,2,null,null,null,5528.66,0]
[null,"GUANAJUATO","11EBS0027E",100,"AIML940210D95","AIML940210MGTRNZ09","ARVIZU MONTES LUZ PATRICIA","JEFE DE OFICINA",35,83101,1,7,4,"A01807",0,86,2,null,null,null,4781.1899999999996,0]
[null,"GUANAJUATO","11EBS0027E",100,"REFE870611H65","REFE870611HGTYNL02","REYES FUENTES ELI JUAN RUBEN","TECNICO SUPERIOR",35,83101,1,7,3,"T03823",0,1512,2,null,null,null,5528.66,0]
[null,"GUANAJUATO","11EBS0027E",100,"MAFR721206U28","MAFR721206MGTRLC04","MARTINEZ FLORES ROCIO ANEL","TECNICO DOCENTE",35,83101,1,7,4,"T03820",0,319,2,null,null,null,5528.66,0]
[null,"GUANAJUATO","11EBS0027E",100,"GORA840728TD1","GORA840728MDFNMN07","GONZALEZ RAMOS ANA LAURA","JEFE DE OFICINA",35,83101,1,7,4,"A01807",0,130,2,null,null,null,5160.54,0]
[null,"GUANAJUATO","11EBS0027E",100,"CACJ850212C85","CACJ850212HGTMMN05","CAMARILLO CAMARILLO JUAN MIGUEL","ADMINISTRATIVO ESPECIALIZADO",35,83101,1,7,4,"A01803",0,21,2,null,null,null,4529.32,0]
[null,"GUANAJUATO","11EBS0027E",100,"VAPM701212VE4","VAPG701212MGTLRD04","VALADEZ PEREZ MA. GUADALUPE","TECNICO MEDIO",35,83101,1,7,4,"T03803",0,134,2,null,null,null,4529.32,0]
[null,"GUANAJUATO","11EBS0027E",100,"JUCR790316G8A","JUCR790316HGTRPL02","JUAREZ CAPETILLO RAUL HERIBERTO","ESPECIALISTA EN PROYECTOS TECNICOS",35,83101,1,7,4,"T03810",0,46,2,null,null,null,4529.32,0]
[null,"GUANAJUATO","11EBS0027E",100,"CAGK871023GK5","CAGK871023MGTDDR07","CAUDILLO GODINEZ KARLA ESTEFANA","ANALISTA ADMINISTRATIVO",35,83101,1,7,4,"A01806",0,59,2,null,null,null,4610.62,0]
[null,"GUANAJUATO","11EBS0027E",100,"VARJ8610196J7","VARJ861019HGTZMV06","VAZQUEZ RAMIREZ JAVIER ALEJANDRO","SECRETARIA C",35,83101,1,7,4,"A03804",0,43,2,null,null,null,4529.32,0]
[null,"GUANAJUATO","11EBS0027E",100,"RERR850915EW0","RERR850915HGTGDY04","REGALADO RODRIGUEZ JOSE REYES","TECNICO DOCENTE",35,83101,1,7,4,"T03820",0,41,2,null,null,null,5528.66,0]
[null,"GUANAJUATO","11EBS0027E",100,"VILR670220CZ3","VILR670220MGTLNM04","VILLANUEVA LUNA RAMONA","TECNICO DOCENTE",35,83101,1,7,4,"T03820",0,261,2,null,null,null,7382.38,0]
[null,"GUANAJUATO","11EBS0027E",100,"RIRJ650926ED3","RIRJ650926HGTCMX07","RICO RAMIREZ J.JESUS","ANALISTA ADMINISTRATIVO",35,83101,1,7,4,"A01806",0,58,2,null,null,null,5549.05,0]
[null,"GUANAJUATO","11EBS0027E",100,"DUVE540209Q63","DUVE540209HGTRLR06","DURAN VALDIVIA ERNESTO","TECNICO DOCENTE",35,83101,1,7,4,"T03820",0,212,2,null,null,null,7382.38,0]
[null,"GUANAJUATO","11EBS0027E",100,"ROVR580704ND4","ROVR580704HVZXLB09","ROA VELAZQUEZ ROBERTO","COORDINADOR REGIONAL/ ZONA",35,83101,1,7,4,"CF36014",0,160,2,null,null,null,11471.65,0]
[null,"GUANAJUATO","11EBS0027E",100,"MAGE550714NZ1","MAGE550714HGTRNS03","MARTINEZ GONZALEZ ESTEBAN","TECNICO DOCENTE",35,83101,1,7,4,"T03820",0,67,2,null,null,null,7382.38,0]
[null,"GUANAJUATO","11EBS0027E",100,"LUOE610116R96","LUOE610116HDGNLM05","LUNA OLAGUE EMILIO","TECNICO DOCENTE",35,83101,1,7,4,"T03820",0,244,2,null,null,null,7348.26,0]
[null,"GUANAJUATO","11EBS0027E",100,"BEMS700226KJ6","BEMS700226HGTCNL00","BECERRA MANDUJANO SALVADOR","TECNICO DOCENTE",35,83101,1,7,4,"T03820",0,296,2,null,null,null,6938.76,0]
[null,"GUANAJUATO","11EBS0027E",100,"MOGC720409SJ9","MOGC720409MGTJZL04","MOJICA GUZMAN CLAUDIA ELISA","TECNICO DOCENTE",35,83101,1,7,4,"T03820",0,293,2,null,null,null,6501.2,0]
[null,"GUANAJUATO","11EBS0027E",100,"COOM721217SVA","COOM721217MGTNLN02","CONTRERAS OLMOS MA. MANUELA","TECNICO DOCENTE",35,83101,1,7,4,"T03820",0,101,2,null,null,null,6938.76,0]
[null,"GUANAJUATO","11EBS0027E",100,"RICR7705149U3","RICR770514HGTVRB05","RIVERA CORONILLA ROBERTO CARLOS","TECNICO DOCENTE",35,83101,1,7,4,"T03820",0,299,2,null,null,null,6978.76,0]
[null,"GUANAJUATO","11EBS0027E",100,"CAEJ651225BV9","CAEJ651225HVZHSS03","CHAGALA ESPEJO JESUS","TECNICO DOCENTE",35,83101,1,7,4,"T03820",0,300,2,null,null,null,6501.2,0]
[null,"GUANAJUATO","11EBS0027E",100,"CAGR690302HRA","CAGR690302MGTMMS03","CAMPOS GOMEZ MA. DEL ROSARIO","SECRETARIA C",35,83101,1,7,4,"A03804",0,126,2,null,null,null,5788.34,0]
[null,"GUANAJUATO","11EBS0027E",100,"OEMJ730208CX6","OEMM730208HGTJDR00","OJEDA MEDINA J. MERCED","TECNICO DOCENTE",35,83101,1,7,4,"T03820",0,125,2,null,null,null,6495.15,0]
[null,"GUANAJUATO","11EBS0027E",100,"MALA730704I26","MALA730704HGTRPR02","MARQUEZ LOPEZ ARNULFO","TECNICO DOCENTE",35,83101,1,7,4,"T03820",0,191,2,null,null,null,6535.15,0]
[null,"GUANAJUATO","11EBS0027E",100,"VALF830903IU4","VALF830903HGTLNR07","VALDEZ LANDIN FRANCISCO JAVIER","TECNICO DOCENTE",35,83101,1,7,4,"T03820",0,188,2,null,null,null,5665.16,0]
[null,"GUANAJUATO","11EBS0027E",100,"GURV740105E98","GURV740105MGTRDR07","GUERRERO RODRIGUEZ VERONICA","SECRETARIA C",35,83101,1,7,4,"A03804",0,147,2,null,null,null,5392.25,0]
[null,"GUANAJUATO","11EBS0027E",100,"UORV800303CD1","UORV800303MGTLNR08","ULLOA RANGEL VERONICA","SECRETARIA C",35,83101,1,7,4,"A03804",0,51,2,null,null,null,5001.57,0]
[null,"GUANAJUATO","11EBS0027E",100,"OEGL8003134Z8","OEGL800313MGTRMR09","ORTEGA GAMIÑO LAURA AMERICA","PROFESIONAL DICTAMINADOR DE SERVICIOS ESPECIALIZADOS",35,83101,1,7,1,"CF21865",0,1527,2,null,null,null,7859.9,0]
[null,"GUANAJUATO","11EBS0027E",100,"CAAB610110HC5","CAAB610110MGTRRR07","CARPIO ARAGON BERTHA ANGELICA","TECNICO DOCENTE",35,83101,1,7,4,"T03820",0,272,2,null,null,null,5528.66,0]
[null,"GUANAJUATO","11EBS0027E",100,"LAMZ780504N49","LAMZ780504MSLRNN01","LARA MENDIVIL ZINTIA DENISE","TECNICO DOCENTE",35,83101,1,7,4,"T03820",0,288,2,null,null,null,5708.75,0]
[null,"GUANAJUATO","11EBS0027E",100,"SAAP650303N74","SAAP650303MGTNLT02","SANCHEZ ALVARADO PATRICIA","ESPECIALISTA EN PROYECTOS TECNICOS",35,83101,1,7,4,"T03810",0,121,2,null,null,null,5763.28,0]
[null,"GUANAJUATO","11EBS0027E",100,"BAVG670930HU0","BAVG670930MGTRZD05","BARCENAS VAZQUEZ MA. GUADALUPE","TECNICO DOCENTE",35,83101,1,7,4,"T03820",0,178,2,null,null,null,7314.13,0]
[null,"GUANAJUATO","11EBS0027E",100,"PAGT5911092P8","PAGT591109HGTLRD01","PALMERIN GARCIA TEODORO","TECNICO DOCENTE",35,83101,1,7,4,"T03820",0,263,2,null,null,null,7314.13,0]
[null,"GUANAJUATO","11EBS0027E",100,"HECS730303TG6","HECS730303MGTRNS05","HERNANDEZ CANTERO SUSANA TERESA","TECNICO MEDIO",35,83101,1,7,4,"T03803",0,243,2,null,null,null,5788.34,0]
[null,"GUANAJUATO","11EBS0027E",100,"JUAA750702KJ9","JUAA750702HGTRRN04","JUAREZ ARROYO JOSE ANDRES","TECNICO DOCENTE",35,83101,1,7,4,"T03820",0,302,2,null,null,null,6938.76,0]
[null,"GUANAJUATO","11EBS0027E",100,"GOSL721116725","GOSL721116HGTRSS06","GORDILLO SOSA LUIS JAVIER","TECNICO DOCENTE",35,83101,1,7,4,"T03820",0,303,2,null,null,null,7214.52,0]
[null,"GUANAJUATO","11EBS0027E",100,"MOCK900306NE6","MOCK900306MDFRSR15","MORENO CASTILLO KAREN ANEL","TECNICO DOCENTE",35,83101,1,7,4,"T03820",0,210,2,null,null,null,6358.65,0]
[null,"GUANAJUATO","11EBS0027E",100,"GACC7402201D0","GACC740220MVZRYL09","GARCIA CAYETANO CLAUDIA","TECNICO DOCENTE",35,83101,1,7,4,"T03820",0,74,2,null,null,null,6358.65,0]
[null,"GUANAJUATO","11EBS0027E",100,"GORE840602N47","GORE840602HGTNDM00","GONZALEZ RODRIGUEZ EMMANUEL","TECNICO DOCENTE",35,83101,1,7,4,"T03820",0,276,2,null,null,null,6358.65,0]
[null,"GUANAJUATO","11EBS0027E",100,"ROPD690404V35","ROPD690404MGTCRL06","ROCHA PEREZ MARIA DOLORES","ANALISTA ADMINISTRATIVO",35,83101,1,7,2,"CF34810",0,25,2,null,null,null,4517.1499999999996,0]
[null,"GUANAJUATO","11EBS0027E",100,"RARP730620RE1","RARP730620MOCMXL03","RAMIREZ DEL RIO PAULA GABRIELA","TECNICO DOCENTE",35,83101,1,7,4,"T03820",0,305,2,null,null,null,5528.66,0]
[null,"GUANAJUATO","11EBS0027E",100,"JIRD9407185E8","JIRD940718MGTMMN07","JIMENEZ RAMIREZ DANIELA","TECNICO MEDIO",35,83101,1,7,4,"T03803",0,19,2,null,null,null,4529.32,0]
[null,"GUANAJUATO","11EBS0027E",100,"NAVJ901126FT5","NAVJ901126HGTVNR02","NAVARRO VENEGAS JORGE","TECNICO DOCENTE",35,83101,1,7,4,"T03820",0,226,2,null,null,null,5528.66,0]
[null,"GUANAJUATO","11EBS0027E",100,"CALG9502062R5","CALG950206MGTLPL01","CALDERON LOPEZ GLORIA ESTHER","SECRETARIA C",35,83101,1,7,4,"A03804",0,12,2,null,null,null,4529.32,0]
[null,"GUANAJUATO","11EBS0027E",100,"CURJ930104DI4","CURJ930104HGTLML08","CUELLAR RAMIREZ JULIO CESAR","TECNICO DOCENTE",35,83101,1,7,4,"T03820",0,98,2,null,null,null,5528.66,0]
[null,"GUANAJUATO","11EBS0027E",100,"MUHD640208LB9","MUHD640208MDFXRL08","MUÑOZ HERRERA MARIA DOLORES","TECNICO DOCENTE",35,83101,1,7,4,"T03820",0,301,2,null,null,null,6938.76,0]
[null,"GUANAJUATO","11EBS0027E",100,"MOTE6904283LA","MOTE690428MGTRRL09","MORALES TORRES ELVIRA","TECNICO DOCENTE",35,83101,1,7,4,"T03820",0,237,2,null,null,null,6904.65,0]
[null,"GUANAJUATO","11EBS0027E",100,"MAAC750527A26","MAAC750527MGTRGR07","MARTINEZ AGREDA CAROLINA","ESPECIALISTA EN PROYECTOS TECNICOS",35,83101,1,7,4,"T03810",0,115,2,null,null,null,5016.82,0]
[null,"GUANAJUATO","11EBS0027E",100,"MISR800307LH4","MISR800307MGTRLS07","MIRANDA SALAZAR ROSAURA","ANALISTA ADMINISTRATIVO",35,83101,1,7,4,"A01806",0,313,2,null,null,null,5871.95,0]
[null,"GUANAJUATO","11EBS0027E",100,"QULC671003EH8","QULC671003MDFRPL03","QUIROZ LOPEZ CLAUDIA REYNA","TECNICO DOCENTE",35,83101,1,7,4,"T03820",0,259,2,null,null,null,6904.65,0]
[null,"GUANAJUATO","11EBS0027E",100,"RIRS751216TU4","RIRS751216MDFSMN07","RIOS RAMOS SONIA","TECNICO DOCENTE",35,83101,1,7,4,"T03820",0,278,2,null,null,null,6467.09,0]
[null,"GUANAJUATO","11EBS0027E",100,"ROPP680417AU8","ROPP680417MGTDRT05","RODRIGUEZ PEREZ PATRICIA","TECNICO DOCENTE",35,83101,1,7,4,"T03820",0,287,2,null,null,null,6904.65,0]
[null,"GUANAJUATO","11EBS0027E",100,"ROGA8911109P7","ROGA891110MMNJRN09","ROJAS GARCIA MARIA DE LOS ANGELES","PROFESIONAL DICTAMINADOR DE SERVICIOS ESPECIALIZADOS",35,83101,1,7,5,"CF21865",0,49,2,null,null,null,7859.9,0]
[null,"GUANAJUATO","11EBS0027E",100,"EAOM860526KN2","EAOM860526HASSCR02","ESPARZA OCHOA MARIANO","JEFE DE DEPARTAMENTO",35,83101,1,7,2,"CF01059",0,109,2,null,null,null,12909.87,0]
[null,"GUANAJUATO","11EBS0027E",100,"PAEB921210T37","PAEB921210HCHLNR04","PALOMINO ENRIQUEZ BRIAN KEDWIN","COORDINADOR DE SERVICIOS ESPECIALIZADOS",35,83101,1,7,1,"CF33849",0,1534,2,null,null,null,5728.24,0]
[null,"GUANAJUATO","11EBS0027E",100,"PERK9310249I6","PERK931024MGTRCR03","PEREZ ROCHA KARLA FERNANDA","TECNICO DOCENTE",35,83101,1,7,4,"T03820",0,1509,2,null,null,null,5528.66,0]
[null,"GUANAJUATO","11EBS0027E",100,"RAJR920212P12","RAJR920212HGTMRB07","RAMIREZ JUAREZ ROBERTO","TECNICO DOCENTE",35,83101,1,7,4,"T03820",0,1503,2,null,null,null,5528.66,0]
[null,"GUANAJUATO","11EBS0027E",100,"SAES9003201Z8","SAES900320MGTLSL08","SALDAÑA ESTRADA SELMA ALEJANDRA","COORDINADOR REGIONAL/ ZONA",35,83101,1,7,1,"CF36014",0,136,2,null,null,null,11359.15,0]
[null,"GUANAJUATO","11EBS0027E",100,"SIHC930621FS8","SIHC930621MGTLRR01","SILVA HERNANDEZ CARMEN LAURA","ADMINISTRATIVO ESPECIALIZADO",35,83101,1,7,1,"A01803",0,1482,2,null,null,null,4529.32,0]
[null,"GUANAJUATO","11EBS0027E",100,"AIMF9209181C4","AIMF920918MJCVCL02","AVILA MACIAS FLOR SOFIA","ANALISTA ADMINISTRATIVO",35,83101,1,7,3,"A01806",0,1483,2,null,null,null,4610.62,0]
[null,"GUANAJUATO","11EBS0027E",100,"JAAM880824146","JAAM880824MCLRRR06","JARA ARRIAGA MARISOL IBETH","ANALISTA ADMINISTRATIVO",35,83101,1,7,3,"A01806",0,1484,2,null,null,null,4610.62,0]
[null,"GUANAJUATO","11EBS0027E",100,"CAPA8005264B4","CAPA800526MGTMRN08","CAMACHO PRADO ANA RUTH","ANALISTA ADMINISTRATIVO",35,83101,1,7,3,"A01806",0,1485,2,null,null,null,4610.62,0]
[null,"GUANAJUATO","11EBS0027E",100,"MACB900101238","MACB900101MGTRRR07","MARTINEZ CRUZ BRENDA ARACELI","TECNICO SUPERIOR",35,83101,1,7,3,"T03823",0,1514,2,null,null,null,5528.66,0]
[null,"GUANAJUATO","11EBS0027E",100,"HESF670102636","HESF670102HGTRLR07","HERNANDEZ SILVA FERMIN","JEFE DE OFICINA",35,83101,1,7,4,"A01807",0,148,2,null,null,null,6507.14,0]
[null,"GUANAJUATO","11EBS0027E",100,"GOGR650725KF1","GOGR650725HGTNRB02","GONZALEZ GARCIA ROBERTO","TECNICO DOCENTE",35,83101,1,7,4,"T03820",0,108,2,null,null,null,7314.13,0]
[null,"GUANAJUATO","11EBS0027E",100,"AILP690120TW9","AILP690120MSPRNT09","ARCIGA LEON PATRICIA DE JESUS","JEFE DE OFICINA",35,83101,1,7,4,"A01807",0,85,2,null,null,null,6474.16,0]
[null,"GUANAJUATO","11EBS0027E",100,"AURM640517UH3","AURM640517HGTGCR01","AGUIRRE RICO MARTIN","ANALISTA ADMINISTRATIVO",35,83101,1,7,4,"A01806",0,62,2,null,null,null,5846.22,0]
[null,"GUANAJUATO","11EBS0027E",100,"CAVJ620328P75","CAVG620328HGTHRD03","CHAVEZ VARGAZ J. GUADALUPE","TECNICO DOCENTE",35,83101,1,7,4,"T03820",0,282,2,null,null,null,7280.01,0]
[null,"GUANAJUATO","11EBS0027E",100,"COPG660114BC1","COPG660114HGTNLR03","CONTRERAS PALACIOS GERARDO LUIS","TECNICO DOCENTE",35,83101,1,7,4,"T03820",0,118,2,null,null,null,7280.01,0]
[null,"GUANAJUATO","11EBS0027E",100,"TOAN630405S63","TOXA630405HGTLXN01","TOLENTINO  JOSE ANTONIO","TECNICO DOCENTE",35,83101,1,7,4,"T03820",0,122,2,null,null,null,6808.32,0]
[null,"GUANAJUATO","11EBS0027E",100,"GOND6504247RA","GOND650424MGTNXL03","GONZALEZ NIÑO DALIA SONIA","SECRETARIA C",35,83101,1,7,4,"A03804",0,72,2,null,null,null,5321.49,0]
[null,"GUANAJUATO","11EBS0027E",100,"HECR621219RI5","HECR621219MGTRRS02","HERNANDEZ CARDENAS MARIA DEL ROSARIO","JEFE DE OFICINA",35,83101,1,7,4,"A01807",0,274,2,null,null,null,6441.17,0]
[null,"GUANAJUATO","11EBS0027E",100,"BARA6501175H5","BARA650117MGTRDN02","BARRERA RODRIGUEZ ANTONIA","JEFE DE OFICINA",35,83101,1,7,4,"A01807",0,107,2,null,null,null,6441.17,0]
[null,"GUANAJUATO","11EBS0027E",100,"GOGL670809V8A","GOGL670809HGTNRS00","GONZALEZ GARCIA LUIS ALBERTO","TECNICO DOCENTE",35,83101,1,7,4,"T03820",0,144,2,null,null,null,7211.76,0]
[null,"GUANAJUATO","11EBS0027E",100,"RAOM680518SX1","RAOM680518MMNNCR06","RANGEL OCHOA MARIBEL","JEFE DE OFICINA",35,83101,1,7,3,"A01807",0,88,2,null,null,null,6441.17,0]
[null,"GUANAJUATO","11EBS0027E",100,"OOPM650124AG1","OOPM650124HGTRRG05","OROZCO PEREZ MIGUEL","TECNICO DOCENTE",35,83101,1,7,4,"T03820",0,149,2,null,null,null,7211.76,0]
[null,"GUANAJUATO","11EBS0027E",100,"MEGG6409203P0","MEGG640920HGTDLR04","MEDINA GALVAN GERARDO","JEFE DE OFICINA",35,83101,1,7,3,"A01807",0,1489,2,null,null,null,5605.86,0]
[null,"GUANAJUATO","11EBS0027E",100,"FOQP690616QU0","FOQP690616MGTLVT01","FLORES QUEVEDO PETRA","TECNICO DOCENTE",35,83101,1,7,4,"T03820",0,157,2,null,null,null,7211.76,0]
[null,"GUANAJUATO","11EBS0027E",100,"VAQJ581212JV2","VAQG581212HGTLJD08","VALENCIA QUIJAS J. GUADALUPE","TECNICO DOCENTE",35,83101,1,7,4,"T03820",0,165,2,null,null,null,6774.2,0]
[null,"GUANAJUATO","11EBS0027E",100,"TAML5306213J5","TAML530621HGTPRS02","TAPIA MARTINEZ JOSE LUIS","SECRETARIA C",35,83101,1,7,1,"A03804",0,131,2,null,null,null,5260.56,0]
[null,"GUANAJUATO","11EBS0027E",100,"COOD541119637","COOD541119MGTNRL00","CONTRERAS ORDUÑA DULCE MARIA ELIZABETH","JEFE DE OFICINA",35,83101,1,7,4,"A01807",0,172,2,null,null,null,6408.18,0]
[null,"GUANAJUATO","11EBS0027E",100,"GUSS6608135L6","GUSS660813MGTRNF04","GUERRERO SANDOVAL SOFIA","TECNICO DOCENTE",35,83101,1,7,4,"T03820",0,173,2,null,null,null,6740.09,0]
[null,"GUANAJUATO","11EBS0027E",100,"VARA71012288A","VARA710122MGTRMN01","VARGAS RAMIREZ MARIA DE LOS ANGELES","TECNICO DOCENTE",35,83101,1,7,4,"T03820",0,233,2,null,null,null,7041.15,0]
[null,"GUANAJUATO","11EBS0027E",100,"CAJU6804082V6","CAXJ680408MGTMXN08","CAMACHO  JUANA MARIA","JEFE DE OFICINA",35,83101,1,7,4,"A01807",0,284,2,null,null,null,6375.2,0]
[null,"GUANAJUATO","11EBS0027E",100,"PACL700401SI9","PACL700401MGTRHR04","PRADO CHAVEZ LAURA","ANALISTA ADMINISTRATIVO",35,83101,1,7,4,"A01806",0,145,2,null,null,null,6162.2,0]
[null,"GUANAJUATO","11EBS0027E",100,"GUMA6701215Q1","GUMA670121MGTTRN09","GUTIERREZ MORENO ANA","TECNICO DOCENTE",35,83101,1,7,4,"T03820",0,182,2,null,null,null,7217.65,0]
[null,"GUANAJUATO","11EBS0027E",100,"GOMI721001DE2","GOMI721001MDFNJN03","GONZALEZ MUJICA INES ROSARIO","ANALISTA ADMINISTRATIVO",35,83101,1,7,4,"A01806",0,124,2,null,null,null,5361.37,0]
[null,"GUANAJUATO","11EBS0027E",100,"VAPR690730J94","VAPR690730MGTZNS03","VAZQUEZ PONCE ROSA LAURA","JEFE DE OFICINA",35,83101,1,7,4,"A01807",0,111,2,null,null,null,6415.2,0]
[null,"GUANAJUATO","11EBS0027E",100,"VINF7009219V8","VINF700921HGTLXR06","VILCHES NUÑEZ FRANCISCO ALFONSO","TECNICO DOCENTE",35,83101,1,7,4,"T03820",0,184,2,null,null,null,7177.65,0]
[null,"GUANAJUATO","11EBS0027E",100,"MAGM6404092N1","MAGM640409MGTNNR08","MANDUJANO GONZALEZ MARTA","TECNICO DOCENTE",35,83101,1,7,4,"T03820",0,186,2,null,null,null,7177.65,0]
[null,"GUANAJUATO","11EBS0027E",100,"GOGA680110DL7","GOGA680110MGTNYN00","GONZALEZ GAYTAN ANA BERTHA","TECNICO DOCENTE",35,83101,1,7,4,"T03820",0,187,2,null,null,null,7177.65,0]
[null,"GUANAJUATO","11EBS0027E",100,"AUGA6812277W5","AUGA681227MGTGRN03","AGUILAR GARCIA ANA MARIA","ANALISTA ADMINISTRATIVO",35,83101,1,7,4,"A01806",0,152,2,null,null,null,5330.09,0]
[null,"GUANAJUATO","11EBS0027E",100,"MAAL680513MP3","MAAL680513MMNRNZ01","MARTINEZ ANDRADE MARIA DE LA LUZ","TECNICO MEDIO",35,83101,1,7,4,"T03803",0,35,2,null,null,null,5971.15,0]
[null,"GUANAJUATO","11EBS0027E",100,"NAMS5306098W6","NAMS530609MGTRRL00","NARVAEZ MORA SILVIA LAURA","TECNICO DOCENTE",35,83101,1,7,4,"T03820",0,227,2,null,null,null,6904.65,0]
[null,"GUANAJUATO","11EBS0027E",100,"ZAMH6907077M4","ZAMH690707MGTVRR00","ZAVALA MARTINEZ MARIA HERLINDA","TECNICO DOCENTE",35,83101,1,7,4,"T03820",0,195,2,null,null,null,6467.09,0]
[null,"GUANAJUATO","11EBS0027E",100,"SOSM750119S26","SOSM750119MGTRTR02","SORIA SOTO MARTHA","JEFE DE OFICINA",35,83101,1,7,4,"A01807",0,312,2,null,null,null,6078.31,0]
[null,"GUANAJUATO","11EBS0027E",100,"LOLA751009LC7","LOLA751009MGTPNN06","LOPEZ LUNA MA. DE LOS ANGELES","TECNICO DOCENTE",35,83101,1,7,4,"T03820",0,249,2,null,null,null,6910.52,0]
[null,"GUANAJUATO","11EBS0027E",100,"MELR640522PX9","MELR640522MGTNNT06","MENDEZ LEON RITA","TECNICO DOCENTE",35,83101,1,7,4,"T03820",0,153,2,null,null,null,6870.52,0]
[null,"GUANAJUATO","11EBS0027E",100,"CAGR650930FB6","CAGR650930HGTLYB04","CALDERON GAYTAN RUBEN","TECNICO DOCENTE",35,83101,1,7,4,"T03820",0,213,2,null,null,null,6904.65,0]
[null,"GUANAJUATO","11EBS0027E",100,"VIRM731126CL3","VIRM731126MGTLMN06","VILLANUEVA RAMIREZ MARIA MONICA","ANALISTA ADMINISTRATIVO",35,83101,1,7,4,"A01806",0,33,2,null,null,null,5880.67,0]
[null,"GUANAJUATO","11EBS0027E",100,"MAGE751103B16","MAGE751103MGTYTR08","MAYCOTTE GUTIERREZ ERIKA GUADALUPE","ANALISTA ADMINISTRATIVO",35,83101,1,7,4,"A01806",0,170,2,null,null,null,5840.67,0]
[null,"GUANAJUATO","11EBS0027E",100,"FONO7308067J5","FOXN730806MGTLXR04","FLORES  NORMA LILIA","ANALISTA ADMINISTRATIVO",35,83101,1,7,4,"A01806",0,308,2,null,null,null,5840.67,0]
[null,"GUANAJUATO","11EBS0027E",100,"MASV810101DZ8","MASV810101MGTRRR01","MARTINEZ SARABIA VERONICA","TECNICO DOCENTE",35,83101,1,7,4,"T03820",0,116,2,null,null,null,6870.52,0]
[null,"GUANAJUATO","11EBS0027E",100,"AELM6906275A6","AELR690627MGTRPS15","ARREGUIN LOPEZ MA ROSARIO","TECNICO DOCENTE",35,83101,1,7,4,"T03820",0,262,2,null,null,null,6910.52,0]
[null,"GUANAJUATO","11EBS0027E",100,"METC6212134V3","METC621213HGTRPS06","MERINO TAPIA CESAR MARTIN","TECNICO DOCENTE",35,83101,1,7,4,"T03820",0,260,2,null,null,null,6870.52,0]
[null,"GUANAJUATO","11EBS0027E",100,"GOMM610218KG4","GOMM610218MGTNRR05","GONZALEZ MORENO MARTA PATRICIA","SECRETARIA C",35,83101,1,7,4,"A03804",0,315,2,null,null,null,5727.4,0]
[null,"GUANAJUATO","11EBS0027E",100,"GARM751031J11","GARM751031HGTRMS07","GRANADOS RAMOS MOISES","PROFESIONAL DICTAMINADOR DE SERVICIOS ESPECIALIZADOS",35,83101,1,7,4,"CF21865",0,1526,2,null,null,null,7947.4,0]
[null,"GUANAJUATO","11EBS0027E",100,"RACR700730AH9","RACR700730MGTZNB06","RAZO CANO REBECA","TECNICO DOCENTE",35,83101,1,7,4,"T03820",0,286,2,null,null,null,6870.52,0]
[null,"GUANAJUATO","11EBS0027E",100,"GAML720417UE8","GAML720417HGTRRS07","GARCIA MARTINEZ LUIS ALBERTO","TECNICO DOCENTE",35,83101,1,7,4,"T03820",0,289,2,null,null,null,6870.52,0]
[null,"GUANAJUATO","11EBS0027E",100,"FICJ7603185H9","FICT760318HGTRSR03","FRIAS CASTAÑEDA J. TRINIDAD","TECNICO DOCENTE",35,83101,1,7,4,"T03820",0,256,2,null,null,null,6870.52,0]
[null,"GUANAJUATO","11EBS0027E",100,"MACE770912412","MACE770912HQTRHC07","MARTINEZ CHAVEZ ECTOR JAVIER","COORDINADOR REGIONAL/ ZONA",35,83101,1,7,4,"CF36014",0,137,2,null,null,null,11446.66,0]
[null,"GUANAJUATO","11EBS0027E",100,"HEMM781102T78","HEMM781102MGTRNR07","HERNANDEZ MONTOYA MARISELA","TECNICO DOCENTE",35,83101,1,7,4,"T03820",0,229,2,null,null,null,6836.39,0]
[null,"GUANAJUATO","11EBS0027E",100,"HECA7404077F6","HECA740407MGTRND08","HERNANDEZ CANTERO ADRIANA","TECNICO MEDIO",35,83101,1,7,4,"T03803",0,129,2,null,null,null,5757.4,0]
[null,"GUANAJUATO","11EBS0027E",100,"RAJC810331LAA","RAJC810331MGTMRL02","RAMIREZ JARAMILLO CLAUDIA JACQUELINE","TECNICO MEDIO",35,83101,1,7,4,"T03803",0,9,2,null,null,null,5727.4,0]
[null,"GUANAJUATO","11EBS0027E",100,"RARC7011229A3","RARC701122MGTNDR00","RANGEL RODRIGUEZ MA. CARLOTA PATRICIA","TECNICO DOCENTE",35,83101,1,7,4,"T03820",0,245,2,null,null,null,6802.27,0]
[null,"GUANAJUATO","11EBS0027E",100,"AUTC7502082I3","AUTC750208MGTGRN15","AGUILAR TIRADO MA. CONSUELO","TECNICO DOCENTE",35,83101,1,7,4,"T03820",0,228,2,null,null,null,6836.39,0]
[null,"GUANAJUATO","11EBS0027E",100,"CUSG780213V57","CUSG780213HGTRVL03","CRUZ SAAVEDRA GUILIBALDO","TECNICO DOCENTE",35,83101,1,7,4,"T03820",0,179,2,null,null,null,5972.28,0]
[null,"GUANAJUATO","11EBS0027E",100,"FOMO6906162N2","FOMO690616HGTNDS05","FONSECA MEDRANO OSCAR","TECNICO DOCENTE",35,83101,1,7,12,"T03820",0,38,2,null,null,null,6876.39,0]
[null,"GUANAJUATO","11EBS0027E",100,"DOVL720318BXA","DOVL720318HGTMLS06","DOMINGUEZ VALDES JOSE LUIS","TECNICO DOCENTE",35,83101,1,7,4,"T03820",0,236,2,null,null,null,6836.39,0]
[null,"GUANAJUATO","11EBS0027E",100,"BEBJ7508072M7","BEBL750807HQTRRS05","BERRA BORTOLINI J. LUIS","TECNICO DOCENTE",35,83101,1,7,4,"T03820",0,66,2,null,null,null,6398.83,0]
[null,"GUANAJUATO","11EBS0027E",100,"TOSH760727J54","TOSH760727HGTRNC04","TORRES SAENEZ HECTOR DANIEL","TECNICO DOCENTE",35,83101,1,7,4,"T03820",0,64,2,null,null,null,6438.83,0]
[null,"GUANAJUATO","11EBS0027E",100,"RARC7301176A2","RARC730117MGTMVR07","RAMIREZ RIVAS MA. CARINA ALEJANDRA","TECNICO DOCENTE",35,83101,1,7,4,"T03820",0,292,2,null,null,null,6398.83,0]
[null,"GUANAJUATO","11EBS0027E",100,"CAPJ840105CE0","CAPJ840105HGTMRL00","CAMACHO PRADO JULIO CESAR","TECNICO DOCENTE",35,83101,1,7,4,"T03820",0,204,2,null,null,null,5528.66,0]
[null,"GUANAJUATO","11EBS0027E",100,"SAME750520NR8","SAME750520MGTNJR05","SANCHEZ MEJIA ERIKA","TECNICO DOCENTE",35,83101,1,7,4,"T03820",0,95,2,null,null,null,5921.09,0]
[null,"GUANAJUATO","11EBS0027E",100,"LAOJ8212131K9","LAOJ821213HGTRLS09","LARA OLMOS JESUS SAMUEL","TECNICO DOCENTE",35,83101,1,7,4,"T03820",0,224,2,null,null,null,5921.09,0]
[null,"GUANAJUATO","11EBS0027E",100,"LOLB681130LWA","LOLB681130MGTPLT03","LOPEZ LLANOS BEATRIZ","TECNICO DOCENTE",35,83101,1,7,4,"T03820",0,119,2,null,null,null,6398.65,0]
[null,"GUANAJUATO","11EBS0027E",100,"CUPS720728BN7","CUPS720728MGTVSL06","CUEVAS PESCADOR SILVIA","ESPECIALISTA EN PROYECTOS TECNICOS",35,83101,1,7,4,"T03810",0,201,2,null,null,null,4529.32,0]
[null,"GUANAJUATO","11EBS0027E",100,"COBA780319BUA","COBA780319HGTRTN00","CORDOBA BAUTISTA JOSE ANTONIO","ESPECIALISTA EN PROYECTOS TECNICOS",35,83101,1,7,4,"T03810",0,307,2,null,null,null,4529.32,0]
[null,"GUANAJUATO","11EBS0027E",100,"GALA740123JB8","GALA740123MGTLPL08","GALINDO LOPEZ ALMA ROSA","ESPECIALISTA EN PROYECTOS TECNICOS",35,83101,1,7,4,"T03810",0,93,2,null,null,null,4529.32,0]
[null,"GUANAJUATO","11EBS0027E",100,"FOQL7110275I8","FOQL711027MGTLVN02","FLORES QUEVEDO LEONOR","TECNICO MEDIO",35,83101,1,7,4,"T03803",0,18,2,null,null,null,4879.7,0]
[null,"GUANAJUATO","11EBS0027E",100,"MAAC750325Q52","MAAC750325MGTLLR02","MALDONADO ALMANZA MA. DEL CARMEN","SECRETARIA C",35,83101,1,7,4,"A03804",0,220,2,null,null,null,5059.79,0]
[null,"GUANAJUATO","11EBS0027E",100,"PECC830605V49","PECC830605MNEXSN04","PEÑALOZA CISNEROS CINTHYA","JEFE DE OFICINA",35,83101,1,7,4,"A01807",0,1519,2,null,null,null,5583.51,0]
[null,"GUANAJUATO","11EBS0027E",100,"CALM860815G43","CALM860815MJCHNY02","CHAVEZ DE LEÓN MAYRA CAROLINA","PROFESIONAL DICTAMINADOR DE SERVICIOS ESPECIALIZADOS",35,83101,1,7,3,"CF21865",0,1532,2,null,null,null,7859.9,0]
[null,"GUANAJUATO","11EBS0027E",100,"LUMR751129U75","LUMR751129HGTGTC02","LUGO MATA RICARDO ERNESTO","TECNICO DOCENTE",35,83101,1,7,4,"T03820",0,54,2,null,null,null,5528.66,0]
[null,"GUANAJUATO","11EBS0027E",100,"RALE870501NL5","RALE870501MGTMYL02","RAMOS LOYOLA MARIA ELENA","TECNICO DOCENTE",35,83101,1,7,4,"T03820",0,63,2,null,null,null,5528.66,0]
[null,"GUANAJUATO","11EBS0027E",100,"JIAR5906097A6","JIAR590609HVZMNB07","JIMENEZ DEL ANGEL ROBERTO","DIRECTOR/DELEGADO",35,83101,1,7,4,"CF14070",0,27,2,null,null,null,33118.089999999997,0]
[null,"GUANAJUATO","11EBS0027E",100,"HEDM871214861","HEDM871214HGTRLN04","HERNANDEZ DELGADO JOSE MANUEL","TECNICO MEDIO",35,83101,1,7,4,"T03803",0,166,2,null,null,null,4879.7,0]
[null,"GUANAJUATO","11EBS0027E",100,"CAGY820417182","CAGY820417MGTRTJ03","CARDENAS GUTIERREZ YAJAHIRA","TECNICO MEDIO",35,83101,1,7,4,"T03803",0,26,2,null,null,null,4529.32,0]
[null,"GUANAJUATO","11EBS0027E",100,"ROPE881009G46","ROPE881009MGTDRV05","RODRIGUEZ PEREZ EVELIN GUADALUPE","TECNICO DOCENTE",35,83101,1,7,4,"T03820",0,218,2,null,null,null,5528.66,0]
[null,"GUANAJUATO","11EBS0027E",100,"HOHL860601124","HOHL860601MGTRRZ09","HORTA HERNANDEZ LUZ ANGELICA","JEFE DE DEPARTAMENTO",35,83101,1,7,3,"CF01059",0,16,2,null,null,null,12909.87,0]
[null,"GUANAJUATO","11EBS0027E",100,"POLH650106FW2","POLH650106HDFZPG03","POZADA LOPEZ HUGO","COORDINADOR REGIONAL/ ZONA",35,83101,1,7,7,"CF36014",0,45,2,null,null,null,11359.15,0]
[null,"GUANAJUATO","11EBS0027E",100,"COJP700317TZ9","COJP700317HMNRMD06","CORTES JIMENEZ PEDRO","PROFESIONAL DICTAMINADOR DE SERVICIOS ESPECIALIZADOS",35,83101,1,7,3,"CF21865",0,1522,2,null,null,null,7859.9,0]
[null,"GUANAJUATO","11EBS0027E",100,"HEMJ740921F99","HEMJ740921HGTRXN08","HERNANDEZ MUÑOZ JUAN LORENZO","COORDINADOR REGIONAL/ ZONA",35,83101,1,7,4,"CF36014",0,47,2,null,null,null,11359.15,0]
[null,"GUANAJUATO","11EBS0027E",100,"LUGL7801215UA","LUGL780121HGTNRS00","LUNA GUERRA LUIS ALBERTO","COORDINADOR REGIONAL/ ZONA",35,83101,1,7,4,"CF36014",0,280,2,null,null,null,11359.15,0]
[null,"GUANAJUATO","11EBS0027E",100,"LISA7512109V7","LISA751210MGTRLN04","LIRA SALDAÑA ANA ISABEL","COORDINADOR REGIONAL/ ZONA",35,83101,1,7,2,"CF36014",0,143,2,null,null,null,11359.16,0]
[null,"GUANAJUATO","11EBS0027E",100,"HERG640304LK9","HERG640304MGTRDR09","HERNANDEZ RODRIGUEZ GRACIELA","TECNICO DOCENTE",35,83101,1,7,4,"T03820",0,190,2,null,null,null,5528.66,0]
[null,"GUANAJUATO","11EBS0027E",100,"MABM7603207B6","MABM760320MGTCSR01","MACHUCA BUSTAMANTE MARIANA","TECNICO DOCENTE",35,83101,1,7,4,"T03820",0,208,2,null,null,null,5528.66,0]
[null,"GUANAJUATO","11EBS0027E",100,"COIM780815PDA","COIM780815HGTPRR02","COPADO IRINEO MARIO ALBERTO","TECNICO DOCENTE",35,83101,1,7,4,"T03820",0,89,2,null,null,null,5558.66,0]
[null,"GUANAJUATO","11EBS0027E",100,"GORD8312168D4","GORD831216MGTMVL06","GOMEZ RIVERA DULCE MARIA MONSERRAT","TECNICO DOCENTE",35,83101,1,7,4,"T03820",0,232,2,null,null,null,5528.66,0]
[null,"GUANAJUATO","11EBS0027E",100,"QUCL890311NE9","QUCL890311HGTNNS07","QUINTINO CINTORA LUIS ALBERTO","TECNICO DOCENTE",35,83101,1,7,4,"T03820",0,196,2,null,null,null,5921.09,0]
[null,"GUANAJUATO","11EBS0027E",100,"GUMJ870317R44","GUMJ870317HGTRRN00","GUERRERO MARTINEZ JONAS","TECNICO DOCENTE",35,83101,1,7,4,"T03820",0,206,2,null,null,null,5528.66,0]
[null,"GUANAJUATO","11EBS0027E",100,"JUEC8408019SA","JUEC840801MGTRSR08","JUAREZ ESPITIA MARIA DEL CARMEN IVONNE","TECNICO DOCENTE",35,83101,1,7,4,"T03820",0,183,2,null,null,null,5528.66,0]
[null,"GUANAJUATO","11EBS0027E",100,"AAGB8305061P7","AAGB830506MGTYTR02","AYALA GUTIERREZ BRENDA","TECNICO DOCENTE",35,83101,1,7,4,"T03820",0,37,2,null,null,null,5528.66,0]
[null,"GUANAJUATO","11EBS0027E",100,"HECG7108185E0","HECG710818HGTRBR07","HERNANDEZ CABEZA GERARDO","TECNICO DOCENTE",35,83101,1,7,4,"T03820",0,97,2,null,null,null,5528.66,0]
[null,"GUANAJUATO","11EBS0027E",100,"GUMM920308B42","GUMM920308MGTRJN03","GUERRERO MEJIA MONICA JUANA","TECNICO DOCENTE",35,83101,1,7,4,"T03820",0,277,2,null,null,null,5528.66,0]
[null,"GUANAJUATO","11EBS0027E",100,"IAJM900213S93","IAJM900213HGTBSR04","IBARRA JASSO MARIO ALBERTO","TECNICO DOCENTE",35,83101,1,7,4,"T03820",0,48,2,null,null,null,5528.66,0]
[null,"GUANAJUATO","11EBS0027E",100,"EICS8311094H1","EICS831109MGTLNN06","ELIAS CONTRERAS SANDRA ELISA","TECNICO DOCENTE",35,83101,1,7,4,"T03820",0,113,2,null,null,null,5528.66,0]
[null,"GUANAJUATO","11EBS0027E",100,"CAOC8910102C1","CAOC891010MGTSRR04","CASTAÑEDA ORNELAS MARIA CRUZ","TECNICO DOCENTE",35,83101,1,7,4,"T03820",0,140,2,null,null,null,5528.66,0]
[null,"GUANAJUATO","11EBS0027E",100,"LAGG8705075P8","LAGG870507MGTGRS08","LAGUNA GUERRERO GISELA","TECNICO DOCENTE",35,83101,1,7,4,"T03820",0,146,2,null,null,null,5528.66,0]
[null,"GUANAJUATO","11EBS0027E",100,"SOBF761123PU9","SOBF761123HGTLRR07","SOLORZANO BERNAL FRANCISCO","TECNICO DOCENTE",35,83101,1,7,4,"T03820",0,314,2,null,null,null,5558.66,0]
[null,"GUANAJUATO","11EBS0027E",100,"HELM710411QS6","HELM710411MGTRDR02","HERNANDEZ LEDESMA MARTHA ANGELICA","TECNICO DOCENTE",35,83101,1,7,4,"T03820",0,163,2,null,null,null,5921.09,0]
[null,"GUANAJUATO","11EBS0027E",100,"MANL580917DN5","MANL580917HGTRXS04","MARTINEZ NUÑEZ JOSE LUIS","TECNICO DOCENTE",35,83101,1,7,4,"T03820",0,151,2,null,null,null,5528.66,0]
[null,"GUANAJUATO","11EBS0027E",100,"COSL800716SL8","COSL800716MGTRRD08","CORTES SIERRA LIDIA CAROLINA","TECNICO DOCENTE",35,83101,1,7,4,"T03820",0,316,2,null,null,null,5528.66,0]
[null,"GUANAJUATO","11EBS0027E",100,"EARF920415UJ8","EARF920415MGTSDT17","ESTRADA RODRIGUEZ FATIMA YAZMIN","SECRETARIA C",35,83101,1,7,2,"A03804",0,306,2,null,null,null,4879.7,0]
[null,"GUANAJUATO","11EBS0027E",100,"RIRZ9005014I8","RIRZ900501MMCCJZ06","RICO ROJAS ZAZIL","TECNICO MEDIO",35,83101,1,7,4,"T03803",0,17,2,null,null,null,4529.32,0]
[null,"GUANAJUATO","11EBS0027E",100,"GAGY780903491","GAGY780903MDFLMS06","GALVAN GAMEZ YOSELIN AIMEE","ESPECIALISTA EN PROYECTOS TECNICOS",35,83101,1,7,4,"T03810",0,80,2,null,null,null,4529.32,0]
[null,"GUANAJUATO","11EBS0027E",100,"AUNC890701HB6","AUNC890701MQTGXR05","AGUADO NUÑEZ MARIA CRISTINA","OFICIAL DE SERVICIOS Y MANTENIMIENTO",35,83101,1,7,4,"S01803",0,211,2,null,null,null,4529.32,0]
[null,"GUANAJUATO","11EBS0027E",100,"FECM8910217I9","FECM891021MDFRVR01","FERREIRA CUEVAS MARIANA GUISELA","ESPECIALISTA EN PROYECTOS TECNICOS",35,83101,1,7,4,"T03810",0,60,2,null,null,null,4529.32,0]
[null,"GUANAJUATO","11EBS0027E",100,"BARA700515RH6","BARA700515MGTRML07","BARBOSA RAMIREZ ALMA VELIA","SECRETARIA C",35,83101,1,7,4,"A03804",0,53,2,null,null,null,4879.7,0]
[null,"GUANAJUATO","11EBS0027E",100,"AIMM891226K29","AIMM891226MMCMXR03","AMBRIZ MUÑOZ MARIANA","TECNICO MEDIO",35,83101,1,7,4,"T03803",0,133,2,null,null,null,4529.32,0]
[null,"GUANAJUATO","11EBS0027E",100,"DUPS9001267KA","DUPS900126MGTRRN08","DURAN PRADO SANDRA IVONNE","SECRETARIA C",35,83101,1,7,4,"A03804",0,56,2,null,null,null,4529.32,0]
[null,"GUANAJUATO","11EBS0027E",100,"PACM931219CM1","PACM931219MDGLBY03","PLASCENCIA CABRERA MAYLEN NOEMI","SECRETARIA C",35,83101,1,7,4,"A03804",0,174,2,null,null,null,4529.32,0]
[null,"GUANAJUATO","11EBS0027E",100,"JAAX8707291Z3","JAAX870729MCLRRC03","JARA ARRIAGA XOCHITL YUVICELA","TECNICO MEDIO",35,83101,1,7,4,"T03803",0,164,2,null,null,null,4529.32,0]
[null,"GUANAJUATO","11EBS0027E",100,"VATL701230M12","VATL701230MGTLRZ04","VALLE TORRES LUZ MARIA","ESPECIALISTA EN PROYECTOS TECNICOS",35,83101,1,7,4,"T03810",0,275,2,null,null,null,4529.32,0]
[null,"GUANAJUATO","11EBS0027E",100,"JAAA741109NM2","JAAA741109MGTSGL04","JASSO AGUILERA ALMA PATRICIA","TECNICO DOCENTE",35,83101,1,7,4,"T03820",0,1508,2,null,null,null,5528.66,0]
[null,"GUANAJUATO","11EBS0027E",100,"CASE871206B31","CASE871206HGTSND05","CASTAÑEDA SAENZ JOSE EDUARDO","TECNICO DOCENTE",35,83101,1,7,4,"T03820",0,295,2,null,null,null,5528.66,0]
[null,"GUANAJUATO","11EBS0027E",100,"ROVK831026QX5","ROVK831026MGTSZR01","ROSAS VAZQUEZ MARIA KARINA","TECNICO DOCENTE",35,83101,1,7,4,"T03820",0,294,2,null,null,null,5528.66,0]
[null,"GUANAJUATO","11EBS0027E",100,"CAGJ791209EN4","CAGJ791209HGTRTR01","CARDENAS GUTIERREZ JORGE ADRIAN","TECNICO DOCENTE",35,83101,1,7,4,"T03820",0,271,2,null,null,null,5528.66,0]
[null,"GUANAJUATO","11EBS0027E",100,"VEVS760824QM4","VEVS760824MGTNLL09","VENEGAS VILLALOBOS SILVINA ELIZABETH","TECNICO DOCENTE",35,83101,1,7,4,"T03820",0,270,2,null,null,null,5528.66,0]
[null,"GUANAJUATO","11EBS0027E",100,"CADI801221FT5","CADI801221HGTRSS00","CARDENAS DIOSDADO ISRAEL","ESPECIALISTA EN PROYECTOS TECNICOS",35,83101,1,7,4,"T03810",0,309,2,null,null,null,4879.7,0]
[null,"GUANAJUATO","11EBS0027E",100,"NIJV910312FZ6","NIJV910312HDFTSC07","NIETO JASSO VICTOR DAVID","COORDINADOR REGIONAL/ ZONA",35,83101,1,7,3,"CF36014",0,30,2,null,null,null,11359.15,0]
[null,"GUANAJUATO","11EBS0027E",100,"TOFM860110TE7","TOFM860110MGTRNR00","TORRES FUENTES MARTHA EDITH","TECNICO DOCENTE",35,83101,1,7,4,"T03820",0,198,2,null,null,null,5528.66,0]
[null,"GUANAJUATO","11EBS0027E",100,"GOOG7802057F2","GOOG780205HGTNRD04","GONZALEZ ORTEGA JOSE GUADALUPE","TECNICO DOCENTE",35,83101,1,7,4,"T03820",0,235,2,null,null,null,5528.66,0]
[null,"GUANAJUATO","11EBS0027E",100,"VERT861015NB6","VERT861015MGTRMR01","VERDE RAMIREZ TERESA","TECNICO DOCENTE",35,83101,1,7,4,"T03820",0,194,2,null,null,null,5921.09,0]
[null,"GUANAJUATO","11EBS0027E",100,"TOFF601228VB5","TOFF601228HGTRGR04","TORRES FIGUEROA FRANCISCO JAVIER","TECNICO DOCENTE",35,83101,1,7,4,"T03820",0,192,2,null,null,null,5528.66,0]
[null,"GUANAJUATO","11EBS0027E",100,"MOPS740919966","MOPS740919MMCRRL01","MORENO PARADA SILVIA","ESPECIALISTA EN PROYECTOS TECNICOS",35,83101,1,7,4,"T03810",0,317,2,null,null,null,4879.7,0]
[null,"GUANAJUATO","11EBS0027E",100,"NAMR8410165H3","NAMR841016MGTVRS07","NAVARRO MARTINEZ ROSALINDA","TECNICO MEDIO",35,83101,1,7,4,"T03803",0,52,2,null,null,null,4529.32,0]
[null,"GUANAJUATO","11EBS0027E",100,"MAGG810106790","MAGG810106MGTRNR04","MARTINEZ GONZALEZ GRACIELA","SECRETARIA C",35,83101,1,7,4,"A03804",0,75,2,null,null,null,4529.32,0]
[null,"GUANAJUATO","11EBS0027E",100,"AAAL860804UN9","AAAL860804MTSBZD03","ABRAHAM AZUARA LUDIM","TECNICO MEDIO",35,83101,1,7,4,"T03803",0,92,2,null,null,null,4879.7,0]
[null,"GUANAJUATO","11EBS0027E",100,"PEJR701210KIA","PEJR701210HSLRRB08","PEREZ JUAREZ RUBEN","JEFE DE DEPARTAMENTO",35,83101,1,7,1,"CF01059",0,34,2,null,null,null,12909.87,0]
[null,"GUANAJUATO","11EBS0027E",100,"SAPA740111LK4","SAPA740111HOCNCB03","SANDOVAL PACHECO ABDON","COORDINADOR REGIONAL/ ZONA",35,83101,1,7,4,"CF36014",0,266,2,null,null,null,11359.15,0]
[null,"GUANAJUATO","11EBS0027E",100,"GUVJ850624HM6","GUVJ850624HGTZYN02","GUZMAN VIEYRA JUAN MIGUEL","COORDINADOR REGIONAL/ ZONA",35,83101,1,7,4,"CF36014",0,1517,2,null,null,null,11359.15,0]
[null,"GUANAJUATO","11EBS0027E",100,"DITJ760122R33","DITJ760122HGTZRN01","DIAZ TORRES JUAN GABRIEL","COORDINADOR REGIONAL/ ZONA",35,83101,1,7,4,"CF36014",0,128,2,null,null,null,11359.15,0]
[null,"GUANAJUATO","11EBS0027E",100,"CIRJ660404UI3","CIRJ660404HGTFMN03","CIFUENTES RAMIREZ JUAN SIMITRIO","PROFESIONAL DICTAMINADOR DE SERVICIOS ESPECIALIZADOS",35,83101,1,7,1,"CF21865",0,1528,2,null,null,null,7859.9,0]
[null,"GUANAJUATO","11EBS0027E",100,"GAVR910621UJ2","GAVR910621HGTRLL01","GRANADOS VALLE RAUL ALEJANDRO","TECNICO DOCENTE",35,83101,1,7,4,"T03820",0,254,2,null,null,null,5528.66,0]
[null,"GUANAJUATO","11EBS0027E",100,"PEGH8706085G5","PEGH870608HGTDNM01","PEDROZA GONZALEZ JOSE HUMBERTO","JEFE DE OFICINA",35,83101,1,7,3,"A01807",0,1488,2,null,null,null,4781.1899999999996,0]
[null,"GUANAJUATO","11EBS0027E",100,"HUSA860811CJ2","HUSA860811MGTRRN07","HURTADO SUAREZ MARIA DE LOS ANGELES","SECRETARIA C",35,83101,1,7,4,"A03804",0,1498,2,null,null,null,4529.32,0]
[null,"GUANAJUATO","11EBS0027E",100,"FOLI910518MEA","FOLI910518HGTLPS09","FLORES LOPEZ ISRAEL","TECNICO SUPERIOR",35,83101,1,7,3,"T03823",0,1515,2,null,null,null,5528.66,0]
[null,"GUANAJUATO","11EBS0027E",100,"HEEI750809EB5","HEEI750809HGTRSS09","HERNANDEZ ESCOGIDO ISIDORO DE SEVILLA","JEFE DE OFICINA",35,83101,1,7,3,"A01807",0,1490,2,null,null,null,4781.1899999999996,0]
[null,"GUANAJUATO","11EBS0027E",100,"TESR910120NP3","TESR910120MGTRLS09","TERAN SALAZAR MARIA DEL ROSARIO","TECNICO DOCENTE",35,83101,1,7,4,"T03820",0,1533,2,null,null,null,5528.66,0]
[null,"GUANAJUATO","11EBS0027E",100,"PIEA861225MB2","PIEA861225MGTCSL06","PICHARDO ESTRADA ALMA ROSA","TECNICO DOCENTE",35,83101,1,7,4,"T03820",0,1506,2,null,null,null,5528.66,0]
[null,"GUANAJUATO","11EBS0027E",100,"RADL770820MV0","RADL770820HGTMZS07","RAMIREZ DIAZ LUIS ALEJANDRO","TECNICO MEDIO",35,83101,1,7,1,"T03803",0,258,2,null,null,null,4529.32,0]
[null,"GUANAJUATO","11EBS0027E",100,"RASE881027V79","RASE881027MGTMNL08","RAMIREZ SANCHEZ ELIA PATRICIA","ESPECIALISTA EN PROYECTOS TECNICOS",35,83101,1,7,4,"T03810",0,155,2,null,null,null,4529.32,0]
[null,"GUANAJUATO","11EBS0027E",100,"GOLC950116TN4","GOLC950116HGTMPR09","GOMEZ LOPEZ CARLOS ADEMIR EUSEBIO","SECRETARIA C",35,83101,1,7,1,"A03804",0,257,2,null,null,null,4529.32,0]
[null,"GUANAJUATO","11EBS0027E",100,"GOAR790919E90","GOAR790919MGTNLS24","GONZALEZ ALEJOS ROSA MARIA","TECNICO DOCENTE",35,83101,1,7,4,"T03820",0,1504,2,null,null,null,5528.66,0]
[null,"GUANAJUATO","11EBS0027E",100,"MOHC8308189E4","MOHC830818MGTRRL03","MORENO HERNANDEZ CLAUDIA GABRIELA","TECNICO DOCENTE",35,83101,1,7,4,"T03820",0,13,2,null,null,null,5558.66,0]
[null,"GUANAJUATO","11EBS0027E",100,"ROHG921225D70","ROHG921225MGTDRL00","RODRIGUEZ HERNANDEZ GLORIA LORENA BEATRIZ","SECRETARIA C",35,83101,1,7,4,"A03804",0,310,2,null,null,null,3321.5,0]
[null,"GUANAJUATO","11EBS0027E",100,"HEMF950111UT8","HEMF950111HGTRRR04","HERNANDEZ MARTINEZ FRANCISCO ANTONIO","TECNICO MEDIO",35,83101,1,7,4,"T03803",0,311,2,null,null,null,4529.32,0]
[null,"GUANAJUATO","11EBS0027E",100,"GUND770803A3A","GUND770803HGTTTN01","GUTIERREZ NIETO DANIEL ADRIAN","SECRETARIA C",35,83101,1,7,5,"A03804",0,304,2,null,null,null,4529.32,0]
[null,"GUANAJUATO","11EBS0027E",100,"FAOI930617PD8","FAOI930617HGTRRS09","FRAUSTO ORTEGA JOSE ISAAC","SECRETARIA C",35,83101,1,7,4,"A03804",0,283,2,null,null,null,4529.32,0]
[null,"GUANAJUATO","11EBS0027E",100,"OELM6606116J8","OELM660611MGTRRR05","ORNELAS LARA MARTINA","TECNICO MEDIO",35,83101,1,7,4,"T03803",0,57,2,null,null,null,4669.32,0]
[null,"GUANAJUATO","11EBS0027E",100,"RORN9208142L3","RORN920814HGTBYX07","ROBLEDO REYES NOE","JEFE DE OFICINA",35,83101,1,7,3,"A01807",0,318,2,null,null,null,4781.1899999999996,0]
[null,"GUANAJUATO","11EBS0027E",100,"SAVI790314155","SAVI790314HDFCZV05","SAUCEDO VAZQUEZ IVAN ALEJANDRO","PROFESIONAL DICTAMINADOR DE SERVICIOS ESPECIALIZADOS",35,83101,1,7,1,"CF21865",0,167,2,null,null,null,7859.9,0]
[null,"GUANAJUATO","11EBS0027E",100,"AACB730812874","AACB730812MGTLMR05","ALAMILLO CAMPOS BERTHA","TECNICO DOCENTE",35,83101,1,7,4,"T03820",0,269,2,null,null,null,5528.66,0]
[null,"GUANAJUATO","11EBS0027E",100,"TICH8812318M5","TICH881231HGTNHG09","TINAJERO CHAVEZ HUGO ARTURO","TECNICO SUPERIOR",35,83101,1,7,3,"T03823",0,1511,2,null,null,null,5528.66,0]
[null,"GUANAJUATO","11EBS0027E",100,"MABR6903188Z5","MABR690318MGTRRS05","MARES BERMUDEZ ROSA MARIA","COORDINADOR REGIONAL/ ZONA",35,83101,1,7,1,"CF36014",0,15,2,null,null,null,14614.57,0]
[null,"GUANAJUATO","11EBS0027E",100,"HEVR811022TY1","HEVR811022HGTRZM01","HERNANDEZ VAZQUEZ RAMON","COORDINADOR REGIONAL/ ZONA",35,83101,1,7,3,"CF36014",0,32,2,null,null,null,11359.16,0]
[null,"GUANAJUATO","11EBS0027E",100,"SAHR940212LQ2","SAHR940212MGTNRT03","SANTANA HERNANDEZ RUTH NOEMI","TECNICO DOCENTE",35,83101,1,7,4,"T03820",0,39,2,null,null,null,5528.66,0]
[null,"GUANAJUATO","11EBS0027E",100,"MAOK821228CK5","MAOK821228MSPRYR01","MARTINEZ OYERVIDES KARLA MARISOL","TECNICO DOCENTE",35,83101,1,7,4,"T03820",0,78,2,null,null,null,5528.66,0]
[null,"GUANAJUATO","11EBS0027E",100,"VAMN910423257","VAMN910423MGTZRL04","VAZQUEZ MARMOLEJO NELIDA DEL ROCIO","ANALISTA ADMINISTRATIVO",35,83101,1,7,4,"A01806",0,50,2,null,null,null,4610.62,0]
[null,"GUANAJUATO","11EBS0027E",100,"GOSR910123H36","GOSR910123HGTNNC05","GONZALEZ SANCHEZ RICARDO","PROFESIONAL DICTAMINADOR DE SERVICIOS ESPECIALIZADOS",35,83101,1,7,3,"CF21865",0,3,2,null,null,null,7859.9,0]
[null,"GUANAJUATO","11EBS0027E",100,"ROSJ8606133W9","ROSJ860613MGTDRN05","RODRIGUEZ SARDINA JUANA CECILIA","PROFESIONAL DICTAMINADOR DE SERVICIOS ESPECIALIZADOS",35,83101,1,7,1,"CF21865",0,1537,2,null,null,null,7859.9,0]
[null,"GUANAJUATO","11EBS0027E",100,"MEGR800907M89","MEGR800907MGTNPC03","MENDOZA GUAPO ROCIO","JEFE DE DEPARTAMENTO",35,83101,1,7,1,"CF01059",0,71,2,null,null,null,12909.87,0]
[null,"GUANAJUATO","11EBS0027E",100,"FEET711003EB8","FEET711003MGTLSR05","FELIX ESTRELLA TERESA","ANALISTA ADMINISTRATIVO",35,83101,1,7,4,"A01806",0,120,2,null,null,null,6090.92,0]
[null,"GUANAJUATO","11EBS0027E",100,"COMM660914G87","COMR660914MGTNDC09","CONCHA MEDINA MA. DEL ROCIO","TECNICO DOCENTE",35,83101,1,7,4,"T03820",0,81,2,null,null,null,6269.46,0]
[null,"GUANAJUATO","11EBS0027E",100,"GUHA770213FQ8","GUHA770213MGTVRL02","GUEVARA HERNANDEZ ALMA ROSA","TECNICO DOCENTE",35,83101,1,7,4,"T03820",0,255,2,null,null,null,6836.39,0]
[null,"GUANAJUATO","11EBS0027E",100,"RAAG660220BC0","RAAG660220MGTMVD07","RAMOS AVILA MA. GUADALUPE RUTH","TECNICO DOCENTE",35,83101,1,7,4,"T03820",0,132,2,null,null,null,6836.39,0]
[null,"GUANAJUATO","11EBS0027E",100,"AAGH700108U53","AAGH700108MGTLRR09","ALMANZA GARCIA HORTENCIA","TECNICO DOCENTE",35,83101,1,7,4,"T03820",0,248,2,null,null,null,6836.39,0]
[null,"GUANAJUATO","11EBS0027E",100,"MEVG630915G81","MEVG630915MGTRRD08","MERCADO VARELA MA. GUADALUPE","TECNICO DOCENTE",35,83101,1,7,4,"T03820",0,197,2,null,null,null,6705.95,0]
[null,"GUANAJUATO","11EBS0027E",100,"PACP681127IL7","PACP681127MGTRHT00","PRADO CHAVEZ PATRICIA","SECRETARIA C",35,83101,1,7,4,"A03804",0,20,2,null,null,null,5940.68,0]
[null,"GUANAJUATO","11EBS0027E",100,"PECA660503AR0","PECA660503MGTRBN07","PEREZ CABELLO ANTONIA","ESPECIALISTA EN PROYECTOS TECNICOS",35,83101,1,7,4,"T03810",0,69,2,null,null,null,5940.68,0]
[null,"GUANAJUATO","11EBS0027E",100,"CACF6710055H4","CACF671005HGTLDR06","CALDERON CAUDILLO FRANCISCO","TECNICO DOCENTE",35,83101,1,7,4,"T03820",0,202,2,null,null,null,7109.39,0]
[null,"GUANAJUATO","11EBS0027E",100,"HEPC690801P80","HEPC690801MGTRRR08","HERNANDEZ PEREZ MA. DEL CARMEN","TECNICO DOCENTE",35,83101,1,7,4,"T03820",0,209,2,null,null,null,7109.39,0]
[null,"GUANAJUATO","11EBS0027E",100,"HEAE670513TV7","HEAE670513HGTRGD08","HERNANDEZ AGUADO EDUARDO","ANALISTA ADMINISTRATIVO",35,83101,1,7,4,"A01806",0,171,2,null,null,null,5627.25,0]
[null,"GUANAJUATO","11EBS0027E",100,"EIRJ6812089I5","EIRC681208HGTNMR05","ENRIQUEZ RAMIREZ J. CARLOS","TECNICO DOCENTE",35,83101,1,7,4,"T03820",0,222,2,null,null,null,7071.15,0]
[null,"GUANAJUATO","11EBS0027E",100,"COOS660919CRA","COOS660919MGTNLS08","CONTRERAS OLMOS SUSANA ISABEL","TECNICO MEDIO",35,83101,1,7,4,"T03803",0,230,2,null,null,null,5666.47,0]
[null,"GUANAJUATO","11EBS0027E",100,"ROSR7704116C6","ROSR770411MGTDLS01","RODRIGUEZ SALGADO MARIA DEL ROSARIO","TECNICO DOCENTE",35,83101,1,7,4,"T03820",0,203,2,null,null,null,6832.27,0]
[null,"GUANAJUATO","11EBS0027E",100,"CATE6508044X6","CATE650804MGTRRS04","CARRILLO TORRES ESPERANZA","TECNICO DOCENTE",35,83101,1,7,4,"T03820",0,176,2,null,null,null,6802.27,0]
[null,"GUANAJUATO","11EBS0027E",100,"CARJ550620A19","CARJ550620HGTSDM09","CASTILLO RODRIGUEZ JAIME","TECNICO DOCENTE",35,83101,1,7,4,"T03820",0,189,2,null,null,null,6802.27,0]
[null,"GUANAJUATO","11EBS0027E",100,"ROLA760606566","ROLA760606HGTJPN03","ROJAS LOPEZ JOSE ANTONIO","TECNICO DOCENTE",35,83101,1,7,4,"T03820",0,205,2,null,null,null,6802.27,0]
[null,"GUANAJUATO","11EBS0027E",100,"ZAGB700228KX3","ZAGB700228MGTVMT03","ZAVALA GOMEZ BEATRIZ","TECNICO DOCENTE",35,83101,1,7,4,"T03820",0,91,2,null,null,null,6802.27,0]
[null,"GUANAJUATO","11EBS0027E",100,"VARL750211VB2","VARL750211MGTRMR07","VARGAS RAMIREZ MARIA LOURDES","JEFE DE OFICINA",35,83101,1,7,4,"A01807",0,135,2,null,null,null,6012.34,0]
[null,"GUANAJUATO","11EBS0027E",100,"ROJJ671130GY1","ROJJ671130HGTDMS06","RODRIGUEZ JIMENEZ JOSE","TECNICO DOCENTE",35,83101,1,7,4,"T03820",0,215,2,null,null,null,6768.15,0]
[null,"GUANAJUATO","11EBS0027E",100,"RAMD681211IP3","RAMD681211HMCMRN05","RAMIREZ MARTINEZ DANIEL","TECNICO DOCENTE",35,83101,1,7,4,"T03820",0,223,2,null,null,null,7041.15,0]
[null,"GUANAJUATO","11EBS0027E",100,"BIRL710430QF2","BIRL710430HGTRZB03","BRICEÑO RUIZ LIBRADO","TECNICO DOCENTE",35,83101,1,7,4,"T03820",0,225,2,null,null,null,7075.26,0]
[null,"GUANAJUATO","11EBS0027E",100,"HERG571023MS0","HERG571023MGTRPD07","HERNANDEZ RIPALDA MA. GUADALUPE JUDITH","PROFESIONAL DICTAMINADOR DE SERVICIOS ESPECIALIZADOS",35,83101,1,7,5,"CF21865",0,1523,2,null,null,null,7959.9,0]
[null,"GUANAJUATO","11EBS0027E",100,"HECG7209202C4","HECG720920MGTRRR07","HERRERA CERVANTES GRISELDA","SECRETARIA C",35,83101,1,7,4,"A03804",0,42,2,null,null,null,5879.27,0]
[null,"GUANAJUATO","11EBS0027E",100,"BACA640430UIA","BXCA640430HGTLRN08","BALTAZAR CORTES ANTONIO","TECNICO DOCENTE",35,83101,1,7,4,"T03820",0,238,2,null,null,null,7041.15,0]
[null,"GUANAJUATO","11EBS0027E",100,"GUOA740914U2A","GUOA740914MMNDRN06","GUDIÑO ORDAZ MA. DE LOS ANGELES","ANALISTA ADMINISTRATIVO",35,83101,1,7,4,"A01806",0,150,2,null,null,null,5635.97,0]
[null,"GUANAJUATO","11EBS0027E",100,"FAHI7401088Z2","FAHI740108HGTBRV04","FABELA HERNANDEZ IVAN","TECNICO DOCENTE",35,83101,1,7,4,"T03820",0,240,2,null,null,null,7041.15,0]
[null,"GUANAJUATO","11EBS0027E",100,"GUMC6804029G4","GUMC680402MGTZNR09","GUZMAN MANZANILLA MARIA DEL CARMEN","TECNICO DOCENTE",35,83101,1,7,4,"T03820",0,242,2,null,null,null,7037.01,0]
[null,"GUANAJUATO","11EBS0027E",100,"MENC680926QE2","MENC680926MGTDVR02","MEDEL NAVARRETE MARIA DEL CARMEN","TECNICO DOCENTE",35,83101,1,7,4,"T03820",0,246,2,null,null,null,7007.01,0]
[null,"GUANAJUATO","11EBS0027E",100,"GAMJ711118AJ8","GAMJ711118HGTRCC07","GARCIA MICHACA JACOBO","TECNICO DOCENTE",35,83101,1,7,4,"T03820",0,247,2,null,null,null,7007.01,0]
[null,"GUANAJUATO","11EBS0027E",100,"NEAC740715LD9","NEAC740715HGTGRR02","NEGRETE ARIAS CRISTOBAL","TECNICO DOCENTE",35,83101,1,7,4,"T03820",0,253,2,null,null,null,7047.01,0]
[null,"GUANAJUATO","11EBS0027E",100,"YEPV780203IU0","YEPV780203MGTBVR00","YEBRA PAVON VERONICA ADRIANA","TECNICO DOCENTE",35,83101,1,7,4,"T03820",0,252,2,null,null,null,6972.89,0]
[null,"GUANAJUATO","11EBS0027E",100,"CAVS681207JX2","CAVS681207HGTNRL04","CANO VARGAS SALVADOR","COORDINADOR REGIONAL/ ZONA",35,83101,1,7,4,"CF36014",0,31,2,null,null,null,11459.15,0]
[null,"GUANAJUATO","11EBS0027E",100,"NAHL730801RV8","NAHL730801MGTVRR01","NAVARRO HERNANDEZ MARIA DE LOURDES","JEFE DE OFICINA",35,83101,1,7,4,"A01807",0,112,2,null,null,null,5817.29,0]
[null,"GUANAJUATO","11EBS0027E",100,"AERS660208UT4","AERS660208HGTRYR01","ARREDONDO RAYA SERGIO","TECNICO DOCENTE",35,83101,1,7,4,"T03820",0,268,2,null,null,null,6972.89,0]
[null,"GUANAJUATO","11EBS0027E",100,"TONL701209CT8","TONL701209MGTRCR09","TORRES NACHE LAURA MA GUADALUPE","PROFESIONAL DICTAMINADOR DE SERVICIOS ESPECIALIZADOS",35,83101,1,7,4,"CF21865",0,1525,2,null,null,null,7959.9,0]
[null,"GUANAJUATO","11EBS0027E",100,"GURR6007275B3","GURR600727HSPLMD06","GUEL RAMIREZ RODOLFO","TECNICO DOCENTE",35,83101,1,7,4,"T03820",0,273,2,null,null,null,6972.89,0]
[null,"GUANAJUATO","11EBS0027E",100,"CAVA651011TB7","CAVA651011HGTLRL04","CALDERON VARELA JOSE ALFREDO","TECNICO MEDIO",35,83101,1,7,4,"T03803",0,14,2,null,null,null,5971.15,0]
[null,"GUANAJUATO","11EBS0027E",100,"COCB750608U65","COCB750608MGTRRL08","CORONEL CARBAJAL BLANCA RAQUEL","TECNICO DOCENTE",35,83101,1,7,4,"T03820",0,241,2,null,null,null,6764.02,0]
[null,"GUANAJUATO","11EBS0027E",100,"CARA730215VE3","CARA730215MGTHJL00","CHAVEZ ROJAS ALMA DELIA","TECNICO MEDIO",35,83101,1,7,4,"T03803",0,6,2,null,null,null,5636,0]
[null,"GUANAJUATO","11EBS0027E",100,"SAMM750910419","SAMM750910MGTCRR00","SAUCEDO MORENO MERCEDES ELENA","TECNICO DOCENTE",35,83101,1,7,4,"T03820",0,36,2,null,null,null,6808.15,0]
[null,"GUANAJUATO","11EBS0027E",100,"VEPE671201NI6","VEPE671201MGTGRG04","VEGA PAREDES MARIA EUGENIA","TECNICO DOCENTE",35,83101,1,7,4,"T03820",0,231,2,null,null,null,6768.15,0]
[null,"GUANAJUATO","11EBS0027E",100,"RORC700828A28","RORC700828MGTMML06","ROMERO RAMOS CLAUDIA IMELDA","TECNICO DOCENTE",35,83101,1,7,4,"T03820",0,154,2,null,null,null,6734.02,0]
[null,"GUANAJUATO","11EBS0027E",100,"VIGO710314HSA","VIGO710314HGTLNS05","VILLICAÑA GONZALEZ OSCAR JACOBO","TECNICO DOCENTE",35,83101,1,7,4,"T03820",0,207,2,null,null,null,6262.33,0]
[null,"GUANAJUATO","11EBS0027E",100,"DOVR6304095Y7","DOVR630409MBCMZS05","DOMINGUEZ VAZQUEZ MARIA DEL ROSARIO","TECNICO DOCENTE",35,83101,1,7,4,"T03820",0,219,2,null,null,null,6699.89,0]
[null,"GUANAJUATO","11EBS0027E",100,"LERM7308264B5","LERM730826MGTDSN09","LEDESMA ROSALES MONICA","TECNICO DOCENTE",35,83101,1,7,4,"T03820",0,239,2,null,null,null,6699.89,0]
[null,"GUANAJUATO","11EBS0027E",100,"HEEE731209HI1","HEEE731209MGTRSS09","HERNANDEZ ESCOGIDO ESMERALDA","PROFESIONAL DICTAMINADOR DE SERVICIOS ESPECIALIZADOS",35,83101,1,7,1,"CF21865",0,1529,2,null,null,null,7922.4,0]
[null,"GUANAJUATO","11EBS0027E",100,"GOAS751103PH7","GOAS751103MGTNRL01","GONZALEZ ARANDA SILVIA SANTOS","TECNICO DOCENTE",35,83101,1,7,4,"T03820",0,234,2,null,null,null,6665.77,0]
[null,"GUANAJUATO","11EBS0027E",100,"PEDM7406101Q5","PEDM740610MDFRMR01","PERALTA DOMINGUEZ MARGARITA","TECNICO DOCENTE",35,83101,1,7,4,"T03820",0,279,2,null,null,null,6665.77,0]
[null,"GUANAJUATO","11EBS0027E",100,"NEGM641224M74","NEGM641224MGTGVR06","NEGRETE GOVEA MARTINA","TECNICO DOCENTE",35,83101,1,7,4,"T03820",0,297,2,null,null,null,5835.78,0]
[null,"GUANAJUATO","11EBS0027E",100,"LOCJ8109121HA","LOCJ810912HDFPRN00","LOPEZ CRUZ JUAN CARLOS","JEFE DE OFICINA",35,83101,1,7,5,"A01807",0,70,2,null,null,null,5880.39,0]
[null,"GUANAJUATO","11EBS0027E",100,"BABM6804276E6","BABM680427MMCXLR01","BAÑOS BAILON MARGARITA","TECNICO DOCENTE",35,83101,1,7,4,"T03820",0,200,2,null,null,null,6665.77,0]
[null,"GUANAJUATO","11EBS0027E",100,"SACM760716KV0","SACM760716MJCNSN08","SANDOVAL CASTELLON MONICA DEL CARMEN","ANALISTA ADMINISTRATIVO",35,83101,1,7,4,"A01806",0,8,2,null,null,null,5652.98,0]
[null,"GUANAJUATO","11EBS0027E",100,"TEMY831012PC7","TEMY831012MGTRDD05","TERAN MEDINA YADIRA ELISA","OFICIAL DE SERVICIOS Y MANTENIMIENTO",35,83101,1,7,4,"S01803",0,79,2,null,null,null,5453.19,0]
[null,"GUANAJUATO","11EBS0027E",100,"CIVM630826EF1","CIVR630826MGTSRS09","CISNEROS VERDIN MA. DEL ROSARIO","TECNICO DOCENTE",35,83101,1,7,4,"T03820",0,251,2,null,null,null,6125.84,0]
[null,"GUANAJUATO","11EBS0027E",100,"PELL620125LZ0","PELL620125MVZRLR03","PEREZ LLANOS MARIA DE LOURDES","TECNICO DOCENTE",35,83101,1,7,4,"T03820",0,199,2,null,null,null,6563.4,0]
[null,"GUANAJUATO","11EBS0027E",100,"COPC760616J13","COPC760616HGTRTR05","CORDOBA PATIÑO CARLOS ALBERTO","OFICIAL DE SERVICIOS Y MANTENIMIENTO",35,83101,1,7,4,"S01803",0,61,2,null,null,null,5483.19,0]
[null,"GUANAJUATO","11EBS0027E",100,"EAAJ8712218X3","EAAJ871221MMCSLS09","ESCAMILLA ALVAREZ MARIA DE JESUS","ESPECIALISTA EN PROYECTOS TECNICOS",35,83101,1,7,4,"T03810",0,105,2,null,null,null,4879.7,0]
[null,"GUANAJUATO","11EBS0027E",100,"HUSM771116C7A","HUSM771116MMNNLR06","HUANTE SILVA MARIZA","TECNICO MEDIO",35,83101,1,7,4,"T03803",0,127,2,null,null,null,4879.7,0]
[null,"GUANAJUATO","11EBS0027E",100,"MERM890606QX7","MERM890606MGTNYY01","MENDOZA REYES MYRIAM DE LOS ANGELES","ESPECIALISTA EN PROYECTOS TECNICOS",35,83101,1,7,4,"T03810",0,55,2,null,null,null,4529.32,0]
[null,"GUANAJUATO","11EBS0027E",100,"ZAZJ9610201D4","ZAZJ961020HQTRRN09","ZARAZUA ZARAZUA JONATAN REMBERTO","SECRETARIA C",35,83101,1,7,4,"A03804",0,73,2,null,null,null,4529.32,0]
[null,"GUANAJUATO","11EBS0027E",100,"FAHG7612098T1","FAHG761209MGTLRD03","FALCON HERNANDEZ MA. GUADALUPE","ESPECIALISTA EN PROYECTOS TECNICOS",35,83101,1,7,4,"T03810",0,104,2,null,null,null,4529.32,0]
[null,"GUANAJUATO","11EBS0027E",100,"RILM750601TH0","RILM750601MOCSSG04","RIOS LUIS MAGDALENA","TECNICO DOCENTE",35,83101,1,7,4,"T03820",0,169,2,null,null,null,5528.66,0]
[null,"GUANAJUATO","11EBS0027E",100,"MENM790123EM1","MENM790123MGTDVR00","MEDEL NAVARRETE MIRIAM DE LOS ANGELES GABRIELA","SECRETARIA C",35,83101,1,7,4,"A03804",0,87,2,null,null,null,4529.32,0]
[null,"GUANAJUATO","11EBS0027E",100,"GUGJ930811J60","GUGJ930811MGTRNS05","GUERRERO GONZALEZ MARIA JOSE","ADMINISTRATIVO ESPECIALIZADO",35,83101,1,7,4,"A01803",0,158,2,null,null,null,4529.32,0]
[null,"GUANAJUATO","11EBS0027E",100,"LEGJ871018F93","LEGJ871018MGTDNN02","LEDEZMA GONZALEZ JENIFER","SECRETARIA C",35,83101,1,7,1,"A03804",0,102,2,null,null,null,4559.32,0]
[null,"GUANAJUATO","11EBS0027E",100,"JABE820909HH0","JABE820909MGTSLL04","JASSO BALLEZA ELOISA","SECRETARIA C",35,83101,1,7,5,"A03804",0,110,2,null,null,null,4529.32,0]
[null,"GUANAJUATO","11EBS0027E",100,"PITJ930828Q89","PITJ930828HGTCRN07","PICON TORRES JONATHAN EDUARDO","ESPECIALISTA EN PROYECTOS TECNICOS",35,83101,1,7,4,"T03810",0,22,2,null,null,null,4529.32,0]
[null,"GUANAJUATO","11EBS0027E",100,"AOJM820726EC0","AOJM820726HGTRRR08","ARGOTE JUAREZ MARIO","JEFE DE OFICINA",35,83101,1,7,3,"A01807",0,84,2,null,null,null,4781.1899999999996,0]
[null,"GUANAJUATO","11EBS0027E",100,"NADP821016J68","NADP821016MGTVRL01","NAVARRO DURAN MARIA DEL PILAR","TECNICO DOCENTE",35,83101,1,7,4,"T03820",0,106,2,null,null,null,5921.09,0]
[null,"GUANAJUATO","11EBS0027E",100,"RORD790510T10","RORD790510MGTMML09","ROMERO RAMIREZ DULCE MARIA","TECNICO DOCENTE",35,83101,1,7,4,"T03820",0,117,2,null,null,null,5528.66,0]
[null,"GUANAJUATO","11EBS0027E",100,"CUFC8809064X4","CUFC880906MOCRNY08","CRUZ FUENTES CYNTHIA","SECRETARIA C",35,83101,1,7,4,"A03804",0,1497,2,null,null,null,4569.32,0]
[null,"GUANAJUATO","11EBS0027E",100,"FOAP6704124J5","FOAP670412MGTLLT01","FLORES ALVAREZ PATRICIA","COORDINADOR DE SERVICIOS ESPECIALIZADOS",35,83101,1,7,1,"CF33849",0,1535,2,null,null,null,5728.24,0]
[null,"GUANAJUATO","11EBS0027E",100,"MEMS601125CV5","MEMS601125HMNNLM04","MENDOZA MALDONADO SAMUEL","PROFESIONAL DICTAMINADOR DE SERVICIOS ESPECIALIZADOS",35,83101,1,7,1,"CF21865",0,1536,2,null,null,null,7859.9,0]
[null,"GUANAJUATO","11EBS0027E",100,"OESD9012116A0","OESD901211MGTRVL05","ORTEGA SAAVEDRA DOLORES GUADALUPE","TECNICO MEDIO",35,83101,1,7,4,"T03803",0,29,2,null,null,null,4529.32,0]
[null,"GUANAJUATO","11EBS0027E",100,"SEGE921103JEA","SEGE921103MMNRRS05","SERRATO GARCIA ESTEFANIA","TECNICO MEDIO",35,83101,1,7,4,"T03803",0,23,2,null,null,null,4529.32,0]
[null,"GUANAJUATO","11EBS0027E",100,"MISA810907T8A","MISA810907MGTRLL02","MIRANDA SALAZAR ALICIA","ADMINISTRATIVO ESPECIALIZADO",35,83101,1,7,4,"A01803",0,82,2,null,null,null,4529.32,0]
[null,"GUANAJUATO","11EBS0027E",100,"MOCF920813MF7","MOCF920813MGTNMR00","MONTECILLO CAMACHO MARIA FERNANDA","ESPECIALISTA EN PROYECTOS TECNICOS",35,83101,1,7,4,"T03810",0,264,2,null,null,null,4529.32,0]
[null,"GUANAJUATO","11EBS0027E",100,"PERM831017791","PERM831017MGTRMR00","PEREZ RAMIREZ MARIANA","ESPECIALISTA EN PROYECTOS TECNICOS",35,83101,1,7,4,"T03810",0,285,2,null,null,null,4529.32,0]
[null,"GUANAJUATO","11EBS0027E",100,"PAGA670111I35","PAGA670111HNTLRR03","PALOMARES GARCIA ARMANDO","COORDINADOR REGIONAL/ ZONA",35,83101,1,7,1,"CF36014",0,168,2,null,null,null,11359.15,0]
[null,"Total Personas : ",325,null,null,null,null,null,null,null,null,null,null,"Total Plazas : ",null,325,null,null,"Total Pto. Federal",null,{"$f":"SUBTOTAL(109,Tabla12[Percepciones pagadas en el Periodo de Comisión con Presupuesto Federal*])","v":2078069.1699999964}]
[]
[null,null,null,null,null,null,null,null,null,null,null,null,null,null,null,null,null,null,"Total Ppto. Otras Fuentes:",null,null,{"$f":"SUM(V16:V342)","v":0}]
[]
[null,"*Total de Percepciones reportadas por la Entidad Federativa como pagadas al trabajador durante la comisión."]
[null,"Fuente : Información proporcionada por las Entidades Federativas"]

{"sheet":"II D) 2","index":6,"n_rows":59,"n_cols":19,"rows_kept":59,"cut":false,"hidden":false,"merged":[[8,1,8,9],[11,0,12,0],[11,1,12,1],[11,5,12,5],[11,2,12,2],[11,3,12,3],[11,4,12,4],[11,16,12,16],[11,15,12,15],[11,17,12,17],[11,18,12,18],[11,6,11,12],[11,13,12,13],[11,14,12,14]]}
[]
[]
[]
[]
[]
[]
[]
[null,"Formato: Movimientos de Plazas"]
[null,{"$f":"IF('Caratula Resumen'!D22=\"Elige el Periodo…\",\"\",'Caratula Resumen'!D22)","v":"Fondo de Aportaciones para la Educación Tecnológica y de Adultos/Instituto Nacional para la Educación de los Adultos (FAETA/INEA)"},null,null,null,null,null,null,null,null,null,null,null,null,null,null,null,{"$f":"'A Y  II D3'!X10","v":"4to. Trimestre 2017"}]
[]
[]
[null,"Entidad Federativa","RFC","CURP","Nombre","Origen Presupuestal\n de la plazas","Clave Presupuestal",null,null,null,null,null,null,"Clave de nivel de puesto","Clave de nivel de sueldo","Zona Económica","Tipo de movimiento","Quincena Inicial","Quincena Final"]
[null,null,null,null,null,null,"Partida Presupuestal","Código de Pago","Clave de Unidad","Clave de Sub Unidad","Clave de Categoría","Horas Semana Mes ","Número de Plaza"]
[]
[null,"Entidad Federativa","RFC","CURP","Nombbre","Origen Presupuestal\n de la plazas","Partida Presupuestal","Código de Pago","Clave de Unidad","Clave de Sub Unidad","Clave de Categoría","Horas semana mes","Número de plaza","Clave de nivel de puesto","Clave de nivel de sueldo","Zona Económica","Tipo de movimiento","Quincena Inicial","Quincena Final"]
[null,"GUANAJUATO","LURF6001292T1","LURF600129HGTNMR01","FRANCISCO JAVIER LUNA RAMIREZ",1,"83101174T0382000.00",83101,7,4,"T03820",0,98,82,7,"B",2,201720,201720]
[null,"GUANAJUATO","VAQE630516EZ8","VAQE630516MGTRVS07","ESTHELA VARGAS QUEVEDO",1,"83101174A0180700.00",83101,7,4,"A01807",0,267,81,7,"B",2,201724,201724]
[null,"GUANAJUATO","JUON6804281K2","JUON680428HGTRRX00","NOE JUAREZ ORTEGA",1,"83101174T0382000.00",83101,7,4,"T03820",0,281,82,7,"B",2,201724,201724]
[null,"GUANAJUATO","GOAA581209FLA","GOAA581209MGTNGL08","ALICIA GONZALEZ AGUIRRE",1,"83101174T0381000.00",83101,7,4,"T03810",0,100,39,7,"B",2,201724,201724]
[null,"GUANAJUATO","MARC601223340","MARC601223MGTRLC03","CECILIA MARTINEZ RUELAS",1,"83101174T0382000.00",83101,7,4,"T03820",0,161,82,7,"B",2,201723,201723]
[null,"GUANAJUATO","BAGJ5610276T2","BAGC561027HGTLLR02","J. CARMEN BALDERAS GALLEGOS",1,"83101174T0382000.00",83101,7,4,"T03820",0,177,82,7,"B",2,201723,201723]
[null,"GUANAJUATO","CAOD910826S90","CAOD910826MSPNRL03","DULCE VIRIDIANA CANO ORTA",1,"83101174T0381000.00",83101,7,4,"T03810",0,99,39,7,"B",2,201723,201723]
[null,"GUANAJUATO","LOHD930413C30","LOHD930413MGTPDN05","DIANA GUADALUPE LOPEZ HIDALGO",1,"83101174T0382000.00",83101,7,4,"T03820",0,185,82,7,"B",2,201724,201724]
[null,"GUANAJUATO","PEGL800121UG2","PEGL800121MGTRNR07","LAURA PALOMA PEREZ GONZALEZ",1,"83101174A0180700.00",83101,7,4,"A01807",0,1493,81,7,"B",2,201722,201722]
[null,"GUANAJUATO","MOHD850822938","MOHD850822MGTRRN00","DIANA GUADALUPE MORENO HERNANDEZ",1,"83101174T0382000.00",83101,7,4,"T03820",0,1499,82,7,"B",2,201720,201720]
[null,"GUANAJUATO","BANJ9105071D9","BANJ910507MOCRVC05","JOCELYN BARBABOSA NAVARRETE",1,"83101174T0382000.00",83101,7,4,"T03820",0,305,82,7,"B",2,201720,201720]
[null,"GUANAJUATO","FOCV780823PL1","FOCV780823MHGLSR00","VERONICA FLORES CASTAﾑON",1,"83101174T0382000.00",83101,7,4,"T03820",0,159,82,7,"B",2,201720,201720]
[null,"GUANAJUATO","TOMT700417931","TOMT700417MGTVNR04","MARIA TERESA TOVAR MENDOZA",1,"83101174T0382000.00",83101,7,4,"T03820",0,1500,82,7,"B",2,201720,201720]
[null,"GUANAJUATO","EAGV8406193B2","EAGV840619MGTSSR08","VERONICA ESTRADA GASCA",1,"83101174T0382000.00",83101,7,4,"T03820",0,181,82,7,"B",2,201720,201720]
[null,"GUANAJUATO","MOMJ860728SB0","MOMJ860728HGTJRN09","JUAN GERARDO MOJICA MORALES",1,"83101171A0180300.00",83101,7,1,"A01803",0,24,29,7,"B",2,201721,201721]
[null,"GUANAJUATO","RARP730620RE1","RARP730620MOCMXL03","PAULA GABRIELA RAMIREZ DEL RIO",1,"83101174T0382000.00",83101,7,4,"T03820",0,305,82,7,"B",1,201720,201720]
[null,"GUANAJUATO","JIRD9407185E8","JIRD940718MGTMMN07","DANIELA JIMENEZ RAMIREZ",1,"83101174T0380300.00",83101,7,4,"T03803",0,19,47,7,"B",1,201720,201720]
[null,"GUANAJUATO","VICA970107H38","VICA970107HGTLNX08","AXEL GABRIEL VILCHES CANO",1,"83101174T0382000.00",83101,7,4,"T03820",0,1499,82,7,"B",1,201720,201720]
[null,"GUANAJUATO","VICA970107H38","VICA970107HGTLNX08","AXEL GABRIEL VILCHES CANO",1,"83101174T0382000.00",83101,7,4,"T03820",0,1499,82,7,"B",2,201724,201724]
[null,"GUANAJUATO","JUVJ950303962","JUVJ950303HGTRLN02","JUAN DIEGO JUAREZ VILLALPANDO",1,"83101174T0382000.00",83101,7,4,"T03820",0,1507,82,7,"B",1,201720,201720]
[null,"GUANAJUATO","JUVJ950303962","JUVJ950303HGTRLN02","JUAN DIEGO JUAREZ VILLALPANDO",1,"83101174T0382000.00",83101,7,4,"T03820",0,1507,82,7,"B",2,201724,201724]
[null,"GUANAJUATO","NAVJ901126FT5","NAVJ901126HGTVNR02","JORGE NAVARRO VENEGAS",1,"83101174T0382000.00",83101,7,4,"T03820",0,226,82,7,"B",1,201720,201720]
[null,"GUANAJUATO","AOGR651201GP8","AOGR651201HGTRRM01","RAMON GILBERTO ARROYO GARCIA",1,"83101174T0382000.00",83101,7,4,"T03820",0,1501,82,7,"B",1,201720,201720]
[null,"GUANAJUATO","AOGR651201GP8","AOGR651201HGTRRM01","RAMON GILBERTO ARROYO GARCIA",1,"83101174T0382000.00",83101,7,4,"T03820",0,1501,82,7,"B",2,201724,201724]
[null,"GUANAJUATO","COMG931228EQ2","COMG931228MGTRND07","GUADALUPE CORTEZ MENDOZA",1,"83101174T0382000.00",83101,7,4,"T03820",0,181,82,7,"B",1,201720,201720]
[null,"GUANAJUATO","COMG931228EQ2","COMG931228MGTRND07","GUADALUPE CORTEZ MENDOZA",1,"83101174T0382000.00",83101,7,4,"T03820",0,181,82,7,"B",2,201724,201724]
[null,"GUANAJUATO","QUGJ911110GWA","QUGJ911110HGTNRN00","JONATHAN ROMARIO QUINTERO GUERRA",1,"83101174T0382000.00",83101,7,4,"T03820",0,40,82,7,"B",1,201720,201720]
[null,"GUANAJUATO","QUGJ911110GWA","QUGJ911110HGTNRN00","JONATHAN ROMARIO QUINTERO GUERRA",1,"83101174T0382000.00",83101,7,4,"T03820",0,40,82,7,"B",2,201724,201724]
[null,"GUANAJUATO","BERB910509MS4","BERB910509HGTNJR03","BRAULIO ALONSO BENITEZ ROJAS",1,"83101174T0382000.00",83101,7,4,"T03820",0,139,82,7,"B",1,201720,201720]
[null,"GUANAJUATO","BERB910509MS4","BERB910509HGTNJR03","BRAULIO ALONSO BENITEZ ROJAS",1,"83101174T0382000.00",83101,7,4,"T03820",0,139,82,7,"B",2,201723,201723]
[null,"GUANAJUATO","CALG9502062R5","CALG950206MGTLPL01","GLORIA ESTHER CALDERON LOPEZ",1,"83101174A0380400.00",83101,7,4,"A03804",0,12,43,7,"B",1,201720,201720]
[null,"GUANAJUATO","BULA9406165S3","BULA940616MGTNRN07","ANGELICA MARIA BUENO LARA",1,"83101174T0382000.00",83101,7,4,"T03820",0,1500,82,7,"B",1,201721,201721]
[null,"GUANAJUATO","BULA9406165S3","BULA940616MGTNRN07","ANGELICA MARIA BUENO LARA",1,"83101174T0382000.00",83101,7,4,"T03820",0,1500,82,7,"B",2,201724,201724]
[null,"GUANAJUATO","CURJ930104DI4","CURJ930104HGTLML08","JULIO CESAR CUELLAR RAMIREZ",1,"83101174T0382000.00",83101,7,4,"T03820",0,98,82,7,"B",1,201721,201721]
[null,"GUANAJUATO","MOCF920813MF7","MOCF920813MGTNMR00","MARIA FERNANDA MONTECILLO CAMACHO",1,"83101174T0381000.00",83101,7,4,"T03810",0,264,39,7,"B",1,201721,201721]
[null,"GUANAJUATO","PERM831017791","PERM831017MGTRMR00","MARIANA PEREZ RAMIREZ",1,"83101174T0381000.00",83101,7,4,"T03810",0,285,39,7,"B",1,201721,201721]
[null,"GUANAJUATO","AORR940215JZ1","AORR940215MGTRZS03","ROSALINDA ARROYO RAZO",1,"83101174T0382000.00",83101,7,4,"T03820",0,175,82,7,"B",1,201721,201721]
[null,"GUANAJUATO","AORR940215JZ1","AORR940215MGTRZS03","ROSALINDA ARROYO RAZO",1,"83101174T0382000.00",83101,7,4,"T03820",0,175,82,7,"B",2,201724,201724]
[null,"GUANAJUATO","PAGA670111I35","PAGA670111HNTLRR03","ARMANDO PALOMARES GARCIA",1,"83101171CF3601400.00",83101,7,1,"CF36014",0,168,95,7,"B",1,201724,201724]
[null,"Total Personas : ",39,null,null,null,null,null,null,null,"Total Plazas : ",null,39]
[]
[]
[]
[null,"Fuente : Información proporcionada por las Entidades Federativas"]

{"sheet":"II D) 4","index":7,"n_rows":27,"n_cols":17,"rows_kept":27,"cut":false,"hidden":false,"merged":[[23,13,23,14],[12,0,13,0],[12,6,13,6],[12,7,12,13],[12,14,12,15],[12,2,13,2],[12,1,13,1],[12,16,13,16],[12,5,13,5],[12,4,13,4],[12,3,13,3],[9,1,9,9]]}
[]
[]
[]
[]
[]
[]
[]
[]
[null,"Formato: Trabajadores Jubilados en el Periodo"]
[null,{"$f":"IF('Caratula Resumen'!D22=\"Elige el Periodo…\",\"\",'Caratula Resumen'!D22)","v":"Fondo de Aportaciones para la Educación Tecnológica y de Adultos/Instituto Nacional para la Educación de los Adultos (FAETA/INEA)"},null,null,null,null,null,null,null,null,null,null,null,null,null,{"$f":"'A Y  II D3'!X10","v":"4to. Trimestre 2017"}]
[]
[]
[null,"Entidad Federativa","R.F.C.","CURP","NOMBRE","Clave CT","Última(s) ó Penultima(s) Plaza(s) Ocupada(s)\n(*)","Clave Presupuestal de la Jubilación",null,null,null,null,null,null,"Periodo ocupado",null,"Quincena de inicio de jubilación"]
[null,null,null,null,null,null,null,"Partida Presupuestal","Código de Pago","Clave de Unidad","Clave de Sub Unidad","Clave de Categoría","Horas Semana Mes ","Número de Plaza","Inicio","Conclusión"]
[]
[null,"Entidad Federativa","R.F.C.","CURP","NOMBRE","Clave Centro de Trabajo","Última(s) ó Penultima(s) Plaza(s) Ocupada(s)\n(*)","Partida Presupuestal","Código de Pago","Clave de Unidad","Clave de Sub Unidad","Clave de Categoría","Horas Semana Mes ","Número de Plaza","Periodo ocupado\nInicio","Periodo ocupado\nConclusión","Quincena de inicio de jubilación"]
[]
[]
[]
[]
[]
[null,"Total Personas : ",null,null,null,null,null,null,null,null,null,"Total Plazas : "]
[]
[]
[]
[null,"Fuente : Información proporcionada por las Entidades Federativas"]
[null,"(*) Si  el trabajador se jubila con más de una clave presupuestal, por cada plaza se debe llenar un registro hasta que se haya informado acerca de todas las plazas del trabajador."]

{"sheet":"II D) 4 A","index":8,"n_rows":27,"n_cols":18,"rows_kept":27,"cut":false,"hidden":false,"merged":[[21,13,21,14],[9,1,9,7],[23,13,23,14],[12,17,13,17],[12,1,13,1],[12,2,13,2],[12,3,13,3],[12,4,13,4],[12,5,13,5],[12,6,12,12],[12,13,12,14],[12,15,13,15],[12,16,13,16]]}
[]
[]
[]
[]
[]
[]
[]
[]
[null,"Formato: Trabajadores que Tramitaron Licencia Prejubilatoria en el Periodo"]
[null,{"$f":"IF('Caratula Resumen'!D22=\"Elige el Periodo…\",\"\",'Caratula Resumen'!D22)","v":"Fondo de Aportaciones para la Educación Tecnológica y de Adultos/Instituto Nacional para la Educación de los Adultos (FAETA/INEA)"},null,null,null,null,null,null,null,null,null,null,null,null,null,null,null,{"$f":"'A Y  II D3'!X10","v":"4to. Trimestre 2017"}]
[]
[]
[null,"Entidad Federativa","R.F.C.","CURP","NOMBRE","Clave integrada","Clave Presupuestal",null,null,null,null,null,null,"Periodo Licencia",null,"Percepciones pagadas con Presupuesto Federal en el  Periodo reportado*","Percepciones pagadas con Presupuesto de otra Fuente en el  Periodo reportado*","Clave CT Origen"]
[null,null,null,null,null,null,"Partida Presupuestal","Código de Pago","Clave de Unidad","Clave de Sub Unidad","Clave de Categoría","Horas Semana Mes ","Número de Plaza","Inicio","Conclusión"]
[]
[null,"Entidad Federativa","R.F.C.","CURP","NOMBRE","Clave integrada","Partida Presupuestal","Código de Pago","Clave de Unidad","Clave de Sub Unidad","Clave de Categoría","Horas Semana Mes ","Número de Plaza","Periodo Licencia\nInicio","Periodo Licencia\nConclusión","Percepciones pagadas con Presupuesto Federal en el  Periodo reportado*","Percepciones pagadas con Presupuesto de otra Fuente en el  Periodo reportado*","Clave CT Origen"]
[]
[]
[]
[]
[]
[null,"Total Personas : ",null,null,null,null,null,null,null,null,"Total Plazas : ",null,null,"Total Pto. Federal"]
[]
[null,null,null,null,null,null,null,null,null,null,null,null,null,"Total Ppto. Otras Fuentes"]
[]
[null,"*Total de Percepciones reportadas por la Entidad Federativa como pagadas en el periodo "]
[null,"Fuente : Información proporcionada por las Entidades Federativas"]

{"sheet":"II D) 6","index":9,"n_rows":100,"n_cols":13,"rows_kept":100,"cut":false,"hidden":false,"merged":[[10,1,10,6],[13,12,14,12],[13,9,13,10],[13,11,14,11],[13,1,14,1],[13,2,14,2],[13,3,14,3],[13,4,14,4],[13,5,14,5],[13,6,14,6],[13,7,13,8]]}
[]
[]
[]
[]
[]
[]
[]
[]
[]
[null,"Formato: Trabajadores Contratados por Honorarios en el Periodo"]
[null,{"$f":"IF('Caratula Resumen'!D22=\"Elige el Periodo…\",\"\",'Caratula Resumen'!D22)","v":"Fondo de Aportaciones para la Educación Tecnológica y de Adultos/Instituto Nacional para la Educación de los Adultos (FAETA/INEA)"},null,null,null,null,null,null,null,null,null,null,{"$f":"'A Y  II D3'!X10","v":"4to. Trimestre 2017"}]
[]
[]
[null,"Entidad Federativa","Clave Centro de Trabajo","R.F.C.","CURP","Nombre","Identificador del Contrato","Equivalencia",null,"Periodo de Contratación",null,"Función","Percepciones pagadas dentro del periodo reportado"]
[null,null,null,null,null,null,null,"Clave de Categoría","Horas Semana Mes ","Inicio","Conclusión"]
[]
[null,"Entidad Federativa","Clave Centro de Trabajo","R.F.C.","CURP","Nombre","Identificador del Contrato","Clave de Categoría","Horas Semana Mes ","Periodo de Contratación\nInicio","Periodo de Contratación\nConclusión","Función","Percepciones pagadas dentro del periodo reportado"]
[null,"GUANAJUATO","11EBS6627E","FOCR630929829","FOCR630929MGTLRS08","ROSA FLORES CARDIEL",259,0,0,20171001,20171015,"COORDINAR CON LAS FIGURAS SOLIDARIAS EL CUMPLIMIENTO DE METAS  PARA EL LOGRO DE OBJETIVOS CONCLUSION DE NIVEL CERTIFICACIÓN Y SEGUIMIENTO",3570.85]
[null,"GUANAJUATO","11EBS6627E","AAMJ9312158C1","AAMJ931215MGTLNN05","JOANNA MARGARITA MENDOZA ALVAREZ",260,0,0,20171001,20171015,"COORDINAR CON LAS FIGURAS SOLIDARIAS EL CUMPLIMIENTO DE METAS  PARA EL LOGRO DE OBJETIVOS CONCLUSION DE NIVEL CERTIFICACIÓN Y SEGUIMIENTO",3570.85]
[null,"GUANAJUATO","11EBS6627E","VIVG891226AUB","VIVG891226MGTLLB09","GABRIELA VILLAFAÑA VALENCIA",261,0,0,20171001,20171015,"COORDINAR CON LAS FIGURAS SOLIDARIAS EL CUMPLIMIENTO DE METAS  PARA EL LOGRO DE OBJETIVOS CONCLUSION DE NIVEL CERTIFICACIÓN Y SEGUIMIENTO",3570.85]
[null,"GUANAJUATO","11EBS6627E","QUJL930118N38","QULJ930118HGTRDR04","JORGE IVAN QUIROZ LEDESMA",262,0,0,20171001,20171015,"COORDINAR CON LAS FIGURAS SOLIDARIAS EL CUMPLIMIENTO DE METAS  PARA EL LOGRO DE OBJETIVOS CONCLUSION DE NIVEL CERTIFICACIÓN Y SEGUIMIENTO",3570.85]
[null,"GUANAJUATO","11EBS6627E","RORP6205112D2","RORP620511MGTSMR04","PRISCILIANA ROSAS RAMIREZ",263,0,0,20171001,20171015,"CAPTACION DE EDUCANDOS EN INSTITUCIONES PRIVADAS DIFUNDIR LOS SERVICIOS Y VERIFICACION DE EXPEDIENTES",3570.85]
[null,"GUANAJUATO","11EBS6627E","GARB8206307FA","GARB820630MGTRMY04","ASTRID GASCA SANCHEZ",264,0,0,20171001,20171015,"CAPTACION DE EDUCANDOS EN INSTITUCIONES PRIVADAS DIFUNDIR LOS SERVICIOS Y VERIFICACION DE EXPEDIENTES",3570.85]
[null,"GUANAJUATO","11EBS6627E","GASA781212IX6","GASA781212MGTSNS02","BYANKA VERONICA GARCIA RAMIREZ",265,0,0,20171001,20171015,"CAPTACION DE EDUCANDOS EN INSTITUCIONES PRIVADAS DIFUNDIR LOS SERVICIOS Y VERIFICACION DE EXPEDIENTES",3570.85]
[null,"GUANAJUATO","11EBS6627E","GANA8108068CA","CANA810806HGTRXL00","ALFREDO GARCIA NUÑEZ",290,0,0,20171001,20171015,"CAPTACION DE EDUCANDOS EN INSTITUCIONES PRIVADAS DIFUNDIR LOS SERVICIOS Y VERIFICACION DE EXPEDIENTES",3570.85]
[null,"GUANAJUATO","11EBS6627E","AOSR941010F19","AOSR941010MGTLNY01","REYNA MARICRUZ ALONSO SANCHEZ",291,0,0,20171001,20171015,"INTEGRACION Y VERIFICACION DE EXPEDIENTES ASI COMO LA EMISION DE CERTIFICADOS",4481.43]
[null,"GUANAJUATO","11EBS6627E","FODL921125975","FODL921125MGTLRR03","LAURA GIOVANNA FLORES DURAN",292,0,0,20171001,20171015,"INTEGRACION Y VERIFICACION DE EXPEDIENTES ASI COMO LA EMISION DE CERTIFICADOS",4481.43]
[null,"GUANAJUATO","11EBS6627E","AAGC730719GKA","AAGC730719MDFNRR01","CAROLINA ANAYA GRANADOS",293,0,0,20171001,20171015,"CAPTACION DE EDUCANDOS EN INSTITUCIONES PRIVADAS DIFUNDIR LOS SERVICIOS Y VERIFICACION DE EXPEDIENTES",3570.85]
[null,"GUANAJUATO","11EBS6627E","FOCR630929829","FOCR630929MGTLRS08","ROSA FLORES CARDIEL",259,0,0,20171016,20171030,"COORDINAR CON LAS FIGURAS SOLIDARIAS EL CUMPLIMIENTO DE METAS  PARA EL LOGRO DE OBJETIVOS CONCLUSION DE NIVEL CERTIFICACIÓN Y SEGUIMIENTO",3570.85]
[null,"GUANAJUATO","11EBS6627E","AAMJ9312158C1","AAMJ931215MGTLNN05","JOANNA MARGARITA MENDOZA ALVAREZ",260,0,0,20171016,20171030,"COORDINAR CON LAS FIGURAS SOLIDARIAS EL CUMPLIMIENTO DE METAS  PARA EL LOGRO DE OBJETIVOS CONCLUSION DE NIVEL CERTIFICACIÓN Y SEGUIMIENTO",3570.85]
[null,"GUANAJUATO","11EBS6627E","VIVG891226AUB","VIVG891226MGTLLB09","GABRIELA VILLAFAÑA VALENCIA",261,0,0,20171016,20171030,"COORDINAR CON LAS FIGURAS SOLIDARIAS EL CUMPLIMIENTO DE METAS  PARA EL LOGRO DE OBJETIVOS CONCLUSION DE NIVEL CERTIFICACIÓN Y SEGUIMIENTO",3570.85]
[null,"GUANAJUATO","11EBS6627E","QUJL930118N38","QULJ930118HGTRDR04","JORGE IVAN QUIROZ LEDESMA",262,0,0,20171016,20171030,"COORDINAR CON LAS FIGURAS SOLIDARIAS EL CUMPLIMIENTO DE METAS  PARA EL LOGRO DE OBJETIVOS CONCLUSION DE NIVEL CERTIFICACIÓN Y SEGUIMIENTO",3570.85]
[null,"GUANAJUATO","11EBS6627E","RORP6205112D2","RORP620511MGTSMR04","PRISCILIANA ROSAS RAMIREZ",263,0,0,20171016,20171030,"CAPTACION DE EDUCANDOS EN INSTITUCIONES PRIVADAS DIFUNDIR LOS SERVICIOS Y VERIFICACION DE EXPEDIENTES",3570.85]
[null,"GUANAJUATO","11EBS6627E","GARB8206307FA","GARB820630MGTRMY04","ASTRID GASCA SANCHEZ",264,0,0,20171016,20171030,"CAPTACION DE EDUCANDOS EN INSTITUCIONES PRIVADAS DIFUNDIR LOS SERVICIOS Y VERIFICACION DE EXPEDIENTES",3570.85]
[null,"GUANAJUATO","11EBS6627E","GASA781212IX6","GASA781212MGTSNS02","BYANKA VERONICA GARCIA RAMIREZ",265,0,0,20171016,20171030,"CAPTACION DE EDUCANDOS EN INSTITUCIONES PRIVADAS DIFUNDIR LOS SERVICIOS Y VERIFICACION DE EXPEDIENTES",3570.85]
[null,"GUANAJUATO","11EBS6627E","GANA8108068CA","CANA810806HGTRXL00","ALFREDO GARCIA NUÑEZ",290,0,0,20171016,20171030,"CAPTACION DE EDUCANDOS EN INSTITUCIONES PRIVADAS DIFUNDIR LOS SERVICIOS Y VERIFICACION DE EXPEDIENTES",3570.85]
[null,"GUANAJUATO","11EBS6627E","AOSR941010F19","AOSR941010MGTLNY01","REYNA MARICRUZ ALONSO SANCHEZ",291,0,0,20171016,20171030,"INTEGRACION Y VERIFICACION DE EXPEDIENTES ASI COMO LA EMISION DE CERTIFICADOS",4481.43]
[null,"GUANAJUATO","11EBS6627E","FODL921125975","FODL921125MGTLRR03","LAURA GIOVANNA FLORES DURAN",292,0,0,20171016,20171030,"INTEGRACION Y VERIFICACION DE EXPEDIENTES ASI COMO LA EMISION DE CERTIFICADOS",4481.43]
[null,"GUANAJUATO","11EBS6627E","AAGC730719GKA","AAGC730719MDFNRR01","CAROLINA ANAYA GRANADOS",293,0,0,20171016,20171030,"CAPTACION DE EDUCANDOS EN INSTITUCIONES PRIVADAS DIFUNDIR LOS SERVICIOS Y VERIFICACION DE EXPEDIENTES",3570.85]
[null,"GUANAJUATO","11EBS6627E","MAOG6907228U9","MAOG690722MGTLRD04","MA. GUADALUPE MALAGON ORTIZ",330,0,0,20171001,20171030,"CAPTACION DE EDUCANDOS EN INSTITUCIONES PRIVADAS DIFUNDIR LOS SERVICIOS Y VERIFICACION DE EXPEDIENTES",7141.7]
[null,"GUANAJUATO","11EBS6627E","BEGF9406067Q6","BEGF940606MGTCRR01","MARIA FERNANDA BECERRA GARCIA",331,0,0,20171001,20171030,"CAPTACION DE EDUCANDOS EN INSTITUCIONES PRIVADAS DIFUNDIR LOS SERVICIOS Y VERIFICACION DE EXPEDIENTES",7141.7]
[null,"GUANAJUATO","11EBS6627E","FOCR630929829","FOCR630929MGTLRS08","ROSA FLORES CARDIEL",259,0,0,20171101,20171115,"COORDINAR CON LAS FIGURAS SOLIDARIAS EL CUMPLIMIENTO DE METAS  PARA EL LOGRO DE OBJETIVOS CONCLUSION DE NIVEL CERTIFICACIÓN Y SEGUIMIENTO",3570.85]
[null,"GUANAJUATO","11EBS6627E","AAMJ9312158C1","AAMJ931215MGTLNN05","JOANNA MARGARITA MENDOZA ALVAREZ",260,0,0,20171101,20171115,"COORDINAR CON LAS FIGURAS SOLIDARIAS EL CUMPLIMIENTO DE METAS  PARA EL LOGRO DE OBJETIVOS CONCLUSION DE NIVEL CERTIFICACIÓN Y SEGUIMIENTO",3570.85]
[null,"GUANAJUATO","11EBS6627E","VIVG891226AUB","VIVG891226MGTLLB09","GABRIELA VILLAFAÑA VALENCIA",261,0,0,20171101,20171115,"COORDINAR CON LAS FIGURAS SOLIDARIAS EL CUMPLIMIENTO DE METAS  PARA EL LOGRO DE OBJETIVOS CONCLUSION DE NIVEL CERTIFICACIÓN Y SEGUIMIENTO",3570.85]
[null,"GUANAJUATO","11EBS6627E","RORP6205112D2","RORP620511MGTSMR04","PRISCILIANA ROSAS RAMIREZ",263,0,0,20171101,20171115,"CAPTACION DE EDUCANDOS EN INSTITUCIONES PRIVADAS DIFUNDIR LOS SERVICIOS Y VERIFICACION DE EXPEDIENTES",3570.85]
[null,"GUANAJUATO","11EBS6627E","GARB8206307FA","GARB820630MGTRMY04","ASTRID GASCA SANCHEZ",264,0,0,20171101,20171115,"CAPTACION DE EDUCANDOS EN INSTITUCIONES PRIVADAS DIFUNDIR LOS SERVICIOS Y VERIFICACION DE EXPEDIENTES",3570.85]
[null,"GUANAJUATO","11EBS6627E","GASA781212IX6","GASA781212MGTSNS02","BYANKA VERONICA GARCIA RAMIREZ",265,0,0,20171101,20171115,"CAPTACION DE EDUCANDOS EN INSTITUCIONES PRIVADAS DIFUNDIR LOS SERVICIOS Y VERIFICACION DE EXPEDIENTES",3570.85]
[null,"GUANAJUATO","11EBS6627E","GANA8108068CA","CANA810806HGTRXL00","ALFREDO GARCIA NUÑEZ",290,0,0,20171101,20171115,"CAPTACION DE EDUCANDOS EN INSTITUCIONES PRIVADAS DIFUNDIR LOS SERVICIOS Y VERIFICACION DE EXPEDIENTES",3570.85]
[null,"GUANAJUATO","11EBS6627E","AOSR941010F19","AOSR941010MGTLNY01","REYNA MARICRUZ ALONSO SANCHEZ",291,0,0,20171101,20171115,"INTEGRACION Y VERIFICACION DE EXPEDIENTES ASI COMO LA EMISION DE CERTIFICADOS",4481.43]
[null,"GUANAJUATO","11EBS6627E","FODL921125975","FODL921125MGTLRR03","LAURA GIOVANNA FLORES DURAN",292,0,0,20171101,20171115,"INTEGRACION Y VERIFICACION DE EXPEDIENTES ASI COMO LA EMISION DE CERTIFICADOS",4481.43]
[null,"GUANAJUATO","11EBS6627E","AAGC730719GKA","AAGC730719MDFNRR01","CAROLINA ANAYA GRANADOS",293,0,0,20171101,20171115,"CAPTACION DE EDUCANDOS EN INSTITUCIONES PRIVADAS DIFUNDIR LOS SERVICIOS Y VERIFICACION DE EXPEDIENTES",3570.85]
[null,"GUANAJUATO","11EBS6627E","MAOG6907228U9","MAOG690722MGTLRD04","MA. GUADALUPE MALAGON ORTIZ",330,0,0,20171101,20171115,"CAPTACION DE EDUCANDOS EN INSTITUCIONES PRIVADAS DIFUNDIR LOS SERVICIOS Y VERIFICACION DE EXPEDIENTES",3570.85]
[null,"GUANAJUATO","11EBS6627E","BEGF9406067Q6","BEGF940606MGTCRR01","MARIA FERNANDA BECERRA GARCIA",331,0,0,20171101,20171115,"CAPTACION DE EDUCANDOS EN INSTITUCIONES PRIVADAS DIFUNDIR LOS SERVICIOS Y VERIFICACION DE EXPEDIENTES",3570.85]
[null,"GUANAJUATO","11EBS6627E","MALC7508281R3","MALC750828MGTRPL00","CLAUDIA MARTINEZ LOPEZ",336,0,0,20171001,20171115,"MODIFICACIONES A LA ESTRUCTURA Y A PERFILES DE PUESTO ",15267.32]
[null,"GUANAJUATO","11EBS6627E","GUSE9404192Z3","GUSE940419HGTRLR02","ERIK GUERRERO SILVA",337,0,0,20171016,20171115,"CAPTACION DE EDUCANDOS EN INSTITUCIONES PRIVADAS DIFUNDIR LOS SERVICIOS Y VERIFICACION DE EXPEDIENTES",7141.7]
[null,"GUANAJUATO","11EBS6627E","CAMH9708164U3","CAMH970816HDFRJG07","HUGO ENRIQUE CARBAJAL MEJIA",338,0,0,20171016,20171115,"CAPTACION DE EDUCANDOS EN INSTITUCIONES PRIVADAS DIFUNDIR LOS SERVICIOS Y VERIFICACION DE EXPEDIENTES",7141.7]
[null,"GUANAJUATO","11EBS6627E","MOAA7003131U9","MOAA700313MGTRLN00","MA. DE LOS ANGELES MORALES ALFARO",339,0,0,20171001,20171115,"CAPTACION DE EDUCANDOS EN INSTITUCIONES PRIVADAS DIFUNDIR LOS SERVICIOS Y VERIFICACION DE EXPEDIENTES",10310]
[null,"GUANAJUATO","11EBS6627E","FOCR630929829","FOCR630929MGTLRS08","ROSA FLORES CARDIEL",259,0,0,20171116,20171130,"COORDINAR CON LAS FIGURAS SOLIDARIAS EL CUMPLIMIENTO DE METAS  PARA EL LOGRO DE OBJETIVOS CONCLUSION DE NIVEL CERTIFICACIÓN Y SEGUIMIENTO",3570.85]
[null,null,null,"AAMJ9312158C1","AAMJ931215MGTLNN05","JOANNA MARGARITA MENDOZA ALVAREZ",260,0,0,20171116,20171130,"COORDINAR CON LAS FIGURAS SOLIDARIAS EL CUMPLIMIENTO DE METAS  PARA EL LOGRO DE OBJETIVOS CONCLUSION DE NIVEL CERTIFICACIÓN Y SEGUIMIENTO",3570.85]
[null,"GUANAJUATO","11EBS6627E","VIVG891226AUB","VIVG891226MGTLLB09","GABRIELA VILLAFAÑA VALENCIA",261,0,0,20171116,20171130,"COORDINAR CON LAS FIGURAS SOLIDARIAS EL CUMPLIMIENTO DE METAS  PARA EL LOGRO DE OBJETIVOS CONCLUSION DE NIVEL CERTIFICACIÓN Y SEGUIMIENTO",3570.85]
[null,"GUANAJUATO","11EBS6627E","RORP6205112D2","RORP620511MGTSMR04","PRISCILIANA ROSAS RAMIREZ",263,0,0,20171116,20171130,"CAPTACION DE EDUCANDOS EN INSTITUCIONES PRIVADAS DIFUNDIR LOS SERVICIOS Y VERIFICACION DE EXPEDIENTES",3570.85]
[null,"GUANAJUATO","11EBS6627E","GARB8206307FA","GARB820630MGTRMY04","ASTRID GASCA SANCHEZ",264,0,0,20171116,20171130,"CAPTACION DE EDUCANDOS EN INSTITUCIONES PRIVADAS DIFUNDIR LOS SERVICIOS Y VERIFICACION DE EXPEDIENTES",3570.85]
[null,"GUANAJUATO","11EBS6627E","GASA781212IX6","GASA781212MGTSNS02","BYANKA VERONICA GARCIA RAMIREZ",265,0,0,20171116,20171130,"CAPTACION DE EDUCANDOS EN INSTITUCIONES PRIVADAS DIFUNDIR LOS SERVICIOS Y VERIFICACION DE EXPEDIENTES",3570.85]
[null,"GUANAJUATO","11EBS6627E","GANA8108068CA","CANA810806HGTRXL00","ALFREDO GARCIA NUÑEZ",290,0,0,20171116,20171130,"CAPTACION DE EDUCANDOS EN INSTITUCIONES PRIVADAS DIFUNDIR LOS SERVICIOS Y VERIFICACION DE EXPEDIENTES",3570.85]
[null,"GUANAJUATO","11EBS6627E","AOSR941010F19","AOSR941010MGTLNY01","REYNA MARICRUZ ALONSO SANCHEZ",291,0,0,20171116,20171130,"INTEGRACION Y VERIFICACION DE EXPEDIENTES ASI COMO LA EMISION DE CERTIFICADOS",4481.43]
[null,"GUANAJUATO","11EBS6627E","FODL921125975","FODL921125MGTLRR03","LAURA GIOVANNA FLORES DURAN",292,0,0,20171116,20171130,"INTEGRACION Y VERIFICACION DE EXPEDIENTES ASI COMO LA EMISION DE CERTIFICADOS",4481.43]
[null,"GUANAJUATO","11EBS6627E","AAGC730719GKA","AAGC730719MDFNRR01","CAROLINA ANAYA GRANADOS",293,0,0,20171116,20171130,"CAPTACION DE EDUCANDOS EN INSTITUCIONES PRIVADAS DIFUNDIR LOS SERVICIOS Y VERIFICACION DE EXPEDIENTES",3570.85]
[null,"GUANAJUATO","11EBS6627E","MAOG6907228U9","MAOG690722MGTLRD04","MA. GUADALUPE MALAGON ORTIZ",330,0,0,20171116,20171130,"CAPTACION DE EDUCANDOS EN INSTITUCIONES PRIVADAS DIFUNDIR LOS SERVICIOS Y VERIFICACION DE EXPEDIENTES",3570.85]
[null,"GUANAJUATO","11EBS6627E","BEGF9406067Q6","BEGF940606MGTCRR01","MARIA FERNANDA BECERRA GARCIA",331,0,0,20171116,20171130,"CAPTACION DE EDUCANDOS EN INSTITUCIONES PRIVADAS DIFUNDIR LOS SERVICIOS Y VERIFICACION DE EXPEDIENTES",3570.85]
[null,"GUANAJUATO","11EBS6627E","MALC7508281R3","MALC750828MGTRPL00","CLAUDIA MARTINEZ LOPEZ",336,0,0,20171116,20171130,"MODIFICACIONES A LA ESTRUCTURA Y A PERFILES DE PUESTO ",5272.96]
[null,"GUANAJUATO","11EBS6627E","GUSE9404192Z3","GUSE940419HGTRLR02","ERIK GUERRERO SILVA",337,0,0,20171116,20171130,"CAPTACION DE EDUCANDOS EN INSTITUCIONES PRIVADAS DIFUNDIR LOS SERVICIOS Y VERIFICACION DE EXPEDIENTES",3570.85]
[null,"GUANAJUATO","11EBS6627E","CAMH9708164U3","CAMH970816HDFRJG07","HUGO ENRIQUE CARBAJAL MEJIA",338,0,0,20171116,20171130,"CAPTACION DE EDUCANDOS EN INSTITUCIONES PRIVADAS DIFUNDIR LOS SERVICIOS Y VERIFICACION DE EXPEDIENTES",3570.85]
[null,"GUANAJUATO","11EBS6627E","MOAA7003131U9","MOAA700313MGTRLN00","MA. DE LOS ANGELES MORALES ALFARO",339,0,0,20171116,20171130,"CAPTACION DE EDUCANDOS EN INSTITUCIONES PRIVADAS DIFUNDIR LOS SERVICIOS Y VERIFICACION DE EXPEDIENTES",3570.85]
[null,"GUANAJUATO","11EBS6627E","RORP6205112D2","RORP620511MGTSMR04","LEONARDO IBARRA PASTRANA",294,0,0,20171101,20171130,"COORDINAR A LOS INCORPORADORES PARA EL CUMPLIMIENTO DE METAS  PARA EL LOGRO DE OBJETIVOS",22972.15]
[null,"GUANAJUATO","11EBS6627E","FOCR630929829","FOCR630929MGTLRS08","ROSA FLORES CARDIEL",259,0,0,20171201,20171215,"COORDINAR CON LAS FIGURAS SOLIDARIAS EL CUMPLIMIENTO DE METAS  PARA EL LOGRO DE OBJETIVOS CONCLUSION DE NIVEL CERTIFICACIÓN Y SEGUIMIENTO",3570.85]
[null,"GUANAJUATO","11EBS6627E","AAMJ9312158C1","AAMJ931215MGTLNN05","JOANNA MARGARITA MENDOZA ALVAREZ",260,0,0,20171201,20171215,"COORDINAR CON LAS FIGURAS SOLIDARIAS EL CUMPLIMIENTO DE METAS  PARA EL LOGRO DE OBJETIVOS CONCLUSION DE NIVEL CERTIFICACIÓN Y SEGUIMIENTO",3570.85]
[null,"GUANAJUATO","11EBS6627E","VIVG891226AUB","VIVG891226MGTLLB09","GABRIELA VILLAFAÑA VALENCIA",261,0,0,20171201,20171215,"COORDINAR CON LAS FIGURAS SOLIDARIAS EL CUMPLIMIENTO DE METAS  PARA EL LOGRO DE OBJETIVOS CONCLUSION DE NIVEL CERTIFICACIÓN Y SEGUIMIENTO",3570.85]
[null,"GUANAJUATO","11EBS6627E","RORP6205112D2","RORP620511MGTSMR04","PRISCILIANA ROSAS RAMIREZ",263,0,0,20171201,20171215,"CAPTACION DE EDUCANDOS EN INSTITUCIONES PRIVADAS DIFUNDIR LOS SERVICIOS Y VERIFICACION DE EXPEDIENTES",3570.85]
[null,"GUANAJUATO","11EBS6627E","GARB8206307FA","GARB820630MGTRMY04","ASTRID GASCA SANCHEZ",264,0,0,20171201,20171215,"CAPTACION DE EDUCANDOS EN INSTITUCIONES PRIVADAS DIFUNDIR LOS SERVICIOS Y VERIFICACION DE EXPEDIENTES",3570.85]
[null,"GUANAJUATO","11EBS6627E","GASA781212IX6","GASA781212MGTSNS02","BYANKA VERONICA GARCIA RAMIREZ",265,0,0,20171201,20171215,"CAPTACION DE EDUCANDOS EN INSTITUCIONES PRIVADAS DIFUNDIR LOS SERVICIOS Y VERIFICACION DE EXPEDIENTES",3570.85]
[null,"GUANAJUATO","11EBS6627E","GANA8108068CA","CANA810806HGTRXL00","ALFREDO GARCIA NUÑEZ",290,0,0,20171201,20171215,"CAPTACION DE EDUCANDOS EN INSTITUCIONES PRIVADAS DIFUNDIR LOS SERVICIOS Y VERIFICACION DE EXPEDIENTES",3570.85]
[null,"GUANAJUATO","11EBS6627E","AOSR941010F19","AOSR941010MGTLNY01","REYNA MARICRUZ ALONSO SANCHEZ",291,0,0,20171201,20171215,"INTEGRACION Y VERIFICACION DE EXPEDIENTES ASI COMO LA EMISION DE CERTIFICADOS",4481.43]
[null,"GUANAJUATO","11EBS6627E","FODL921125975","FODL921125MGTLRR03","LAURA GIOVANNA FLORES DURAN",292,0,0,20171201,20171215,"INTEGRACION Y VERIFICACION DE EXPEDIENTES ASI COMO LA EMISION DE CERTIFICADOS",4481.43]
[null,"GUANAJUATO","11EBS6627E","AAGC730719GKA","AAGC730719MDFNRR01","CAROLINA ANAYA GRANADOS",293,0,0,20171201,20171215,"CAPTACION DE EDUCANDOS EN INSTITUCIONES PRIVADAS DIFUNDIR LOS SERVICIOS Y VERIFICACION DE EXPEDIENTES",3570.85]
[null,"GUANAJUATO","11EBS6627E","MAOG6907228U9","MAOG690722MGTLRD04","MA. GUADALUPE MALAGON ORTIZ",330,0,0,20171201,20171215,"CAPTACION DE EDUCANDOS EN INSTITUCIONES PRIVADAS DIFUNDIR LOS SERVICIOS Y VERIFICACION DE EXPEDIENTES",3570.85]
[null,"GUANAJUATO","11EBS6627E","BEGF9406067Q6","BEGF940606MGTCRR01","MARIA FERNANDA BECERRA GARCIA",331,0,0,20171201,20171215,"CAPTACION DE EDUCANDOS EN INSTITUCIONES PRIVADAS DIFUNDIR LOS SERVICIOS Y VERIFICACION DE EXPEDIENTES",3570.85]
[null,"GUANAJUATO","11EBS6627E","MALC7508281R3","MALC750828MGTRPL00","CLAUDIA MARTINEZ LOPEZ",336,0,0,20171201,20171215,"MODIFICACIONES A LA ESTRUCTURA Y A PERFILES DE PUESTO ",5272.96]
[null,"GUANAJUATO","11EBS6627E","GUSE9404192Z3","GUSE940419HGTRLR02","ERIK GUERRERO SILVA",337,0,0,20171201,20171215,"CAPTACION DE EDUCANDOS EN INSTITUCIONES PRIVADAS DIFUNDIR LOS SERVICIOS Y VERIFICACION DE EXPEDIENTES",3570.85]
[null,"GUANAJUATO","11EBS6627E","CAMH9708164U3","CAMH970816HDFRJG07","HUGO ENRIQUE CARBAJAL MEJIA",338,0,0,20171201,20171215,"CAPTACION DE EDUCANDOS EN INSTITUCIONES PRIVADAS DIFUNDIR LOS SERVICIOS Y VERIFICACION DE EXPEDIENTES",3570.85]
[null,"GUANAJUATO","11EBS6627E","MOAA7003131U9","MOAA700313MGTRLN00","MA. DE LOS ANGELES MORALES ALFARO",339,0,0,20171201,20171215,"CAPTACION DE EDUCANDOS EN INSTITUCIONES PRIVADAS DIFUNDIR LOS SERVICIOS Y VERIFICACION DE EXPEDIENTES",3570.85]
[null,"GUANAJUATO","11EBS6627E","GARS850705E61","GARS850705MGTRMN05","SANDRA NALLELI GARCIA RAMIREZ",433,0,0,20171101,20171130,"CAPTACION DE EDUCANDOS EN EL PROGRAMA EDUACION SIN FRONTERAS DIFUNDIR LOS SERVICIOS Y VERIFICACION DE EXPEDIENTES PARA LA INTEGRACIÓN Y APLICACIÓN DE EXAMEN",8142.06]
[null,"GUANAJUATO","11EBS6627E","ZAGF9310187K9","ZAGF931018MGTVRR08","MARIA FERNADA ZAVALA GUERRERO",434,0,0,20171101,20171130,"CAPTACION DE EDUCANDOS EN EL PROGRAMA EDUACION SIN FRONTERAS DIFUNDIR LOS SERVICIOS Y VERIFICACION DE EXPEDIENTES PARA LA INTEGRACIÓN Y APLICACIÓN DE EXAMEN",8142.06]
[null,"GUANAJUATO","11EBS6627E","SEVJ9007152E7","SEVJ900715MGTRYN08","JANET SIERRA VIEYRA",435,0,0,20171101,20171130,"CAPTACION DE EDUCANDOS EN EL PROGRAMA EDUACION SIN FRONTERAS DIFUNDIR LOS SERVICIOS Y VERIFICACION DE EXPEDIENTES PARA LA INTEGRACIÓN Y APLICACIÓN DE EXAMEN",8142.06]
[null,"GUANAJUATO","11EBS6627E","DUCR9101301T7","DUCR910130MGTRRX05","ROXANA DURAN CERVANTES",436,0,0,20171101,20171130,"CAPTACION DE EDUCANDOS EN EL PROGRAMA EDUACION SIN FRONTERAS DIFUNDIR LOS SERVICIOS Y VERIFICACION DE EXPEDIENTES PARA LA INTEGRACIÓN Y APLICACIÓN DE EXAMEN",8142.06]
[null,"GUANAJUATO","11EBS6627E","CEMA640530LK2","CEMA640530MGTRNL00","ALMA GABRIELA CERVANTES MENDOZA",437,0,0,20171101,20171130,"CAPTACION DE EDUCANDOS EN EL PROGRAMA EDUACION SIN FRONTERAS DIFUNDIR LOS SERVICIOS Y VERIFICACION DE EXPEDIENTES PARA LA INTEGRACIÓN Y APLICACIÓN DE EXAMEN",8142.06]
[null,"GUANAJUATO","11EBS6627E","CAGS950410RL5","CASG950410MGTRNR04","SARAHY CARRILLO GONZALEZ",438,0,0,20171101,20171130,"CAPTACION DE EDUCANDOS EN EL PROGRAMA EDUACION SIN FRONTERAS DIFUNDIR LOS SERVICIOS Y VERIFICACION DE EXPEDIENTES PARA LA INTEGRACIÓN Y APLICACIÓN DE EXAMEN",8142.06]
[null,"Total Entidad Federativa Personas : ",null,78,null,null,null,null,null,null,null,"Subtotal Monto Pagado en el Periodo:",{"$f":"SUM(Tabla14[Percepciones pagadas dentro del periodo reportado])","v":374154.74999999983}]
[null,null,null,null,null,null,null,null,null,"Total   Percepciones :"]
[]
[null,"Fuente : Información proporcionada por las Entidades Federativas"]

{"sheet":"II D) 7 1","index":10,"n_rows":43,"n_cols":19,"rows_kept":43,"cut":false,"hidden":false,"merged":[[39,16,39,17],[12,18,13,18],[12,13,13,13],[12,14,13,14],[12,15,13,15],[12,16,13,16],[8,17,8,18],[9,1,9,9],[12,6,13,6],[12,7,12,9],[12,10,13,10],[12,11,13,11],[12,12,13,12],[12,1,13,1],[12,2,13,2],[12,3,13,3],[12,4,13,4],[12,5,13,5],[12,17,13,17]]}
[]
[]
[]
[]
[]
[]
[]
[]
[null,"Formato: Analítico de Categorías / Plazas Autorizadas con su Tabulador",null,null,null,null,null,null,null,null,null,null,null,null,null,null,"Entidad Federativa:",{"$f":"IF('Caratula Resumen'!D21=\"Elige el Periodo…\",\"\",'Caratula Resumen'!D21)","v":" GUANAJUATO "}]
[null,{"$f":"IF('Caratula Resumen'!D22=\"Elige el Periodo…\",\"\",'Caratula Resumen'!D22)","v":"Fondo de Aportaciones para la Educación Tecnológica y de Adultos/Instituto Nacional para la Educación de los Adultos (FAETA/INEA)"},null,null,null,null,null,null,null,null,null,null,null,null,null,null,null,null,{"$f":"'A Y  II D3'!X10","v":"4to. Trimestre 2017"}]
[]
[]
[null,"Clave Tipo educativo","Clave Nivel educativo","Clave Subnivel educativo","Descripción Nivel / Subnivel","Tipo Financiamiento","Partida Presupuestal","CATEGORIA",null,null,"Zona Económica","Nivel Puesto","Nivel Sueldo","Tipo Contratación","Monto mensual\npor plaza jornada","Monto mensual\nPor Plaza HSM","Número de Plazas Jornada","Número de Plazas HSM","Monto total autorizado"]
[null,null,null,null,null,null,null,"Tipo de Categoría"," Categoría","Descripción"]
[]
[null,"Clave Tipo educativo","Clave Nivel educativo","Clave Subnivel educativo","Descripción Nivel / Subnivel","Tipo Financiamiento","Partida Presupestal","Tipo de Categoría"," Categoría","Descripción","Zona Económica","Nivel Puesto","Nivel Sueldo","Tipo Contratación","Monto mensual\npor plaza jornada","Monto mensual\nPor Plaza HSM","Número de Plazas Jornada","Número de Plazas HSM","Monto total autorizado"]
[null,6,61,64,"PRIMARIA, SECUNDARIA Y CAPACITACION PARA EL TRABAJO","FAETA",83101,1,"A01803","ADMINISTRATIVO ESPECIALIZADO","B",29,2,"P",6093.63,0,5,0,30468.15]
[null,6,61,64,"PRIMARIA, SECUNDARIA Y CAPACITACION PARA EL TRABAJO","FAETA",83101,1,"A01806","ANALISTA ADMINISTRATIVO","B",70,3,"P",6256.23,0,20,0,125124.59999999999]
[null,6,61,64,"PRIMARIA, SECUNDARIA Y CAPACITACION PARA EL TRABAJO","FAETA",83101,1,"A01807","JEFE DE OFICINA","B",81,5,"P",6597.38,0,31,0,204518.78]
[null,6,61,64,"PRIMARIA, SECUNDARIA Y CAPACITACION PARA EL TRABAJO","FAETA",83101,1,"A03804","SECRETARIA C","B",43,2,"P",6093.63,0,27,0,164528.01]
[null,6,61,64,"PRIMARIA, SECUNDARIA Y CAPACITACION PARA EL TRABAJO","FAETA",83101,1,"CF01059","JEFE DE DEPARTAMENTO","B",93,"OA1","P",5164.5,0,5,0,25822.5]
[null,6,61,64,"PRIMARIA, SECUNDARIA Y CAPACITACION PARA EL TRABAJO","FAETA",83101,1,"CF04807","SECRETARIA EJECUTIVA B","B",61,6,"P",6510.6,0,1,0,6510.6]
[null,6,61,64,"PRIMARIA, SECUNDARIA Y CAPACITACION PARA EL TRABAJO","FAETA",83101,1,"CF12804","ANALISTA PROGRAMADOR B","B",83,6,"P",6510.6,0,1,0,6510.6]
[null,6,61,64,"PRIMARIA, SECUNDARIA Y CAPACITACION PARA EL TRABAJO","FAETA",83101,1,"CF12814","ESPECIALISTA EN TELEINFORMATICA","B",86,7,"P",6620.95,0,2,0,13241.9]
[null,6,61,64,"PRIMARIA, SECUNDARIA Y CAPACITACION PARA EL TRABAJO","FAETA",83101,1,"CF14070","DIRECTOR/DELEGADO","B",97,"MB2","P",14611.06,0,1,0,14611.06]
[null,6,61,64,"PRIMARIA, SECUNDARIA Y CAPACITACION PARA EL TRABAJO","FAETA",83101,1,"CF21865","PROFESIONAL DICTAMINADOR DE SERVICIOS ESPECIALIZADOS","B",1,1,"P",6703.6,0,23,0,154182.80000000002]
[null,6,61,64,"PRIMARIA, SECUNDARIA Y CAPACITACION PARA EL TRABAJO","FAETA",83101,1,"CF33849","COORDINADOR DE SERVICIOS ESPECIALIZADOS","B",88,8,"P",6699.65,0,3,0,20098.949999999997]
[null,6,61,64,"PRIMARIA, SECUNDARIA Y CAPACITACION PARA EL TRABAJO","FAETA",83101,1,"CF34810","ANALISTA ADMINISTRATIVO","B",70,3,"P",6069.3,0,1,0,6069.3]
[null,6,61,64,"PRIMARIA, SECUNDARIA Y CAPACITACION PARA EL TRABAJO","FAETA",83101,1,"CF36014","COORDINADOR REGIONAL","B",95,"OA1","P",5164.5,0,15,0,77467.5]
[null,6,61,64,"PRIMARIA, SECUNDARIA Y CAPACITACION PARA EL TRABAJO","FAETA",83101,1,"CF36014","COORDINADOR DE ZONA","B",95,"OA1","P",4190.88,0,15,0,62863.200000000004]
[null,6,61,64,"PRIMARIA, SECUNDARIA Y CAPACITACION PARA EL TRABAJO","FAETA",83101,1,"CF36014","COORDINADOR DE ZONA II","B",95,"OA1","P",4328.8500000000004,0,15,0,64932.750000000007]
[null,6,61,64,"PRIMARIA, SECUNDARIA Y CAPACITACION PARA EL TRABAJO","FAETA",83101,1,"CF36014","COORDINADOR DE ZONA","B",95,"OA1","P",4328.8500000000004,0,15,0,64932.750000000007]
[null,6,61,64,"PRIMARIA, SECUNDARIA Y CAPACITACION PARA EL TRABAJO","FAETA",83101,1,"CF36014","COORDINADOR DE ZONA","B",95,"OA1","P",4190.88,0,15,0,62863.200000000004]
[null,6,61,64,"PRIMARIA, SECUNDARIA Y CAPACITACION PARA EL TRABAJO","FAETA",83101,1,"CF36014","COORDINADOR DE ZONA I","B",95,"OA1","P",4190.88,0,15,0,62863.200000000004]
[null,6,61,64,"PRIMARIA, SECUNDARIA Y CAPACITACION PARA EL TRABAJO","FAETA",83101,1,"S01803","OFICIAL DE SERVICIOS Y MANTENIMIENTO","B",21,2,"P",6093.63,0,6,0,36561.78]
[null,6,61,64,"PRIMARIA, SECUNDARIA Y CAPACITACION PARA EL TRABAJO","FAETA",83101,1,"T03803","TECNICO MEDIO","B",47,2,"P",6093.63,0,24,0,146247.12]
[null,6,61,64,"PRIMARIA, SECUNDARIA Y CAPACITACION PARA EL TRABAJO","FAETA",83101,1,"T03810","ESPECIALISTA EN PROYECTOS TECNICOS","B",39,2,"P",6093.63,0,26,0,158434.38]
[null,6,61,64,"PRIMARIA, SECUNDARIA Y CAPACITACION PARA EL TRABAJO","FAETA",83101,1,"T03820","TECNICO DOCENTE","B",82,7,"P",6824.88,0,179,0,1221653.52]
[null,6,61,64,"PRIMARIA, SECUNDARIA Y CAPACITACION PARA EL TRABAJO","FAETA",83101,1,"T03823","TECNICO SUPERIOR","B",86,7,"P",6824.88,0,6,0,40949.279999999999]
[null,"Total personas",null,23,null,null,null,null,null,null,null,null,null,"Total Jornada:",{"$f":"SUBTOTAL(109,Tabla15[Monto mensual\npor plaza jornada])","v":142256.62000000002},null,"Total Autorizado:",null,{"$f":"SUBTOTAL(109,Tabla15[Monto total autorizado])","v":2771455.9299999997}]
[null,null,null,null,null,null,null,null,null,null,null,null,null,"Total HSM",null,{"$f":"SUM(O45)","v":0}]
[]
[null,"Fuente : Información proporcionada por las Entidades Federativas"]

{"sheet":"II D) 7 2 ","index":11,"n_rows":46,"n_cols":18,"rows_kept":46,"cut":false,"hidden":false,"merged":[[14,8,15,8],[14,9,14,13],[14,14,14,16],[10,16,10,17],[11,1,11,9],[14,1,15,1],[14,2,15,2],[14,3,15,3],[14,17,15,17],[14,6,15,6],[14,7,15,7],[14,4,15,4],[14,5,15,5]]}
[]
[]
[]
[]
[]
[]
[]
[]
[]
[]
[null,"Formato: Catálogo de Categorías y Tabuladores",null,null,null,null,null,null,null,null,null,null,null,null,null,"Entidad Federativa:",{"$f":"IF('Caratula Resumen'!D21=\"Elige el Periodo…\",\"\",'Caratula Resumen'!D21)","v":" GUANAJUATO "}]
[null,{"$f":"IF('Caratula Resumen'!D22=\"Elige el Periodo…\",\"\",'Caratula Resumen'!D22)","v":"Fondo de Aportaciones para la Educación Tecnológica y de Adultos/Instituto Nacional para la Educación de los Adultos (FAETA/INEA)"},null,null,null,null,null,null,null,null,null,null,null,null,null,null,null,{"$f":"'A Y  II D3'!X10","v":"4to. Trimestre 2017"}]
[]
[]
[null,"Identificador origen presupuestal de la plaza","Clave de categoría","Descripción de la categoría","Tipo de contratación","Tipo de categoría","Clave de concepto de pago","Clave de nivel de puesto","Clave de nivel de sueldo","Sueldo asignado por zona económica",null,null,null,null,"Datos adicionales de horas",null,null,"Fecha de actualización"]
[null,null,null,null,null,null,null,null,null,"Inicio de vigencia del sueldo","Fin de vigencia del sueldo","Monto Mensual Jornada ó de HSM\nZona A","Monto Mensual Jornada ó de HSM\nZona B","Monto Mensual Jornada ó de HSM\nZona C","Horas \nde compatibilidad","Horas de servicio (HSM)","Horas de docencia"]
[]
[null,"Identificador origen presupuestal de la plaza","Clave de categoría","Descripción de la categoría","Tipo de contratación","Tipo de categoría","Clave de concepto de pago","Clave de nivel de puesto","Clave de nivel de sueldo","Inicio de vigencia del sueldo","Fin de vigencia del sueldo","Monto Mensual Jornada ó de HSM\nZona A","Monto Mensual Jornada ó de HSM\nZona B","Monto Mensual Jornada ó de HSM\nZona C","Horas \nde compatibilidad","Horas de servicio (HSM)","Horas de docencia","Fecha de actualización"]
[null,1,"A01803","ADMINISTRATIVO ESPECIALIZADO","P",2,"001a","A01803",2,201719,999999,0,0,6093.63,35,35,0,20171015]
[null,1,"A01806","ANALISTA ADMINISTRATIVO","P",2,"001a","A01806",3,201719,999999,0,0,6256.23,35,35,0,20171015]
[null,1,"A01807","JEFE DE OFICINA","P",2,"001a","A01807",5,201719,999999,0,0,6597.38,35,35,0,20171015]
[null,1,"A03804","SECRETARIA C","P",2,"001a","A03804",2,201719,999999,0,0,6093.63,35,35,0,20171015]
[null,1,"CF01059","JEFE DE DEPARTAMENTO","P",2,"001a","CF01059","OA1",201719,999999,0,0,5164.5,35,35,0,20171015]
[null,1,"CF04807","SECRETARIA EJECUTIVA B","P",2,"001a","CF04807",6,201719,999999,0,0,6510.6,35,35,0,20171015]
[null,1,"CF12804","ANALISTA PROGRAMADOR B","P",2,"001a","CF12804",6,201719,999999,0,0,6510.6,35,35,0,20171015]
[null,1,"CF12814","ESPECIALISTA EN TELEINFORMATICA","P",2,"001a","CF12814",7,201719,999999,0,0,6620.95,35,35,0,20171015]
[null,1,"CF14070","DIRECTOR/DELEGADO","P",2,"001a","CF14070","MB2",201719,999999,0,0,14611.06,35,35,0,20171015]
[null,1,"CF21865","PROFESIONAL DICTAMINADOR DE SERVICIOS ESPECIALIZADOS","P",2,"001a","CF21865",1,201719,999999,0,0,6703.6,35,35,0,20171015]
[null,1,"CF33849","COORDINADOR DE SERVICIOS ESPECIALIZADOS","P",2,"001a","CF33849",8,201719,999999,0,0,6699.65,35,35,0,20171015]
[null,1,"CF34810","ANALISTA ADMINISTRATIVO","P",2,"001a","CF34810",3,201719,999999,0,0,6069.3,35,35,0,20171015]
[null,1,"CF36014","COORDINADOR REGIONAL","P",2,"001a","CF36014","OA1",201719,999999,0,0,5164.5,35,35,0,20171015]
[null,1,"CF36014","COORDINADOR DE ZONA","P",2,"001a","CF36014","OA1",201719,999999,0,0,4190.88,35,35,0,20171015]
[null,1,"CF36014","COORDINADOR DE ZONA II","P",2,"001a","CF36014","OA1",201719,999999,0,0,4328.8500000000004,35,35,0,20171015]
[null,1,"CF36014","COORDINADOR DE ZONA","P",2,"001a","CF36014","OA1",201719,999999,0,0,4328.8500000000004,35,35,0,20171015]
[null,1,"CF36014","COORDINADOR DE ZONA","P",2,"001a","CF36014","OA1",201719,999999,0,0,4190.88,35,35,0,20171015]
[null,1,"CF36014","COORDINADOR DE ZONA I","P",2,"001a","CF36014","OA1",201719,999999,0,0,4190.88,35,35,0,20171015]
[null,1,"S01803","OFICIAL DE SERVICIOS Y MANTENIMIENTO","P",2,"001a","S01803",2,201719,999999,0,0,6093.63,35,35,0,20171015]
[null,1,"T03803","TECNICO MEDIO","P",2,"001a","T03803",2,201719,999999,0,0,6093.63,35,35,0,20171015]
[null,1,"T03810","ESPECIALISTA EN PROYECTOS TECNICOS","P",2,"001a","T03810",2,201719,999999,0,0,6093.63,35,35,0,20171015]
[null,1,"T03820","TECNICO DOCENTE","P",2,"001a","T03820",7,201719,999999,0,0,6824.88,35,35,0,20171015]
[null,1,"T03823","TECNICO SUPERIOR","P",2,"001a","T03823",7,201719,999999,0,0,6824.88,35,35,0,20171015]
[null,"Total","23",null,null,null,null,null,null,null,"Total Zona A:",{"$f":"SUBTOTAL(109,Tabla16[Monto Mensual Jornada ó de HSM\nZona A])","v":0}]
[null,null,null,null,null,null,null,null,null,null,null,"Total Zona B:",{"$f":"SUM(M19:M42)","v":0}]
[null,null,null,null,null,null,null,null,null,null,null,null,"Total Zona C:",{"$f":"SUM(N19:N43)","v":142256.62000000002}]
[]
[null,"Fuente : Información proporcionada por las Entidades Federativas"]

{"sheet":"II D) 7 3","index":12,"n_rows":148,"n_cols":11,"rows_kept":148,"cut":false,"hidden":false,"merged":[[9,1,9,7],[8,9,8,10]]}
[]
[]
[]
[]
[]
[]
[]
[]
[null,"Formato: Catálogo de Percepciones y Deducciones",null,null,null,null,null,null,"Entidad Federativa:",{"$f":"IF('Caratula Resumen'!D21=\"Elige el Periodo…\",\"\",'Caratula Resumen'!D21)","v":" GUANAJUATO "}]
[null,{"$f":"IF('Caratula Resumen'!D22=\"Elige el Periodo…\",\"\",'Caratula Resumen'!D22)","v":"Fondo de Aportaciones para la Educación Tecnológica y de Adultos/Instituto Nacional para la Educación de los Adultos (FAETA/INEA)"},null,null,null,null,null,null,null,null,{"$f":"'A Y  II D3'!X10","v":"4to. Trimestre 2017"}]
[]
[]
[null,"Identificador origen presupuestal de la plaza","Tipo de concepto de pago ","Origen de financiamiento del concepto de percepciones.","Porcentaje de participación federal por fuente de recursos","Grupo al que pertenece concepto de pago (Percepción y/o Deducción)","Clave de concepto de pago","Descripción del concepto de pago ","Partida presupuestal","Fecha del","Fecha  al"]
[]
[null,"Identificador origen presupuestal de la plaza","Tipo de concepto de pago ","Origen de financiamiento del concepto de percepciones.","Porcentaje de participación federal por fuente de recursos","Grupo al que pertenece concepto de pago (Percepción y/o Deducción)","Clave de concepto de pago","Descripción del concepto de pago ","Partida presupuestal","Fecha del","Fecha  al"]
[null,1,"P","F",100,"P2","001a","SUELDOS",83101,20170101,20171222]
[null,1,"P","F",100,"P2","001b","SUELDO HOMOLOGADO LAUDO",83101,20170101,20171222]
[null,1,"P","F",100,"P2","001c","SUELDO HOMOLOGADO",83101,20170101,20171222]
[null,1,"P","F",100,"P2","001d","DIFERENCIA DE SUELDO",83101,20170101,20171222]
[null,1,"P","F",100,"P2","001e","HONORARIOS ASIM A SALARIOS",83101,20170101,20171222]
[null,1,"P","F",100,"P2","001f","Gratificación Acreditación FS",83101,20170101,20171222]
[null,1,"P","F",100,"P2","001g","GRATIFICACION ATENCION A LA DEMANDA FS",83101,20170101,20171222]
[null,1,"P","F",100,"P2","008a","PUNTUALIDAD MENSUAL",83101,20170101,20171222]
[null,1,"P","F",100,"P2","009a","DESPENSA",83101,20170101,20171222]
[null,1,"P","F",100,"P2","009b","DESPENSA EXTRAORDINARIA",83101,20170101,20171222]
[null,1,"P","F",100,"P2","010a","AYUDA DE GUARDERIA",83101,20170101,20171222]
[null,1,"P","F",100,"P2","011a","DIAS ECONOMICOS",83101,20170101,20171222]
[null,1,"P","F",100,"P2","012a","AYUDA PARA SERVICIOS BASE Y CONFIANZA",83101,20170101,20171222]
[null,1,"P","F",100,"P2","013a","AYUDA PARA ANTEOJOS",83101,20170101,20171222]
[null,1,"P","F",100,"P2","014a","COMPENSACION POR ANTIGUEDAD 3%",83101,20170101,20171222]
[null,1,"P","F",100,"P2","014b","COMPENSACION POR ANTIGUEDAD 4%",83101,20170101,20171222]
[null,1,"P","F",100,"P2","014c","COMPENSACION POR ANTIGUEDAD 5%",83101,20170101,20171222]
[null,1,"P","F",100,"P2","014d","COMPENSACION POR ANTIGUEDAD 6%",83101,20170101,20171222]
[null,1,"P","F",100,"P2","014e","COMPENSACION POR ANTIGUEDAD 7%",83101,20170101,20171222]
[null,1,"P","F",100,"P2","014f","COMPENSACION POR ANTIGUEDAD 8%",83101,20170101,20171222]
[null,1,"P","F",100,"P2","014g","COMPENSACION POR ANTIGUEDAD 9%",83101,20170101,20171222]
[null,1,"P","F",100,"P2","014h","COMPENSACION POR ANTIG. 10%",83101,20170101,20171222]
[null,1,"P","F",100,"P2","014i","COMPENSACION POR ANTIG. 11%",83101,20170101,20171222]
[null,1,"P","F",100,"P2","014j","COMPENSACION POR ANTIG. 12%",83101,20170101,20171222]
[null,1,"P","F",100,"P2","014k","COMPENSACION POR ANTIG. 13%",83101,20170101,20171222]
[null,1,"P","F",100,"P2","014l","COMPENSACION POR ANTIG. 14%",83101,20170101,20171222]
[null,1,"P","F",100,"P2","014m","COMPENSACION POR ANTIG. 15%",83101,20170101,20171222]
[null,1,"P","F",100,"P2","014n","COMPENSACION POR ANTIG. 16%",83101,20170101,20171222]
[null,1,"P","F",100,"P2","014o","COMPENSACION POR ANTIG. 17%",83101,20170101,20171222]
[null,1,"P","F",100,"P2","014p","COMPENSACION POR ANTIG. 18%",83101,20170101,20171222]
[null,1,"P","F",100,"P2","014q","COMPENSACION POR ANTIG. 19%",83101,20170101,20171222]
[null,1,"P","F",100,"P2","014r","COMPENSACION POR ANTIG. 20%",83101,20170101,20171222]
[null,1,"P","F",100,"P2","014s","COMPENSACION POR ANTIG. 21%",83101,20170101,20171222]
[null,1,"P","F",100,"P2","014t","COMPENSACION POR ANTIG. 22%",83101,20170101,20171222]
[null,1,"P","F",100,"P2","014u","COMPENSACION POR ANTIG. 23%",83101,20170101,20171222]
[null,1,"P","F",100,"P2","014v","COMPENSACION POR ANTIG. 24%",83101,20170101,20171222]
[null,1,"P","F",100,"P2","014w","COMPENSACION POR ANTIG. 25%",83101,20170101,20171222]
[null,1,"P","F",100,"P2","014x","COMPENSACION POR ANTIG. 26%",83101,20170101,20171222]
[null,1,"P","F",100,"P2","014y","COMPENSACION POR ANTIG. 27%",83101,20170101,20171222]
[null,1,"P","F",100,"P2","014z","COMPENSACION POR ANTIG. 28%",83101,20170101,20171222]
[null,1,"P","F",100,"P2","015a","PUNTUALIDAD PERFECTA",83101,20170101,20171222]
[null,1,"P","F",100,"P2","016a","DIA DE REYES",83101,20170101,20171222]
[null,1,"P","F",100,"P2","017a","ESTIMULO POR 10 AÑOS DE SERVICIO  ",83101,20170101,20171222]
[null,1,"P","F",100,"P2","017b","ESTIMULO POR 15 AÑOS DE SERVICIO  ",83101,20170101,20171222]
[null,1,"P","F",100,"P2","017c","ESTIMULO POR 20 AÑOS DE SERVICIO ",83101,20170101,20171222]
[null,1,"P","F",100,"P2","017d","ESTIMULO POR 25 AÑOS DE SERVICIO  ",83101,20170101,20171222]
[null,1,"P","F",100,"P2","017e","ESTIMULO POR 30 AÑOS DE SERVICIO  ",83101,20170101,20171222]
[null,1,"P","F",100,"P2","018a","DIA DE LA MADRE",83101,20170101,20171222]
[null,1,"P","F",100,"P2","019a","DIA DEL PADRE",83101,20170101,20171222]
[null,1,"P","F",100,"P2","020a","CAPACITACION Y DESARROLLO",83101,20170101,20171222]
[null,1,"P","F",100,"P2","020b","DIFERENCIA CAPACITACION Y DESARROLLO",83101,20170101,20171222]
[null,1,"P","F",100,"P2","021a","DIA DEL  TRABAJADOR DE LA EDUCACION",83101,20170101,20171222]
[null,1,"P","F",100,"P2","022a","QUINQUENIO CONFIANZA",83101,20170101,20171222]
[null,1,"P","F",100,"P2","023a","PRIMA VACACIONAL BASE",83101,20170101,20171222]
[null,1,"P","F",100,"P2","023b","PRIMA VACACIONAL CONFIANZA Y MANDO MEDIO",83101,20170101,20171222]
[null,1,"P","F",100,"P2","023c","PRIMA VACACIONAL CONFIANZA Y MANDO MEDIO",83101,20170101,20171222]
[null,1,"P","F",100,"P2","023d","PRIMA VACACIONAL CONFIANZA Y MANDO MEDIO",83101,20170101,20171222]
[null,1,"P","F",100,"P2","024a","AGUINALDO DE SUELDO",83101,20170101,20171222]
[null,1,"P","F",100,"P2","024b","AGUINALDO DE COMPENSACIÓN",83101,20170101,20171222]
[null,1,"P","F",100,"P2","025a","CANASTA MATERNA",83101,20170101,20171222]
[null,1,"P","F",100,"P2","026a","RECOMPENSA",83101,20170101,20171222]
[null,1,"P","F",100,"P2","027a","AYUDA POR DEFUNCION",83101,20170101,20171222]
[null,1,"P","F",100,"P2","028b","APARATOS ORTOPEDICOS GRAVADOS",83101,20170101,20171222]
[null,1,"P","F",100,"P2","029a","AYUDA PARA PROTESIS EXENTA",83101,20170101,20171222]
[null,1,"P","F",100,"P2","029b","AYUDA PARA PROTESIS GRAVADO",83101,20170101,20171222]
[null,1,"P","F",100,"P2","030a","DIAS POR AJUSTE ANUAL",83101,20170101,20171222]
[null,1,"P","F",100,"P2","031a","ESTIMULO POR AÑOS DE SERVICIO",83101,20170101,20171222]
[null,1,"P","F",100,"P2","032a","AYUDA DE TITULACIÓN",83101,20170101,20171222]
[null,1,"P","F",100,"P2","033a","DIA DEL NIÑO",83101,20170101,20171222]
[null,1,"P","F",100,"P2","034a","UTILES ESCOLAREA",83101,20170101,20171222]
[null,1,"P","F",100,"P2","035a","VALES DE DESPENSA",83101,20170101,20171222]
[null,1,"P","F",100,"P2","036a","ISR PRIMA AGUINALDO",83101,20170101,20171222]
[null,1,"P","F",100,"P2","036b","OTRAS PRESTACIONES (ISR P.V.)",83101,20170101,20171222]
[null,1,"P","F",100,"P2","036c","OTRAS PRESTACIONES (ISR AGUINALDO)",83101,20170101,20171222]
[null,1,"P","F",100,"P2","037a","DIFERENCIA PRESTACIONES VARIAS",83101,20170101,20171222]
[null,1,"P","F",100,"P2","038a","SUBSIDIO AL EMPLEO",83101,20170101,20171222]
[null,1,"P","F",100,"P2","039a","NOTAS BUENAS",83101,20170101,20171222]
[null,1,"P","F",100,"P2","041a","AGUINALDO EXENTO",83101,20170101,20171222]
[null,1,"P","F",100,"P2","063a","PROFESIONALIZACION B",83101,20170101,20171222]
[null,1,"P","F",100,"P2","063b","RETROACTIVO PROF. B",83101,20170101,20171222]
[null,1,"P","F",100,"P2","14Aa","COMPENSACION POR ANTIG. 29%",83101,20170101,20171222]
[null,1,"P","F",100,"P2","14Ab","COMPENSACION POR ANTIG. 30%",83101,20170101,20171222]
[null,1,"P","F",100,"P2","14Ac","COMPENSACION POR ANTIG. 23%",83101,20170101,20171222]
[null,1,"D","F",100,"D2","022d","INCAPACIDAD POR ENFERMEDAD GENERAL AL 0%  (sueldo)",83101,20170101,20171222]
[null,1,"D","F",100,"D2","022e","INCAPACIDAD POR ENFERMEDAD GENERAL AL 0% (capacitación)",83101,20170101,20171222]
[null,1,"D","F",100,"D2","022f","INCAPACIDAD POR ENFERMEDAD GENERAL AL 0% (otras percepciones)",83101,20170101,20171222]
[null,1,"D","F",100,"D2","024a","CUENTAS POR COBRAR",83101,20170101,20171222]
[null,1,"D","F",100,"D2","003a","FONDO/PENSION ISSSTE",83101,20170101,20171222]
[null,1,"D","F",100,"D2","004a","SEGURO COLECTIVO DE RETIRO PAR",83101,20170101,20171222]
[null,1,"D","F",100,"D2","019a","CUOTA SINDICAL RETIRO",83101,20170101,20171222]
[null,1,"D","F",100,"D2","016a","OPTICA MAXIVISION",83101,20170101,20171222]
[null,1,"D","F",100,"D2","001a","SERVICIO MEDICO Y MATERNIDAD ISSSTE",83101,20170101,20171222]
[null,1,"D","F",100,"D2","021a","CUOTA SINDICAL",83101,20170101,20171222]
[null,1,"D","F",100,"D2","002a","IMPUESTO SOBRE LA RENTA",83101,20170101,20171222]
[null,1,"D","F",100,"D2","006a","PRESTAMOS A CORTO PLAZO",83101,20170101,20171222]
[null,1,"D","F",100,"D2","006b","PRESTAMOS COMPLEMENTARIOS",83101,20170101,20171222]
[null,1,"D","F",100,"D2","014a","FALTAS",83101,20170101,20171222]
[null,1,"D","F",100,"D2","013a","FONAC",83101,20170101,20171222]
[null,1,"D","F",100,"D2","004b","SEGURO COLECTIVO DE RETIRO NON",83101,20170101,20171222]
[null,1,"D","F",100,"D2","062a","PENSION ALIMENTICIA",83101,20170101,20171222]
[null,1,"D","F",100,"D2","005a","AHORRO SOLIDARIO DEL TRABAJADOR",83101,20170101,20171222]
[null,1,"D","F",100,"D2","005b","AHORRO SOLIDARIO DEL TRABAJADOR",83101,20170101,20171222]
[null,1,"D","F",100,"D2","007a","PRESTAMO HIPOTECARIO",83101,20170101,20171222]
[null,1,"D","F",100,"D2","009a","POTENCIACION SEGURO DE VIDA",83101,20170101,20171222]
[null,1,"D","F",100,"D2","008a","GRUPO SEGUDESCUENTOS DIVERSOS",83101,20170101,20171222]
[null,1,"D","F",100,"D2","010a","SEGURO DE VIDA IND METLIFE",83101,20170101,20171222]
[null,1,"D","F",100,"D2","011a","SEGUROS FOVISSSTE",83101,20170101,20171222]
[null,1,"D","F",100,"D2","012a","ALIANZA LA MERCED",83101,20170101,20171222]
[null,1,"D","F",100,"D2","062b","PENSION ALIMENTICIA",83101,20170101,20171222]
[null,1,"D","F",100,"D2","022a","INCAPACIDAD POR ENFERMEDAD GENERAL AL 50%  (sueldo)",83101,20170101,20171222]
[null,1,"D","F",100,"D2","023a","SUBSIDIO AL EMPLEO",83101,20170101,20171222]
[null,1,"D","F",100,"D2","015a","GASTOS FUNERARIOS SAN RAFAEL",83101,20170101,20171222]
[null,1,"D","F",100,"D2","014b","DESCUENTO POR SUSPENSION",83101,20170101,20171222]
[null,1,"D","F",100,"D2","022b","INCAPACIDAD POR ENFERMEDAD GENERAL AL 50% (capacitación)",83101,20170101,20171222]
[null,1,"D","F",100,"D2","022c","INCAPACIDAD POR ENFERMEDAD GENERAL AL 50% (otras percepciones)",83101,20170101,20171222]
[null,1,"P","F",100,"P2","001h","GRATIFICACION COORDINACION ZONA FS",83101,20170101,20171222]
[null,1,"P","F",100,"P2","001i","GRATIFICACION PEC FS",83101,20170101,20171222]
[null,1,"P","F",100,"P2","001j","GRATIFICACION PLAZA FS",83101,20170101,20171222]
[null,1,"P","F",100,"P2","002a","PREVISION SOCIAL MULTIPLE B Y C",83101,20170101,20171222]
[null,1,"P","F",100,"P2","003a","COMPENSACION GARANTIZADA BASE CONFIANZA Y MANDO MEDIO",83101,20170101,20171222]
[null,1,"P","F",100,"P2","003b","COMP. GARANT. HOMOLOGADA",83101,20170101,20171222]
[null,1,"P","F",100,"P2","003c","COMP. GARANT. HOMOLOGADA",83101,20170101,20171222]
[null,1,"P","F",100,"P2","003d","COMP. GARANT.  HOMOLOGADA",83101,20170101,20171222]
[null,1,"P","F",100,"P2","003e","COMP. GARANT. HOMOLOGADA",83101,20170101,20171222]
[null,1,"P","F",100,"P2","004a","COMPENSACION POR ANTIGUEDAD (QUINQUENIO BASE)",83101,20170101,20171222]
[null,1,"P","F",100,"P2","005a","PROFESIONALIZACION C",83101,20170101,20171222]
[null,1,"P","F",100,"P2","005b","RETROACTIVO PROF. C",83101,20170101,20171222]
[null,1,"P","F",100,"P2","006a","PROFESIONALIZACION D",83101,20170101,20171222]
[null,1,"P","F",100,"P2","006b","RETROACTIVO PROF. D",83101,20170101,20171222]
[null,1,"P","F",100,"P2","007a","BECAS PRIMARIA",83101,20170101,20171222]
[null,1,"P","F",100,"P2","007b","BECAS SECUNDARIA",83101,20170101,20171222]
[null,"Fuente : Información proporcionada por las Entidades Federativas"]
[null,131]

{"sheet":"E)","index":13,"n_rows":26,"n_cols":8,"rows_kept":26,"cut":false,"hidden":false,"merged":[[9,1,9,5],[12,1,14,1],[12,2,14,2],[13,7,14,7],[12,3,14,3],[12,4,14,4],[12,5,12,7],[13,5,14,5],[13,6,14,6]]}
[]
[]
[]
[]
[]
[]
[]
[]
[null,"Formato: Trabajadores que Cobran con RFC / CURP con Formato Incorrecto"]
[null,{"$f":"IF('Caratula Resumen'!D22=\"Elige el Periodo…\",\"\",'Caratula Resumen'!D22)","v":"Fondo de Aportaciones para la Educación Tecnológica y de Adultos/Instituto Nacional para la Educación de los Adultos (FAETA/INEA)"},null,null,null,null,null,{"$f":"'A Y  II D3'!X10","v":"4to. Trimestre 2017"}]
[]
[]
[null,"Entidad Federativa","RFC","CURP","NOMBRE TRABAJADOR","Motivo"]
[null,null,null,null,null,"Sin RFC o erroneo","RFC Sin Homoclave","Sin CURP o Erronea"]
[]
[]
[null,"Entidad Federativa","RFC","CURP","NOMBRE TRABAJADOR","Sin RFC o erroneo","RFC Sin Homoclave","Sin CURP o Erronea"]
[]
[]
[]
[]
[]
[null,"Total Personas : ",null,null,"Total Sin RFC o Erroneo:"]
[null,null,null,null,null,"Total RFC Sin Homoclave:"]
[null,null,null,null,null,null,"Total Sin CURP o Erroneo:"]
[null,"Fuente : Información proporcionada por las Entidades Federativas"]

{"sheet":"F) 1","index":14,"n_rows":26,"n_cols":19,"rows_kept":26,"cut":false,"hidden":false,"merged":[[9,1,9,6],[12,15,13,15],[12,16,13,16],[12,17,12,18],[12,1,13,1],[12,2,13,2],[12,3,13,3],[12,4,13,4],[12,5,13,5],[12,6,13,6],[12,7,13,7],[12,8,12,14]]}
[]
[]
[]
[]
[]
[]
[]
[]
[null,"Formato: Trabajadores con Doble Asignación Salarial en Municipios no Colindantes Geográficamente"]
[null,{"$f":"IF('Caratula Resumen'!D22=\"Elige el Periodo…\",\"\",'Caratula Resumen'!D22)","v":"Fondo de Aportaciones para la Educación Tecnológica y de Adultos/Instituto Nacional para la Educación de los Adultos (FAETA/INEA)"},null,null,null,null,null,null,null,null,null,null,null,null,null,null,null,{"$f":"'A Y  II D3'!X10","v":"4to. Trimestre 2017"}]
[]
[]
[null,"Entidad Federativa","Municipio","Localidad","RFC","CURP","Nombre del Trabajador","Clave integrada","Clave Presupuestal",null,null,null,null,null,null,"Clave CT","Nombre CT","Periodo en el CT"]
[null,null,null,null,null,null,null,null,"Partida Presupuestal","Código de Pago","Clave de Unidad","Clave de Sub Unidad","Clave de Categoría","Horas Semana Mes ","Número de Plaza",null,null,"Desde","Hasta"]
[]
[null,"Entidad Federativa","Municipio","Localidad","RFC","CURP","Nombre del Trabajador","Clave integrada","Partida Presupuestal","Código de Pago","Clave de Unidad","Clave de Sub Unidad","Clave de Categoría","Horas semana mes","Número de Plaza","Clave CT","Nombre CT","Periodo en el CT\nDesde","Periodo en el CTH\nasta"]
[]
[]
[]
[]
[]
[null,"Total Personas : ",null,null,null,null,null,null,null,null,null,null,"Total Plazas : "]
[]
[]
[null,"Fuente : Información proporcionada por las Entidades Federativas"]
[null,"Importante: Listar Sólo los Municipios no Colindantes"]

{"sheet":"F) 2","index":15,"n_rows":22,"n_cols":20,"rows_kept":22,"cut":false,"hidden":false,"merged":[[13,3,14,3],[13,4,14,4],[13,5,14,5],[10,1,10,9],[13,19,14,19],[13,18,14,18],[13,6,13,12],[13,13,14,13],[13,14,14,14],[13,15,14,15],[13,16,13,17],[13,1,14,1],[13,2,14,2]]}
[]
[]
[]
[]
[]
[]
[]
[]
[]
[null,"Formato: Trabajadores Ocupando Plazas que Superan el Número de Horas de Compatibilidad Autorizadas"]
[null,{"$f":"IF('Caratula Resumen'!D22=\"Elige el Periodo…\",\"\",'Caratula Resumen'!D22)","v":"Fondo de Aportaciones para la Educación Tecnológica y de Adultos/Instituto Nacional para la Educación de los Adultos (FAETA/INEA)"},null,null,null,null,null,null,null,null,null,null,null,null,null,null,null,{"$f":"'A Y  II D3'!X10","v":"4to. Trimestre 2017"}]
[]
[]
[null,"Entidad Federativa","RFC","CURP","Nombre","Clave integrada","Clave Presupuestal",null,null,null,null,null,null,"CT","Nombre CT","Turno CT","Periodo",null,"Total de Horas en el CT","Horas de compatibilidad de la categoría"]
[null,null,null,null,null,null,"Partida Presupuestal","Código de Pago","Clave de Unidad","Clave de Sub Unidad","Clave de Categoría","Horas Semana Mes ","Número de Plaza",null,null,null,"Desde","Hasta"]
[]
[null,"Entidad Federativa","RFC","CURP","Nombre","Clave integrada","Partida Presupuestal","Código de Pago","Clave de Unidad","Clave de Sub Unidad","Clave de Categoría","Horas semana mes","Número de plaza","CT","Nombre CT","Turno CT","Periodo\nDesde","Periodo\nHasta","Total de Horas en el CT","Horas de compatibilidad de la categoría"]
[null,"GUANAJAUTO","GOGR650725KF1","GOGR650725HGTNRB02","ROBERTO GONZALEZ GARCIA","831011721T0382000.0",83101,1,7,41,"T03820",0,235,0,0,100,0,0,0,0]
[null,"Total Personas : ",1,null,null,null,null,null,null,null,"Total Plazas : ",null,1]
[]
[]
[null,"Fuente : Información proporcionada por las Entidades Federativas"]

{"sheet":"G)","index":16,"n_rows":27,"n_cols":20,"rows_kept":27,"cut":false,"hidden":false,"merged":[[13,19,14,19],[13,13,14,13],[13,14,14,14],[13,15,13,16],[13,17,14,17],[13,18,14,18],[10,1,10,8],[12,5,12,11],[13,1,14,1],[13,2,14,2],[13,3,14,3],[13,4,14,4],[13,5,14,5],[13,6,13,12]]}
[]
[]
[]
[]
[]
[]
[]
[]
[]
[null,"Formato: Trabajadores Cuyo Salario Básico Supere los Ingresos Promedio de un Docente en la Categoría más Alta del Tabulador Salarial Correspondiente a Cada Entidad"]
[null,{"$f":"IF('Caratula Resumen'!D22=\"Elige el Periodo…\",\"\",'Caratula Resumen'!D22)","v":"Fondo de Aportaciones para la Educación Tecnológica y de Adultos/Instituto Nacional para la Educación de los Adultos (FAETA/INEA)"},null,null,null,null,null,null,null,null,null,null,null,null,null,null,null,null,{"$f":"'A Y  II D3'!X10","v":"4to. Trimestre 2017"}]
[]
[]
[null,"Entidad Federativa","R.F.C.","CURP","Nombre","Clave integrada","Clave Presupuestal Integrada y Categoria aparte",null,null,null,null,null,null,"Clave CT Origen","Nombre CT","Periodo",null,"Monto de Remuneraciones Mensuales ","Monto de referencia","Diferencia\n(R-S)"]
[null,null,null,null,null,null,"Partida Presupuestal","Código de Pago","Clave de Unidad","Clave de Sub Unidad","Clave de Categoría","Horas Semana Mes ","Número de Plaza",null,null,"Desde","Hasta"]
[]
[null,"Entidad Federativa","R.F.C.","CURP","Nombre","Clave integrada","Partida Presupuestal","Código de Pago","Clave de Unidad","Clave de Sub Unidad","Clave de Categoría","Horas Semana Mes ","No. de plaza","CT","Nombre CT","Periodo\nDesde","Periodo\nHasta","Monto de Remuneraciones Mensuales ","Monto de referencia","Diferencia\n(R-S)"]
[]
[]
[]
[]
[]
[null,"Total Personas : ",null,null,null,null,null,null,null,null,null,null,null,null,"Total Remuneraciones Mensuales:"]
[]
[null,null,null,null,null,null,null,null,null,null,null,null,null,null,null,null,null,"Total Diferencia:"]
[]
[null,"Fuente : Información proporcionada por las Entidades Federativas"]

{"sheet":"Listas","index":17,"n_rows":42,"n_cols":8,"rows_kept":42,"cut":false,"hidden":true,"merged":[]}
[]
[]
[]
[null,"Elige un Fondo…"]
[null,"Fondo de Aportaciones para la Educación Básica y Normal (FAEB)"]
[null,"Fondo de Aportaciones para la Educación Tecnológica y de Adultos/Colegio Nacional de Educación Profesional Técnica (FAETA/CONALEP)"]
[null,"Fondo de Aportaciones para la Educación Tecnológica y de Adultos/Instituto Nacional para la Educación de los Adultos (FAETA/INEA)"]
[]
[]
[null,null,null,null,null,null,null,"Elige la Entidad Federativa…"]
[null,"Elige el Periodo…",null,null,null,null,null,"AGUASCALIENTES"]
[null,"1er. Trimestre",null,null,null,null,null,"BAJA CALIFORNIA"]
[null,"2do. Trimestre",null,null,null,null,null,"BAJA CALIFORNIA SUR"]
[null,"3er. Trimestre",null,null,null,null,null,"CAMPECHE"]
[null,"4to. Trimestre",null,null,null,null,null,"COAHUILA "]
[null,null,null,"Elige el Año…",null,null,null,"COLIMA "]
[null,null,null,2013,null,null,null,"CHIAPAS "]
[null,null,null,2014,null,null,null,"CHIHUAHUA "]
[null,null,null,2015,null,null,null,"DISTRITO FEDERAL"]
[null,null,null,2016,null,null,null," DURANGO "]
[null,null,null,2017,null,null,null," GUANAJUATO "]
[null,null,null,2018,null,null,null," GUERRERO "]
[null,null,null,null,null,null,null," HIDALGO"]
[null,null,null,null,null,null,null," JALISCO "]
[null,null,null,null,null,null,null," MEXICO "]
[null,null,null,null,null,null,null," MICHOACAN "]
[null,null,null,null,null,null,null," MORELOS "]
[null,null,null,null,null,null,null," NAYARIT "]
[null,null,null,null,null,null,null," NUEVO LEON"]
[null,null,null,null,null,null,null," OAXACA "]
[null,null,null,null,null,null,null," PUEBLA "]
[null,null,null,null,null,null,null," QUERETARO "]
[null,null,null,null,null,null,null," QUINTANA ROO"]
[null,null,null,null,null,null,null," SAN LUIS"]
[null,null,null,null,null,null,null," SINALOA "]
[null,null,null,null,null,null,null," SONORA "]
[null,null,null,null,null,null,null," TABASCO "]
[null,null,null,null,null,null,null," TAMAULIPAS "]
[null,null,null,null,null,null,null," TLAXCALA "]
[null,null,null,null,null,null,null," VERACRUZ"]
[null,null,null,null,null,null,null," YUCATÁN "]
[null,null,null,null,null,null,null," ZACATECAS "]